{"text_format":"3","workbook":"xlsx","n_sheets":12,"sheets":["TAMMI","HELMI","MAALIS","HUHTI","TOUKO","KESÄ","HEINÄ","ELO","SYYS","LOKA","MARRAS","JOULU"],"not_rendered":{"defined_names":40},"read":"whole","date_system":"1900"}

{"sheet":"TAMMI","index":0,"n_rows":20,"n_cols":9,"rows_kept":20,"merged":[[16,2,17,2],[16,3,17,3],[17,4,19,8]]}
[null,"TAMMI","SU",{"$f":"UPPER(TEXT(D3,\"aaa\"))","v":"MA"},"TI","KE","TO","PE","LA"]
[null,{"$f":"YEAR(TODAY())","v":2018}]
[null,null,{"$f":"Päivät_ja_viikot+DATE(Kalenterivuosi,1,1)-WEEKDAY(DATE(Kalenterivuosi,1,1),(Viikon_aloituspäivä=\"MA\")+1)+1","v":"2017-12-31"},"2018-01-01","2018-01-02","2018-01-03","2018-01-04","2018-01-05","2018-01-06"]
[null,null,{"$f":"IF(DAY(Kalenteripäivä)=1,CONCATENATE(\"Viikko \",WEEKNUM(Kalenteripäivä),\"/Päivä \",Kalenteripäivä-DATE(YEAR(Kalenteripäivä),1,0)),CONCATENATE(\"Päivä \",Kalenteripäivä-DATE(YEAR(Kalenteripäivä),1,0)))","v":"Päivä 365"},{"$f":"IF(DAY(Kalenteripäivä)=1,CONCATENATE(\"Viikko \",WEEKNUM(Kalenteripäivä),\"/Päivä \",Kalenteripäivä-DATE(YEAR(Kalenteripäivä),1,0)),CONCATENATE(\"Päivä \",Kalenteripäivä-DATE(YEAR(Kalenteripäivä),1,0)))","v":"Viikko 1/Päivä 1"},{"$f":"IF(DAY(Kalenteripäivä)=1,CONCATENATE(\"Viikko \",WEEKNUM(Kalenteripäivä),\"/Päivä \",Kalenteripäivä-DATE(YEAR(Kalenteripäivä),1,0)),CONCATENATE(\"Päivä \",Kalenteripäivä-DATE(YEAR(Kalenteripäivä),1,0)))","v":"Päivä 2"},{"$f":"IF(DAY(Kalenteripäivä)=1,CONCATENATE(\"Viikko \",WEEKNUM(Kalenteripäivä),\"/Päivä \",Kalenteripäivä-DATE(YEAR(Kalenteripäivä),1,0)),CONCATENATE(\"Päivä \",Kalenteripäivä-DATE(YEAR(Kalenteripäivä),1,0)))","v":"Päivä 3"},{"$f":"IF(DAY(Kalenteripäivä)=1,CONCATENATE(\"Viikko \",WEEKNUM(Kalenteripäivä),\"/Päivä \",Kalenteripäivä-DATE(YEAR(Kalenteripäivä),1,0)),CONCATENATE(\"Päivä \",Kalenteripäivä-DATE(YEAR(Kalenteripäivä),1,0)))","v":"Päivä 4"},{"$f":"IF(DAY(Kalenteripäivä)=1,CONCATENATE(\"Viikko \",WEEKNUM(Kalenteripäivä),\"/Päivä \",Kalenteripäivä-DATE(YEAR(Kalenteripäivä),1,0)),CONCATENATE(\"Päivä \",Kalenteripäivä-DATE(YEAR(Kalenteripäivä),1,0)))","v":"Päivä 5"},{"$f":"IF(DAY(Kalenteripäivä)=1,CONCATENATE(\"Viikko \",WEEKNUM(Kalenteripäivä),\"/Päivä \",Kalenteripäivä-DATE(YEAR(Kalenteripäivä),1,0)),CONCATENATE(\"Päivä \",Kalenteripäivä-DATE(YEAR(Kalenteripäivä),1,0)))","v":"Päivä 6"}]
[]
[null,null,{"$f":"Päivät_ja_viikot+DATE(Kalenterivuosi,1,1)-WEEKDAY(DATE(Kalenterivuosi,1,1),(Viikon_aloituspäivä=\"MA\")+1)+8","v":"2018-01-07"},"2018-01-08","2018-01-09","2018-01-10","2018-01-11","2018-01-12","2018-01-13"]
[null,null,{"$f":"IF(WEEKDAY(Kalenteripäivä)=Viikon_aloitusarvo,CONCATENATE(\"Viikko \",WEEKNUM(Kalenteripäivä),\"/Päivä \",Kalenteripäivä-DATE(YEAR(Kalenteripäivä),1,0)),CONCATENATE(\"Päivä \",Kalenteripäivä-DATE(YEAR(Kalenteripäivä),1,0)))","v":"Viikko 2/Päivä 7"},{"$f":"IF(WEEKDAY(Kalenteripäivä)=Viikon_aloitusarvo,CONCATENATE(\"Viikko \",WEEKNUM(Kalenteripäivä),\"/Päivä \",Kalenteripäivä-DATE(YEAR(Kalenteripäivä),1,0)),CONCATENATE(\"Päivä \",Kalenteripäivä-DATE(YEAR(Kalenteripäivä),1,0)))","v":"Päivä 8"},{"$f":"IF(WEEKDAY(Kalenteripäivä)=Viikon_aloitusarvo,CONCATENATE(\"Viikko \",WEEKNUM(Kalenteripäivä),\"/Päivä \",Kalenteripäivä-DATE(YEAR(Kalenteripäivä),1,0)),CONCATENATE(\"Päivä \",Kalenteripäivä-DATE(YEAR(Kalenteripäivä),1,0)))","v":"Päivä 9"},{"$f":"IF(WEEKDAY(Kalenteripäivä)=Viikon_aloitusarvo,CONCATENATE(\"Viikko \",WEEKNUM(Kalenteripäivä),\"/Päivä \",Kalenteripäivä-DATE(YEAR(Kalenteripäivä),1,0)),CONCATENATE(\"Päivä \",Kalenteripäivä-DATE(YEAR(Kalenteripäivä),1,0)))","v":"Päivä 10"},{"$f":"IF(WEEKDAY(Kalenteripäivä)=Viikon_aloitusarvo,CONCATENATE(\"Viikko \",WEEKNUM(Kalenteripäivä),\"/Päivä \",Kalenteripäivä-DATE(YEAR(Kalenteripäivä),1,0)),CONCATENATE(\"Päivä \",Kalenteripäivä-DATE(YEAR(Kalenteripäivä),1,0)))","v":"Päivä 11"},{"$f":"IF(WEEKDAY(Kalenteripäivä)=Viikon_aloitusarvo,CONCATENATE(\"Viikko \",WEEKNUM(Kalenteripäivä),\"/Päivä \",Kalenteripäivä-DATE(YEAR(Kalenteripäivä),1,0)),CONCATENATE(\"Päivä \",Kalenteripäivä-DATE(YEAR(Kalenteripäivä),1,0)))","v":"Päivä 12"},{"$f":"IF(WEEKDAY(Kalenteripäivä)=Viikon_aloitusarvo,CONCATENATE(\"Viikko \",WEEKNUM(Kalenteripäivä),\"/Päivä \",Kalenteripäivä-DATE(YEAR(Kalenteripäivä),1,0)),CONCATENATE(\"Päivä \",Kalenteripäivä-DATE(YEAR(Kalenteripäivä),1,0)))","v":"Päivä 13"}]
[]
[null,null,{"$f":"Päivät_ja_viikot+DATE(Kalenterivuosi,1,1)-WEEKDAY(DATE(Kalenterivuosi,1,1),(Viikon_aloituspäivä=\"MA\")+1)+15","v":"2018-01-14"},"2018-01-15","2018-01-16","2018-01-17","2018-01-18","2018-01-19","2018-01-20"]
[null,null,{"$f":"IF(WEEKDAY(Kalenteripäivä)=Viikon_aloitusarvo,CONCATENATE(\"Viikko \",WEEKNUM(Kalenteripäivä),\"/Päivä \",Kalenteripäivä-DATE(YEAR(Kalenteripäivä),1,0)),CONCATENATE(\"Päivä \",Kalenteripäivä-DATE(YEAR(Kalenteripäivä),1,0)))","v":"Viikko 3/Päivä 14"},{"$f":"IF(WEEKDAY(Kalenteripäivä)=Viikon_aloitusarvo,CONCATENATE(\"Viikko \",WEEKNUM(Kalenteripäivä),\"/Päivä \",Kalenteripäivä-DATE(YEAR(Kalenteripäivä),1,0)),CONCATENATE(\"Päivä \",Kalenteripäivä-DATE(YEAR(Kalenteripäivä),1,0)))","v":"Päivä 15"},{"$f":"IF(WEEKDAY(Kalenteripäivä)=Viikon_aloitusarvo,CONCATENATE(\"Viikko \",WEEKNUM(Kalenteripäivä),\"/Päivä \",Kalenteripäivä-DATE(YEAR(Kalenteripäivä),1,0)),CONCATENATE(\"Päivä \",Kalenteripäivä-DATE(YEAR(Kalenteripäivä),1,0)))","v":"Päivä 16"},{"$f":"IF(WEEKDAY(Kalenteripäivä)=Viikon_aloitusarvo,CONCATENATE(\"Viikko \",WEEKNUM(Kalenteripäivä),\"/Päivä \",Kalenteripäivä-DATE(YEAR(Kalenteripäivä),1,0)),CONCATENATE(\"Päivä \",Kalenteripäivä-DATE(YEAR(Kalenteripäivä),1,0)))","v":"Päivä 17"},{"$f":"IF(WEEKDAY(Kalenteripäivä)=Viikon_aloitusarvo,CONCATENATE(\"Viikko \",WEEKNUM(Kalenteripäivä),\"/Päivä \",Kalenteripäivä-DATE(YEAR(Kalenteripäivä),1,0)),CONCATENATE(\"Päivä \",Kalenteripäivä-DATE(YEAR(Kalenteripäivä),1,0)))","v":"Päivä 18"},{"$f":"IF(WEEKDAY(Kalenteripäivä)=Viikon_aloitusarvo,CONCATENATE(\"Viikko \",WEEKNUM(Kalenteripäivä),\"/Päivä \",Kalenteripäivä-DATE(YEAR(Kalenteripäivä),1,0)),CONCATENATE(\"Päivä \",Kalenteripäivä-DATE(YEAR(Kalenteripäivä),1,0)))","v":"Päivä 19"},{"$f":"IF(WEEKDAY(Kalenteripäivä)=Viikon_aloitusarvo,CONCATENATE(\"Viikko \",WEEKNUM(Kalenteripäivä),\"/Päivä \",Kalenteripäivä-DATE(YEAR(Kalenteripäivä),1,0)),CONCATENATE(\"Päivä \",Kalenteripäivä-DATE(YEAR(Kalenteripäivä),1,0)))","v":"Päivä 20"}]
[]
[null,null,{"$f":"Päivät_ja_viikot+DATE(Kalenterivuosi,1,1)-WEEKDAY(DATE(Kalenterivuosi,1,1),(Viikon_aloituspäivä=\"MA\")+1)+22","v":"2018-01-21"},"2018-01-22","2018-01-23","2018-01-24","2018-01-25","2018-01-26","2018-01-27"]
[null,null,{"$f":"IF(WEEKDAY(Kalenteripäivä)=Viikon_aloitusarvo,CONCATENATE(\"Viikko \",WEEKNUM(Kalenteripäivä),\"/Päivä \",Kalenteripäivä-DATE(YEAR(Kalenteripäivä),1,0)),CONCATENATE(\"Päivä \",Kalenteripäivä-DATE(YEAR(Kalenteripäivä),1,0)))","v":"Viikko 4/Päivä 21"},{"$f":"IF(WEEKDAY(Kalenteripäivä)=Viikon_aloitusarvo,CONCATENATE(\"Viikko \",WEEKNUM(Kalenteripäivä),\"/Päivä \",Kalenteripäivä-DATE(YEAR(Kalenteripäivä),1,0)),CONCATENATE(\"Päivä \",Kalenteripäivä-DATE(YEAR(Kalenteripäivä),1,0)))","v":"Päivä 22"},{"$f":"IF(WEEKDAY(Kalenteripäivä)=Viikon_aloitusarvo,CONCATENATE(\"Viikko \",WEEKNUM(Kalenteripäivä),\"/Päivä \",Kalenteripäivä-DATE(YEAR(Kalenteripäivä),1,0)),CONCATENATE(\"Päivä \",Kalenteripäivä-DATE(YEAR(Kalenteripäivä),1,0)))","v":"Päivä 23"},{"$f":"IF(WEEKDAY(Kalenteripäivä)=Viikon_aloitusarvo,CONCATENATE(\"Viikko \",WEEKNUM(Kalenteripäivä),\"/Päivä \",Kalenteripäivä-DATE(YEAR(Kalenteripäivä),1,0)),CONCATENATE(\"Päivä \",Kalenteripäivä-DATE(YEAR(Kalenteripäivä),1,0)))","v":"Päivä 24"},{"$f":"IF(WEEKDAY(Kalenteripäivä)=Viikon_aloitusarvo,CONCATENATE(\"Viikko \",WEEKNUM(Kalenteripäivä),\"/Päivä \",Kalenteripäivä-DATE(YEAR(Kalenteripäivä),1,0)),CONCATENATE(\"Päivä \",Kalenteripäivä-DATE(YEAR(Kalenteripäivä),1,0)))","v":"Päivä 25"},{"$f":"IF(WEEKDAY(Kalenteripäivä)=Viikon_aloitusarvo,CONCATENATE(\"Viikko \",WEEKNUM(Kalenteripäivä),\"/Päivä \",Kalenteripäivä-DATE(YEAR(Kalenteripäivä),1,0)),CONCATENATE(\"Päivä \",Kalenteripäivä-DATE(YEAR(Kalenteripäivä),1,0)))","v":"Päivä 26"},{"$f":"IF(WEEKDAY(Kalenteripäivä)=Viikon_aloitusarvo,CONCATENATE(\"Viikko \",WEEKNUM(Kalenteripäivä),\"/Päivä \",Kalenteripäivä-DATE(YEAR(Kalenteripäivä),1,0)),CONCATENATE(\"Päivä \",Kalenteripäivä-DATE(YEAR(Kalenteripäivä),1,0)))","v":"Päivä 27"}]
[]
[null,null,{"$f":"Päivät_ja_viikot+DATE(Kalenterivuosi,1,1)-WEEKDAY(DATE(Kalenterivuosi,1,1),(Viikon_aloituspäivä=\"MA\")+1)+29","v":"2018-01-28"},"2018-01-29","2018-01-30","2018-01-31","2018-02-01","2018-02-02","2018-02-03"]
[null,null,{"$f":"IF(WEEKDAY(Kalenteripäivä)=Viikon_aloitusarvo,CONCATENATE(\"Viikko \",WEEKNUM(Kalenteripäivä),\"/Päivä \",Kalenteripäivä-DATE(YEAR(Kalenteripäivä),1,0)),CONCATENATE(\"Päivä \",Kalenteripäivä-DATE(YEAR(Kalenteripäivä),1,0)))","v":"Viikko 5/Päivä 28"},{"$f":"IF(WEEKDAY(Kalenteripäivä)=Viikon_aloitusarvo,CONCATENATE(\"Viikko \",WEEKNUM(Kalenteripäivä),\"/Päivä \",Kalenteripäivä-DATE(YEAR(Kalenteripäivä),1,0)),CONCATENATE(\"Päivä \",Kalenteripäivä-DATE(YEAR(Kalenteripäivä),1,0)))","v":"Päivä 29"},{"$f":"IF(WEEKDAY(Kalenteripäivä)=Viikon_aloitusarvo,CONCATENATE(\"Viikko \",WEEKNUM(Kalenteripäivä),\"/Päivä \",Kalenteripäivä-DATE(YEAR(Kalenteripäivä),1,0)),CONCATENATE(\"Päivä \",Kalenteripäivä-DATE(YEAR(Kalenteripäivä),1,0)))","v":"Päivä 30"},{"$f":"IF(WEEKDAY(Kalenteripäivä)=Viikon_aloitusarvo,CONCATENATE(\"Viikko \",WEEKNUM(Kalenteripäivä),\"/Päivä \",Kalenteripäivä-DATE(YEAR(Kalenteripäivä),1,0)),CONCATENATE(\"Päivä \",Kalenteripäivä-DATE(YEAR(Kalenteripäivä),1,0)))","v":"Päivä 31"},{"$f":"IF(WEEKDAY(Kalenteripäivä)=Viikon_aloitusarvo,CONCATENATE(\"Viikko \",WEEKNUM(Kalenteripäivä),\"/Päivä \",Kalenteripäivä-DATE(YEAR(Kalenteripäivä),1,0)),CONCATENATE(\"Päivä \",Kalenteripäivä-DATE(YEAR(Kalenteripäivä),1,0)))","v":"Päivä 32"},{"$f":"IF(WEEKDAY(Kalenteripäivä)=Viikon_aloitusarvo,CONCATENATE(\"Viikko \",WEEKNUM(Kalenteripäivä),\"/Päivä \",Kalenteripäivä-DATE(YEAR(Kalenteripäivä),1,0)),CONCATENATE(\"Päivä \",Kalenteripäivä-DATE(YEAR(Kalenteripäivä),1,0)))","v":"Päivä 33"},{"$f":"IF(WEEKDAY(Kalenteripäivä)=Viikon_aloitusarvo,CONCATENATE(\"Viikko \",WEEKNUM(Kalenteripäivä),\"/Päivä \",Kalenteripäivä-DATE(YEAR(Kalenteripäivä),1,0)),CONCATENATE(\"Päivä \",Kalenteripäivä-DATE(YEAR(Kalenteripäivä),1,0)))","v":"Päivä 34"}]
[{"$nulls":4},"MUISTIINPANOT"]
[]
[null,null,{"$f":"Päivät_ja_viikot+DATE(Kalenterivuosi,1,1)-WEEKDAY(DATE(Kalenterivuosi,1,1),(Viikon_aloituspäivä=\"MA\")+1)+36","v":"2018-02-04"},"2018-02-05"]
[null,null,{"$f":"IF(WEEKDAY(Kalenteripäivä)=Viikon_aloitusarvo,CONCATENATE(\"Viikko \",WEEKNUM(Kalenteripäivä),\"/Päivä \",Kalenteripäivä-DATE(YEAR(Kalenteripäivä),1,0)),CONCATENATE(\"Päivä \",Kalenteripäivä-DATE(YEAR(Kalenteripäivä),1,0)))","v":"Viikko 6/Päivä 35"},{"$f":"IF(WEEKDAY(Kalenteripäivä)=Viikon_aloitusarvo,CONCATENATE(\"Viikko \",WEEKNUM(Kalenteripäivä),\"/Päivä \",Kalenteripäivä-DATE(YEAR(Kalenteripäivä),1,0)),CONCATENATE(\"Päivä \",Kalenteripäivä-DATE(YEAR(Kalenteripäivä),1,0)))","v":"Päivä 36"}]

{"sheet":"HELMI","index":1,"n_rows":20,"n_cols":9,"rows_kept":20,"merged":[[16,2,17,2],[17,4,19,8]]}
[null,"HELMI",{"$f":"UPPER(TEXT(Viikon_aloituspäivä,\"ddd\"))","v":"SU"},{"$f":"UPPER(TEXT(D3,\"aaa\"))","v":"MA"},"TI","KE","TO","PE","LA"]
[null,{"$f":"Kalenterivuosi","v":2018}]
[null,null,{"$f":"Päivät_ja_viikot+DATE(Kalenterivuosi,2,1)-WEEKDAY(DATE(Kalenterivuosi,2,1),(Viikon_aloituspäivä=\"MA\")+1)+1","v":"2018-01-28"},"2018-01-29","2018-01-30","2018-01-31","2018-02-01","2018-02-02","2018-02-03"]
[null,null,{"$f":"IF(DAY(Kalenteripäivä)=1,CONCATENATE(\"Viikko \",WEEKNUM(Kalenteripäivä),\"/Päivä \",Kalenteripäivä-DATE(YEAR(Kalenteripäivä),1,0)),CONCATENATE(\"Päivä \",Kalenteripäivä-DATE(YEAR(Kalenteripäivä),1,0)))","v":"Päivä 28"},{"$f":"IF(DAY(Kalenteripäivä)=1,CONCATENATE(\"Viikko \",WEEKNUM(Kalenteripäivä),\"/Päivä \",Kalenteripäivä-DATE(YEAR(Kalenteripäivä),1,0)),CONCATENATE(\"Päivä \",Kalenteripäivä-DATE(YEAR(Kalenteripäivä),1,0)))","v":"Päivä 29"},{"$f":"IF(DAY(Kalenteripäivä)=1,CONCATENATE(\"Viikko \",WEEKNUM(Kalenteripäivä),\"/Päivä \",Kalenteripäivä-DATE(YEAR(Kalenteripäivä),1,0)),CONCATENATE(\"Päivä \",Kalenteripäivä-DATE(YEAR(Kalenteripäivä),1,0)))","v":"Päivä 30"},{"$f":"IF(DAY(Kalenteripäivä)=1,CONCATENATE(\"Viikko \",WEEKNUM(Kalenteripäivä),\"/Päivä \",Kalenteripäivä-DATE(YEAR(Kalenteripäivä),1,0)),CONCATENATE(\"Päivä \",Kalenteripäivä-DATE(YEAR(Kalenteripäivä),1,0)))","v":"Päivä 31"},{"$f":"IF(DAY(Kalenteripäivä)=1,CONCATENATE(\"Viikko \",WEEKNUM(Kalenteripäivä),\"/Päivä \",Kalenteripäivä-DATE(YEAR(Kalenteripäivä),1,0)),CONCATENATE(\"Päivä \",Kalenteripäivä-DATE(YEAR(Kalenteripäivä),1,0)))","v":"Viikko 5/Päivä 32"},{"$f":"IF(DAY(Kalenteripäivä)=1,CONCATENATE(\"Viikko \",WEEKNUM(Kalenteripäivä),\"/Päivä \",Kalenteripäivä-DATE(YEAR(Kalenteripäivä),1,0)),CONCATENATE(\"Päivä \",Kalenteripäivä-DATE(YEAR(Kalenteripäivä),1,0)))","v":"Päivä 33"},{"$f":"IF(DAY(Kalenteripäivä)=1,CONCATENATE(\"Viikko \",WEEKNUM(Kalenteripäivä),\"/Päivä \",Kalenteripäivä-DATE(YEAR(Kalenteripäivä),1,0)),CONCATENATE(\"Päivä \",Kalenteripäivä-DATE(YEAR(Kalenteripäivä),1,0)))","v":"Päivä 34"}]
[]
[null,null,{"$f":"Päivät_ja_viikot+DATE(Kalenterivuosi,2,1)-WEEKDAY(DATE(Kalenterivuosi,2,1),(Viikon_aloituspäivä=\"MA\")+1)+8","v":"2018-02-04"},"2018-02-05","2018-02-06","2018-02-07","2018-02-08","2018-02-09","2018-02-10"]
[null,null,{"$f":"IF(WEEKDAY(Kalenteripäivä)=Viikon_aloitusarvo,CONCATENATE(\"Viikko \",WEEKNUM(Kalenteripäivä),\"/Päivä \",Kalenteripäivä-DATE(YEAR(Kalenteripäivä),1,0)),CONCATENATE(\"Päivä \",Kalenteripäivä-DATE(YEAR(Kalenteripäivä),1,0)))","v":"Viikko 6/Päivä 35"},{"$f":"IF(WEEKDAY(Kalenteripäivä)=Viikon_aloitusarvo,CONCATENATE(\"Viikko \",WEEKNUM(Kalenteripäivä),\"/Päivä \",Kalenteripäivä-DATE(YEAR(Kalenteripäivä),1,0)),CONCATENATE(\"Päivä \",Kalenteripäivä-DATE(YEAR(Kalenteripäivä),1,0)))","v":"Päivä 36"},{"$f":"IF(WEEKDAY(Kalenteripäivä)=Viikon_aloitusarvo,CONCATENATE(\"Viikko \",WEEKNUM(Kalenteripäivä),\"/Päivä \",Kalenteripäivä-DATE(YEAR(Kalenteripäivä),1,0)),CONCATENATE(\"Päivä \",Kalenteripäivä-DATE(YEAR(Kalenteripäivä),1,0)))","v":"Päivä 37"},{"$f":"IF(WEEKDAY(Kalenteripäivä)=Viikon_aloitusarvo,CONCATENATE(\"Viikko \",WEEKNUM(Kalenteripäivä),\"/Päivä \",Kalenteripäivä-DATE(YEAR(Kalenteripäivä),1,0)),CONCATENATE(\"Päivä \",Kalenteripäivä-DATE(YEAR(Kalenteripäivä),1,0)))","v":"Päivä 38"},{"$f":"IF(WEEKDAY(Kalenteripäivä)=Viikon_aloitusarvo,CONCATENATE(\"Viikko \",WEEKNUM(Kalenteripäivä),\"/Päivä \",Kalenteripäivä-DATE(YEAR(Kalenteripäivä),1,0)),CONCATENATE(\"Päivä \",Kalenteripäivä-DATE(YEAR(Kalenteripäivä),1,0)))","v":"Päivä 39"},{"$f":"IF(WEEKDAY(Kalenteripäivä)=Viikon_aloitusarvo,CONCATENATE(\"Viikko \",WEEKNUM(Kalenteripäivä),\"/Päivä \",Kalenteripäivä-DATE(YEAR(Kalenteripäivä),1,0)),CONCATENATE(\"Päivä \",Kalenteripäivä-DATE(YEAR(Kalenteripäivä),1,0)))","v":"Päivä 40"},{"$f":"IF(WEEKDAY(Kalenteripäivä)=Viikon_aloitusarvo,CONCATENATE(\"Viikko \",WEEKNUM(Kalenteripäivä),\"/Päivä \",Kalenteripäivä-DATE(YEAR(Kalenteripäivä),1,0)),CONCATENATE(\"Päivä \",Kalenteripäivä-DATE(YEAR(Kalenteripäivä),1,0)))","v":"Päivä 41"}]
[]
[null,null,{"$f":"Päivät_ja_viikot+DATE(Kalenterivuosi,2,1)-WEEKDAY(DATE(Kalenterivuosi,2,1),(Viikon_aloituspäivä=\"MA\")+1)+15","v":"2018-02-11"},"2018-02-12","2018-02-13","2018-02-14","2018-02-15","2018-02-16","2018-02-17"]
[null,null,{"$f":"IF(WEEKDAY(Kalenteripäivä)=Viikon_aloitusarvo,CONCATENATE(\"Viikko \",WEEKNUM(Kalenteripäivä),\"/Päivä \",Kalenteripäivä-DATE(YEAR(Kalenteripäivä),1,0)),CONCATENATE(\"Päivä \",Kalenteripäivä-DATE(YEAR(Kalenteripäivä),1,0)))","v":"Viikko 7/Päivä 42"},{"$f":"IF(WEEKDAY(Kalenteripäivä)=Viikon_aloitusarvo,CONCATENATE(\"Viikko \",WEEKNUM(Kalenteripäivä),\"/Päivä \",Kalenteripäivä-DATE(YEAR(Kalenteripäivä),1,0)),CONCATENATE(\"Päivä \",Kalenteripäivä-DATE(YEAR(Kalenteripäivä),1,0)))","v":"Päivä 43"},{"$f":"IF(WEEKDAY(Kalenteripäivä)=Viikon_aloitusarvo,CONCATENATE(\"Viikko \",WEEKNUM(Kalenteripäivä),\"/Päivä \",Kalenteripäivä-DATE(YEAR(Kalenteripäivä),1,0)),CONCATENATE(\"Päivä \",Kalenteripäivä-DATE(YEAR(Kalenteripäivä),1,0)))","v":"Päivä 44"},{"$f":"IF(WEEKDAY(Kalenteripäivä)=Viikon_aloitusarvo,CONCATENATE(\"Viikko \",WEEKNUM(Kalenteripäivä),\"/Päivä \",Kalenteripäivä-DATE(YEAR(Kalenteripäivä),1,0)),CONCATENATE(\"Päivä \",Kalenteripäivä-DATE(YEAR(Kalenteripäivä),1,0)))","v":"Päivä 45"},{"$f":"IF(WEEKDAY(Kalenteripäivä)=Viikon_aloitusarvo,CONCATENATE(\"Viikko \",WEEKNUM(Kalenteripäivä),\"/Päivä \",Kalenteripäivä-DATE(YEAR(Kalenteripäivä),1,0)),CONCATENATE(\"Päivä \",Kalenteripäivä-DATE(YEAR(Kalenteripäivä),1,0)))","v":"Päivä 46"},{"$f":"IF(WEEKDAY(Kalenteripäivä)=Viikon_aloitusarvo,CONCATENATE(\"Viikko \",WEEKNUM(Kalenteripäivä),\"/Päivä \",Kalenteripäivä-DATE(YEAR(Kalenteripäivä),1,0)),CONCATENATE(\"Päivä \",Kalenteripäivä-DATE(YEAR(Kalenteripäivä),1,0)))","v":"Päivä 47"},{"$f":"IF(WEEKDAY(Kalenteripäivä)=Viikon_aloitusarvo,CONCATENATE(\"Viikko \",WEEKNUM(Kalenteripäivä),\"/Päivä \",Kalenteripäivä-DATE(YEAR(Kalenteripäivä),1,0)),CONCATENATE(\"Päivä \",Kalenteripäivä-DATE(YEAR(Kalenteripäivä),1,0)))","v":"Päivä 48"}]
[]
[null,null,{"$f":"Päivät_ja_viikot+DATE(Kalenterivuosi,2,1)-WEEKDAY(DATE(Kalenterivuosi,2,1),(Viikon_aloituspäivä=\"MA\")+1)+22","v":"2018-02-18"},"2018-02-19","2018-02-20","2018-02-21","2018-02-22","2018-02-23","2018-02-24"]
[null,null,{"$f":"IF(WEEKDAY(Kalenteripäivä)=Viikon_aloitusarvo,CONCATENATE(\"Viikko \",WEEKNUM(Kalenteripäivä),\"/Päivä \",Kalenteripäivä-DATE(YEAR(Kalenteripäivä),1,0)),CONCATENATE(\"Päivä \",Kalenteripäivä-DATE(YEAR(Kalenteripäivä),1,0)))","v":"Viikko 8/Päivä 49"},{"$f":"IF(WEEKDAY(Kalenteripäivä)=Viikon_aloitusarvo,CONCATENATE(\"Viikko \",WEEKNUM(Kalenteripäivä),\"/Päivä \",Kalenteripäivä-DATE(YEAR(Kalenteripäivä),1,0)),CONCATENATE(\"Päivä \",Kalenteripäivä-DATE(YEAR(Kalenteripäivä),1,0)))","v":"Päivä 50"},{"$f":"IF(WEEKDAY(Kalenteripäivä)=Viikon_aloitusarvo,CONCATENATE(\"Viikko \",WEEKNUM(Kalenteripäivä),\"/Päivä \",Kalenteripäivä-DATE(YEAR(Kalenteripäivä),1,0)),CONCATENATE(\"Päivä \",Kalenteripäivä-DATE(YEAR(Kalenteripäivä),1,0)))","v":"Päivä 51"},{"$f":"IF(WEEKDAY(Kalenteripäivä)=Viikon_aloitusarvo,CONCATENATE(\"Viikko \",WEEKNUM(Kalenteripäivä),\"/Päivä \",Kalenteripäivä-DATE(YEAR(Kalenteripäivä),1,0)),CONCATENATE(\"Päivä \",Kalenteripäivä-DATE(YEAR(Kalenteripäivä),1,0)))","v":"Päivä 52"},{"$f":"IF(WEEKDAY(Kalenteripäivä)=Viikon_aloitusarvo,CONCATENATE(\"Viikko \",WEEKNUM(Kalenteripäivä),\"/Päivä \",Kalenteripäivä-DATE(YEAR(Kalenteripäivä),1,0)),CONCATENATE(\"Päivä \",Kalenteripäivä-DATE(YEAR(Kalenteripäivä),1,0)))","v":"Päivä 53"},{"$f":"IF(WEEKDAY(Kalenteripäivä)=Viikon_aloitusarvo,CONCATENATE(\"Viikko \",WEEKNUM(Kalenteripäivä),\"/Päivä \",Kalenteripäivä-DATE(YEAR(Kalenteripäivä),1,0)),CONCATENATE(\"Päivä \",Kalenteripäivä-DATE(YEAR(Kalenteripäivä),1,0)))","v":"Päivä 54"},{"$f":"IF(WEEKDAY(Kalenteripäivä)=Viikon_aloitusarvo,CONCATENATE(\"Viikko \",WEEKNUM(Kalenteripäivä),\"/Päivä \",Kalenteripäivä-DATE(YEAR(Kalenteripäivä),1,0)),CONCATENATE(\"Päivä \",Kalenteripäivä-DATE(YEAR(Kalenteripäivä),1,0)))","v":"Päivä 55"}]
[]
[null,null,{"$f":"Päivät_ja_viikot+DATE(Kalenterivuosi,2,1)-WEEKDAY(DATE(Kalenterivuosi,2,1),(Viikon_aloituspäivä=\"MA\")+1)+29","v":"2018-02-25"},"2018-02-26","2018-02-27","2018-02-28","2018-03-01","2018-03-02","2018-03-03"]
[null,null,{"$f":"IF(WEEKDAY(Kalenteripäivä)=Viikon_aloitusarvo,CONCATENATE(\"Viikko \",WEEKNUM(Kalenteripäivä),\"/Päivä \",Kalenteripäivä-DATE(YEAR(Kalenteripäivä),1,0)),CONCATENATE(\"Päivä \",Kalenteripäivä-DATE(YEAR(Kalenteripäivä),1,0)))","v":"Viikko 9/Päivä 56"},{"$f":"IF(WEEKDAY(Kalenteripäivä)=Viikon_aloitusarvo,CONCATENATE(\"Viikko \",WEEKNUM(Kalenteripäivä),\"/Päivä \",Kalenteripäivä-DATE(YEAR(Kalenteripäivä),1,0)),CONCATENATE(\"Päivä \",Kalenteripäivä-DATE(YEAR(Kalenteripäivä),1,0)))","v":"Päivä 57"},{"$f":"IF(WEEKDAY(Kalenteripäivä)=Viikon_aloitusarvo,CONCATENATE(\"Viikko \",WEEKNUM(Kalenteripäivä),\"/Päivä \",Kalenteripäivä-DATE(YEAR(Kalenteripäivä),1,0)),CONCATENATE(\"Päivä \",Kalenteripäivä-DATE(YEAR(Kalenteripäivä),1,0)))","v":"Päivä 58"},{"$f":"IF(WEEKDAY(Kalenteripäivä)=Viikon_aloitusarvo,CONCATENATE(\"Viikko \",WEEKNUM(Kalenteripäivä),\"/Päivä \",Kalenteripäivä-DATE(YEAR(Kalenteripäivä),1,0)),CONCATENATE(\"Päivä \",Kalenteripäivä-DATE(YEAR(Kalenteripäivä),1,0)))","v":"Päivä 59"},{"$f":"IF(WEEKDAY(Kalenteripäivä)=Viikon_aloitusarvo,CONCATENATE(\"Viikko \",WEEKNUM(Kalenteripäivä),\"/Päivä \",Kalenteripäivä-DATE(YEAR(Kalenteripäivä),1,0)),CONCATENATE(\"Päivä \",Kalenteripäivä-DATE(YEAR(Kalenteripäivä),1,0)))","v":"Päivä 60"},{"$f":"IF(WEEKDAY(Kalenteripäivä)=Viikon_aloitusarvo,CONCATENATE(\"Viikko \",WEEKNUM(Kalenteripäivä),\"/Päivä \",Kalenteripäivä-DATE(YEAR(Kalenteripäivä),1,0)),CONCATENATE(\"Päivä \",Kalenteripäivä-DATE(YEAR(Kalenteripäivä),1,0)))","v":"Päivä 61"},{"$f":"IF(WEEKDAY(Kalenteripäivä)=Viikon_aloitusarvo,CONCATENATE(\"Viikko \",WEEKNUM(Kalenteripäivä),\"/Päivä \",Kalenteripäivä-DATE(YEAR(Kalenteripäivä),1,0)),CONCATENATE(\"Päivä \",Kalenteripäivä-DATE(YEAR(Kalenteripäivä),1,0)))","v":"Päivä 62"}]
[{"$nulls":4},"MUISTIINPANOT"]
[]
[null,null,{"$f":"Päivät_ja_viikot+DATE(Kalenterivuosi,2,1)-WEEKDAY(DATE(Kalenterivuosi,2,1),(Viikon_aloituspäivä=\"MA\")+1)+36","v":"2018-03-04"},"2018-03-05"]
[null,null,{"$f":"IF(WEEKDAY(Kalenteripäivä)=Viikon_aloitusarvo,CONCATENATE(\"Viikko \",WEEKNUM(Kalenteripäivä),\"/Päivä \",Kalenteripäivä-DATE(YEAR(Kalenteripäivä),1,0)),CONCATENATE(\"Päivä \",Kalenteripäivä-DATE(YEAR(Kalenteripäivä),1,0)))","v":"Viikko 10/Päivä 63"},{"$f":"IF(WEEKDAY(Kalenteripäivä)=Viikon_aloitusarvo,CONCATENATE(\"Viikko \",WEEKNUM(Kalenteripäivä),\"/Päivä \",Kalenteripäivä-DATE(YEAR(Kalenteripäivä),1,0)),CONCATENATE(\"Päivä \",Kalenteripäivä-DATE(YEAR(Kalenteripäivä),1,0)))","v":"Päivä 64"}]

{"sheet":"MAALIS","index":2,"n_rows":20,"n_cols":9,"rows_kept":20,"merged":[[16,2,17,2],[17,4,19,8]]}
[null,"MAALIS",{"$f":"UPPER(TEXT(Viikon_aloituspäivä,\"ddd\"))","v":"SU"},{"$f":"UPPER(TEXT(D3,\"aaa\"))","v":"MA"},"TI","KE","TO","PE","LA"]
[null,{"$f":"Kalenterivuosi","v":2018}]
[null,null,{"$f":"Päivät_ja_viikot+DATE(Kalenterivuosi,3,1)-WEEKDAY(DATE(Kalenterivuosi,3,1),(Viikon_aloituspäivä=\"MA\")+1)+1","v":"2018-02-25"},"2018-02-26","2018-02-27","2018-02-28","2018-03-01","2018-03-02","2018-03-03"]
[null,null,{"$f":"IF(DAY(Kalenteripäivä)=1,CONCATENATE(\"Viikko \",WEEKNUM(Kalenteripäivä),\"/Päivä \",Kalenteripäivä-DATE(YEAR(Kalenteripäivä),1,0)),CONCATENATE(\"Päivä \",Kalenteripäivä-DATE(YEAR(Kalenteripäivä),1,0)))","v":"Päivä 56"},{"$f":"IF(DAY(Kalenteripäivä)=1,CONCATENATE(\"Viikko \",WEEKNUM(Kalenteripäivä),\"/Päivä \",Kalenteripäivä-DATE(YEAR(Kalenteripäivä),1,0)),CONCATENATE(\"Päivä \",Kalenteripäivä-DATE(YEAR(Kalenteripäivä),1,0)))","v":"Päivä 57"},{"$f":"IF(DAY(Kalenteripäivä)=1,CONCATENATE(\"Viikko \",WEEKNUM(Kalenteripäivä),\"/Päivä \",Kalenteripäivä-DATE(YEAR(Kalenteripäivä),1,0)),CONCATENATE(\"Päivä \",Kalenteripäivä-DATE(YEAR(Kalenteripäivä),1,0)))","v":"Päivä 58"},{"$f":"IF(DAY(Kalenteripäivä)=1,CONCATENATE(\"Viikko \",WEEKNUM(Kalenteripäivä),\"/Päivä \",Kalenteripäivä-DATE(YEAR(Kalenteripäivä),1,0)),CONCATENATE(\"Päivä \",Kalenteripäivä-DATE(YEAR(Kalenteripäivä),1,0)))","v":"Päivä 59"},{"$f":"IF(DAY(Kalenteripäivä)=1,CONCATENATE(\"Viikko \",WEEKNUM(Kalenteripäivä),\"/Päivä \",Kalenteripäivä-DATE(YEAR(Kalenteripäivä),1,0)),CONCATENATE(\"Päivä \",Kalenteripäivä-DATE(YEAR(Kalenteripäivä),1,0)))","v":"Viikko 9/Päivä 60"},{"$f":"IF(DAY(Kalenteripäivä)=1,CONCATENATE(\"Viikko \",WEEKNUM(Kalenteripäivä),\"/Päivä \",Kalenteripäivä-DATE(YEAR(Kalenteripäivä),1,0)),CONCATENATE(\"Päivä \",Kalenteripäivä-DATE(YEAR(Kalenteripäivä),1,0)))","v":"Päivä 61"},{"$f":"IF(DAY(Kalenteripäivä)=1,CONCATENATE(\"Viikko \",WEEKNUM(Kalenteripäivä),\"/Päivä \",Kalenteripäivä-DATE(YEAR(Kalenteripäivä),1,0)),CONCATENATE(\"Päivä \",Kalenteripäivä-DATE(YEAR(Kalenteripäivä),1,0)))","v":"Päivä 62"}]
[]
[null,null,{"$f":"Päivät_ja_viikot+DATE(Kalenterivuosi,3,1)-WEEKDAY(DATE(Kalenterivuosi,3,1),(Viikon_aloituspäivä=\"MA\")+1)+8","v":"2018-03-04"},"2018-03-05","2018-03-06","2018-03-07","2018-03-08","2018-03-09","2018-03-10"]
[null,null,{"$f":"IF(WEEKDAY(Kalenteripäivä)=Viikon_aloitusarvo,CONCATENATE(\"Viikko \",WEEKNUM(Kalenteripäivä),\"/Päivä \",Kalenteripäivä-DATE(YEAR(Kalenteripäivä),1,0)),CONCATENATE(\"Päivä \",Kalenteripäivä-DATE(YEAR(Kalenteripäivä),1,0)))","v":"Viikko 10/Päivä 63"},{"$f":"IF(WEEKDAY(Kalenteripäivä)=Viikon_aloitusarvo,CONCATENATE(\"Viikko \",WEEKNUM(Kalenteripäivä),\"/Päivä \",Kalenteripäivä-DATE(YEAR(Kalenteripäivä),1,0)),CONCATENATE(\"Päivä \",Kalenteripäivä-DATE(YEAR(Kalenteripäivä),1,0)))","v":"Päivä 64"},{"$f":"IF(WEEKDAY(Kalenteripäivä)=Viikon_aloitusarvo,CONCATENATE(\"Viikko \",WEEKNUM(Kalenteripäivä),\"/Päivä \",Kalenteripäivä-DATE(YEAR(Kalenteripäivä),1,0)),CONCATENATE(\"Päivä \",Kalenteripäivä-DATE(YEAR(Kalenteripäivä),1,0)))","v":"Päivä 65"},{"$f":"IF(WEEKDAY(Kalenteripäivä)=Viikon_aloitusarvo,CONCATENATE(\"Viikko \",WEEKNUM(Kalenteripäivä),\"/Päivä \",Kalenteripäivä-DATE(YEAR(Kalenteripäivä),1,0)),CONCATENATE(\"Päivä \",Kalenteripäivä-DATE(YEAR(Kalenteripäivä),1,0)))","v":"Päivä 66"},{"$f":"IF(WEEKDAY(Kalenteripäivä)=Viikon_aloitusarvo,CONCATENATE(\"Viikko \",WEEKNUM(Kalenteripäivä),\"/Päivä \",Kalenteripäivä-DATE(YEAR(Kalenteripäivä),1,0)),CONCATENATE(\"Päivä \",Kalenteripäivä-DATE(YEAR(Kalenteripäivä),1,0)))","v":"Päivä 67"},{"$f":"IF(WEEKDAY(Kalenteripäivä)=Viikon_aloitusarvo,CONCATENATE(\"Viikko \",WEEKNUM(Kalenteripäivä),\"/Päivä \",Kalenteripäivä-DATE(YEAR(Kalenteripäivä),1,0)),CONCATENATE(\"Päivä \",Kalenteripäivä-DATE(YEAR(Kalenteripäivä),1,0)))","v":"Päivä 68"},{"$f":"IF(WEEKDAY(Kalenteripäivä)=Viikon_aloitusarvo,CONCATENATE(\"Viikko \",WEEKNUM(Kalenteripäivä),\"/Päivä \",Kalenteripäivä-DATE(YEAR(Kalenteripäivä),1,0)),CONCATENATE(\"Päivä \",Kalenteripäivä-DATE(YEAR(Kalenteripäivä),1,0)))","v":"Päivä 69"}]
[]
[null,null,{"$f":"Päivät_ja_viikot+DATE(Kalenterivuosi,3,1)-WEEKDAY(DATE(Kalenterivuosi,3,1),(Viikon_aloituspäivä=\"MA\")+1)+15","v":"2018-03-11"},"2018-03-12","2018-03-13","2018-03-14","2018-03-15","2018-03-16","2018-03-17"]
[null,null,{"$f":"IF(WEEKDAY(Kalenteripäivä)=Viikon_aloitusarvo,CONCATENATE(\"Viikko \",WEEKNUM(Kalenteripäivä),\"/Päivä \",Kalenteripäivä-DATE(YEAR(Kalenteripäivä),1,0)),CONCATENATE(\"Päivä \",Kalenteripäivä-DATE(YEAR(Kalenteripäivä),1,0)))","v":"Viikko 11/Päivä 70"},{"$f":"IF(WEEKDAY(Kalenteripäivä)=Viikon_aloitusarvo,CONCATENATE(\"Viikko \",WEEKNUM(Kalenteripäivä),\"/Päivä \",Kalenteripäivä-DATE(YEAR(Kalenteripäivä),1,0)),CONCATENATE(\"Päivä \",Kalenteripäivä-DATE(YEAR(Kalenteripäivä),1,0)))","v":"Päivä 71"},{"$f":"IF(WEEKDAY(Kalenteripäivä)=Viikon_aloitusarvo,CONCATENATE(\"Viikko \",WEEKNUM(Kalenteripäivä),\"/Päivä \",Kalenteripäivä-DATE(YEAR(Kalenteripäivä),1,0)),CONCATENATE(\"Päivä \",Kalenteripäivä-DATE(YEAR(Kalenteripäivä),1,0)))","v":"Päivä 72"},{"$f":"IF(WEEKDAY(Kalenteripäivä)=Viikon_aloitusarvo,CONCATENATE(\"Viikko \",WEEKNUM(Kalenteripäivä),\"/Päivä \",Kalenteripäivä-DATE(YEAR(Kalenteripäivä),1,0)),CONCATENATE(\"Päivä \",Kalenteripäivä-DATE(YEAR(Kalenteripäivä),1,0)))","v":"Päivä 73"},{"$f":"IF(WEEKDAY(Kalenteripäivä)=Viikon_aloitusarvo,CONCATENATE(\"Viikko \",WEEKNUM(Kalenteripäivä),\"/Päivä \",Kalenteripäivä-DATE(YEAR(Kalenteripäivä),1,0)),CONCATENATE(\"Päivä \",Kalenteripäivä-DATE(YEAR(Kalenteripäivä),1,0)))","v":"Päivä 74"},{"$f":"IF(WEEKDAY(Kalenteripäivä)=Viikon_aloitusarvo,CONCATENATE(\"Viikko \",WEEKNUM(Kalenteripäivä),\"/Päivä \",Kalenteripäivä-DATE(YEAR(Kalenteripäivä),1,0)),CONCATENATE(\"Päivä \",Kalenteripäivä-DATE(YEAR(Kalenteripäivä),1,0)))","v":"Päivä 75"},{"$f":"IF(WEEKDAY(Kalenteripäivä)=Viikon_aloitusarvo,CONCATENATE(\"Viikko \",WEEKNUM(Kalenteripäivä),\"/Päivä \",Kalenteripäivä-DATE(YEAR(Kalenteripäivä),1,0)),CONCATENATE(\"Päivä \",Kalenteripäivä-DATE(YEAR(Kalenteripäivä),1,0)))","v":"Päivä 76"}]
[]
[null,null,{"$f":"Päivät_ja_viikot+DATE(Kalenterivuosi,3,1)-WEEKDAY(DATE(Kalenterivuosi,3,1),(Viikon_aloituspäivä=\"MA\")+1)+22","v":"2018-03-18"},"2018-03-19","2018-03-20","2018-03-21","2018-03-22","2018-03-23","2018-03-24"]
[null,null,{"$f":"IF(WEEKDAY(Kalenteripäivä)=Viikon_aloitusarvo,CONCATENATE(\"Viikko \",WEEKNUM(Kalenteripäivä),\"/Päivä \",Kalenteripäivä-DATE(YEAR(Kalenteripäivä),1,0)),CONCATENATE(\"Päivä \",Kalenteripäivä-DATE(YEAR(Kalenteripäivä),1,0)))","v":"Viikko 12/Päivä 77"},{"$f":"IF(WEEKDAY(Kalenteripäivä)=Viikon_aloitusarvo,CONCATENATE(\"Viikko \",WEEKNUM(Kalenteripäivä),\"/Päivä \",Kalenteripäivä-DATE(YEAR(Kalenteripäivä),1,0)),CONCATENATE(\"Päivä \",Kalenteripäivä-DATE(YEAR(Kalenteripäivä),1,0)))","v":"Päivä 78"},{"$f":"IF(WEEKDAY(Kalenteripäivä)=Viikon_aloitusarvo,CONCATENATE(\"Viikko \",WEEKNUM(Kalenteripäivä),\"/Päivä \",Kalenteripäivä-DATE(YEAR(Kalenteripäivä),1,0)),CONCATENATE(\"Päivä \",Kalenteripäivä-DATE(YEAR(Kalenteripäivä),1,0)))","v":"Päivä 79"},{"$f":"IF(WEEKDAY(Kalenteripäivä)=Viikon_aloitusarvo,CONCATENATE(\"Viikko \",WEEKNUM(Kalenteripäivä),\"/Päivä \",Kalenteripäivä-DATE(YEAR(Kalenteripäivä),1,0)),CONCATENATE(\"Päivä \",Kalenteripäivä-DATE(YEAR(Kalenteripäivä),1,0)))","v":"Päivä 80"},{"$f":"IF(WEEKDAY(Kalenteripäivä)=Viikon_aloitusarvo,CONCATENATE(\"Viikko \",WEEKNUM(Kalenteripäivä),\"/Päivä \",Kalenteripäivä-DATE(YEAR(Kalenteripäivä),1,0)),CONCATENATE(\"Päivä \",Kalenteripäivä-DATE(YEAR(Kalenteripäivä),1,0)))","v":"Päivä 81"},{"$f":"IF(WEEKDAY(Kalenteripäivä)=Viikon_aloitusarvo,CONCATENATE(\"Viikko \",WEEKNUM(Kalenteripäivä),\"/Päivä \",Kalenteripäivä-DATE(YEAR(Kalenteripäivä),1,0)),CONCATENATE(\"Päivä \",Kalenteripäivä-DATE(YEAR(Kalenteripäivä),1,0)))","v":"Päivä 82"},{"$f":"IF(WEEKDAY(Kalenteripäivä)=Viikon_aloitusarvo,CONCATENATE(\"Viikko \",WEEKNUM(Kalenteripäivä),\"/Päivä \",Kalenteripäivä-DATE(YEAR(Kalenteripäivä),1,0)),CONCATENATE(\"Päivä \",Kalenteripäivä-DATE(YEAR(Kalenteripäivä),1,0)))","v":"Päivä 83"}]
[]
[null,null,{"$f":"Päivät_ja_viikot+DATE(Kalenterivuosi,3,1)-WEEKDAY(DATE(Kalenterivuosi,3,1),(Viikon_aloituspäivä=\"MA\")+1)+29","v":"2018-03-25"},"2018-03-26","2018-03-27","2018-03-28","2018-03-29","2018-03-30","2018-03-31"]
[null,null,{"$f":"IF(WEEKDAY(Kalenteripäivä)=Viikon_aloitusarvo,CONCATENATE(\"Viikko \",WEEKNUM(Kalenteripäivä),\"/Päivä \",Kalenteripäivä-DATE(YEAR(Kalenteripäivä),1,0)),CONCATENATE(\"Päivä \",Kalenteripäivä-DATE(YEAR(Kalenteripäivä),1,0)))","v":"Viikko 13/Päivä 84"},{"$f":"IF(WEEKDAY(Kalenteripäivä)=Viikon_aloitusarvo,CONCATENATE(\"Viikko \",WEEKNUM(Kalenteripäivä),\"/Päivä \",Kalenteripäivä-DATE(YEAR(Kalenteripäivä),1,0)),CONCATENATE(\"Päivä \",Kalenteripäivä-DATE(YEAR(Kalenteripäivä),1,0)))","v":"Päivä 85"},{"$f":"IF(WEEKDAY(Kalenteripäivä)=Viikon_aloitusarvo,CONCATENATE(\"Viikko \",WEEKNUM(Kalenteripäivä),\"/Päivä \",Kalenteripäivä-DATE(YEAR(Kalenteripäivä),1,0)),CONCATENATE(\"Päivä \",Kalenteripäivä-DATE(YEAR(Kalenteripäivä),1,0)))","v":"Päivä 86"},{"$f":"IF(WEEKDAY(Kalenteripäivä)=Viikon_aloitusarvo,CONCATENATE(\"Viikko \",WEEKNUM(Kalenteripäivä),\"/Päivä \",Kalenteripäivä-DATE(YEAR(Kalenteripäivä),1,0)),CONCATENATE(\"Päivä \",Kalenteripäivä-DATE(YEAR(Kalenteripäivä),1,0)))","v":"Päivä 87"},{"$f":"IF(WEEKDAY(Kalenteripäivä)=Viikon_aloitusarvo,CONCATENATE(\"Viikko \",WEEKNUM(Kalenteripäivä),\"/Päivä \",Kalenteripäivä-DATE(YEAR(Kalenteripäivä),1,0)),CONCATENATE(\"Päivä \",Kalenteripäivä-DATE(YEAR(Kalenteripäivä),1,0)))","v":"Päivä 88"},{"$f":"IF(WEEKDAY(Kalenteripäivä)=Viikon_aloitusarvo,CONCATENATE(\"Viikko \",WEEKNUM(Kalenteripäivä),\"/Päivä \",Kalenteripäivä-DATE(YEAR(Kalenteripäivä),1,0)),CONCATENATE(\"Päivä \",Kalenteripäivä-DATE(YEAR(Kalenteripäivä),1,0)))","v":"Päivä 89"},{"$f":"IF(WEEKDAY(Kalenteripäivä)=Viikon_aloitusarvo,CONCATENATE(\"Viikko \",WEEKNUM(Kalenteripäivä),\"/Päivä \",Kalenteripäivä-DATE(YEAR(Kalenteripäivä),1,0)),CONCATENATE(\"Päivä \",Kalenteripäivä-DATE(YEAR(Kalenteripäivä),1,0)))","v":"Päivä 90"}]
[{"$nulls":4},"MUISTIINPANOT"]
[]
[null,null,{"$f":"Päivät_ja_viikot+DATE(Kalenterivuosi,3,1)-WEEKDAY(DATE(Kalenterivuosi,3,1),(Viikon_aloituspäivä=\"MA\")+1)+36","v":"2018-04-01"},"2018-04-02"]
[null,null,{"$f":"IF(WEEKDAY(Kalenteripäivä)=Viikon_aloitusarvo,CONCATENATE(\"Viikko \",WEEKNUM(Kalenteripäivä),\"/Päivä \",Kalenteripäivä-DATE(YEAR(Kalenteripäivä),1,0)),CONCATENATE(\"Päivä \",Kalenteripäivä-DATE(YEAR(Kalenteripäivä),1,0)))","v":"Viikko 14/Päivä 91"},{"$f":"IF(WEEKDAY(Kalenteripäivä)=Viikon_aloitusarvo,CONCATENATE(\"Viikko \",WEEKNUM(Kalenteripäivä),\"/Päivä \",Kalenteripäivä-DATE(YEAR(Kalenteripäivä),1,0)),CONCATENATE(\"Päivä \",Kalenteripäivä-DATE(YEAR(Kalenteripäivä),1,0)))","v":"Päivä 92"}]

{"sheet":"HUHTI","index":3,"n_rows":20,"n_cols":9,"rows_kept":20,"merged":[[16,2,17,2],[17,4,19,8]]}
[null,"HUHTI",{"$f":"UPPER(TEXT(Viikon_aloituspäivä,\"ddd\"))","v":"SU"},{"$f":"UPPER(TEXT(D3,\"aaa\"))","v":"MA"},"TI","KE","TO","PE","LA"]
[null,{"$f":"Kalenterivuosi","v":2018}]
[null,null,{"$f":"Päivät_ja_viikot+DATE(Kalenterivuosi,4,1)-WEEKDAY(DATE(Kalenterivuosi,4,1),(Viikon_aloituspäivä=\"MA\")+1)+1","v":"2018-04-01"},"2018-04-02","2018-04-03","2018-04-04","2018-04-05","2018-04-06","2018-04-07"]
[null,null,{"$f":"IF(DAY(Kalenteripäivä)=1,CONCATENATE(\"Viikko \",WEEKNUM(Kalenteripäivä),\"/Päivä \",Kalenteripäivä-DATE(YEAR(Kalenteripäivä),1,0)),CONCATENATE(\"Päivä \",Kalenteripäivä-DATE(YEAR(Kalenteripäivä),1,0)))","v":"Viikko 14/Päivä 91"},{"$f":"IF(DAY(Kalenteripäivä)=1,CONCATENATE(\"Viikko \",WEEKNUM(Kalenteripäivä),\"/Päivä \",Kalenteripäivä-DATE(YEAR(Kalenteripäivä),1,0)),CONCATENATE(\"Päivä \",Kalenteripäivä-DATE(YEAR(Kalenteripäivä),1,0)))","v":"Päivä 92"},{"$f":"IF(DAY(Kalenteripäivä)=1,CONCATENATE(\"Viikko \",WEEKNUM(Kalenteripäivä),\"/Päivä \",Kalenteripäivä-DATE(YEAR(Kalenteripäivä),1,0)),CONCATENATE(\"Päivä \",Kalenteripäivä-DATE(YEAR(Kalenteripäivä),1,0)))","v":"Päivä 93"},{"$f":"IF(DAY(Kalenteripäivä)=1,CONCATENATE(\"Viikko \",WEEKNUM(Kalenteripäivä),\"/Päivä \",Kalenteripäivä-DATE(YEAR(Kalenteripäivä),1,0)),CONCATENATE(\"Päivä \",Kalenteripäivä-DATE(YEAR(Kalenteripäivä),1,0)))","v":"Päivä 94"},{"$f":"IF(DAY(Kalenteripäivä)=1,CONCATENATE(\"Viikko \",WEEKNUM(Kalenteripäivä),\"/Päivä \",Kalenteripäivä-DATE(YEAR(Kalenteripäivä),1,0)),CONCATENATE(\"Päivä \",Kalenteripäivä-DATE(YEAR(Kalenteripäivä),1,0)))","v":"Päivä 95"},{"$f":"IF(DAY(Kalenteripäivä)=1,CONCATENATE(\"Viikko \",WEEKNUM(Kalenteripäivä),\"/Päivä \",Kalenteripäivä-DATE(YEAR(Kalenteripäivä),1,0)),CONCATENATE(\"Päivä \",Kalenteripäivä-DATE(YEAR(Kalenteripäivä),1,0)))","v":"Päivä 96"},{"$f":"IF(DAY(Kalenteripäivä)=1,CONCATENATE(\"Viikko \",WEEKNUM(Kalenteripäivä),\"/Päivä \",Kalenteripäivä-DATE(YEAR(Kalenteripäivä),1,0)),CONCATENATE(\"Päivä \",Kalenteripäivä-DATE(YEAR(Kalenteripäivä),1,0)))","v":"Päivä 97"}]
[]
[null,null,{"$f":"Päivät_ja_viikot+DATE(Kalenterivuosi,4,1)-WEEKDAY(DATE(Kalenterivuosi,4,1),(Viikon_aloituspäivä=\"MA\")+1)+8","v":"2018-04-08"},"2018-04-09","2018-04-10","2018-04-11","2018-04-12","2018-04-13","2018-04-14"]
[null,null,{"$f":"IF(WEEKDAY(Kalenteripäivä)=Viikon_aloitusarvo,CONCATENATE(\"Viikko \",WEEKNUM(Kalenteripäivä),\"/Päivä \",Kalenteripäivä-DATE(YEAR(Kalenteripäivä),1,0)),CONCATENATE(\"Päivä \",Kalenteripäivä-DATE(YEAR(Kalenteripäivä),1,0)))","v":"Viikko 15/Päivä 98"},{"$f":"IF(WEEKDAY(Kalenteripäivä)=Viikon_aloitusarvo,CONCATENATE(\"Viikko \",WEEKNUM(Kalenteripäivä),\"/Päivä \",Kalenteripäivä-DATE(YEAR(Kalenteripäivä),1,0)),CONCATENATE(\"Päivä \",Kalenteripäivä-DATE(YEAR(Kalenteripäivä),1,0)))","v":"Päivä 99"},{"$f":"IF(WEEKDAY(Kalenteripäivä)=Viikon_aloitusarvo,CONCATENATE(\"Viikko \",WEEKNUM(Kalenteripäivä),\"/Päivä \",Kalenteripäivä-DATE(YEAR(Kalenteripäivä),1,0)),CONCATENATE(\"Päivä \",Kalenteripäivä-DATE(YEAR(Kalenteripäivä),1,0)))","v":"Päivä 100"},{"$f":"IF(WEEKDAY(Kalenteripäivä)=Viikon_aloitusarvo,CONCATENATE(\"Viikko \",WEEKNUM(Kalenteripäivä),\"/Päivä \",Kalenteripäivä-DATE(YEAR(Kalenteripäivä),1,0)),CONCATENATE(\"Päivä \",Kalenteripäivä-DATE(YEAR(Kalenteripäivä),1,0)))","v":"Päivä 101"},{"$f":"IF(WEEKDAY(Kalenteripäivä)=Viikon_aloitusarvo,CONCATENATE(\"Viikko \",WEEKNUM(Kalenteripäivä),\"/Päivä \",Kalenteripäivä-DATE(YEAR(Kalenteripäivä),1,0)),CONCATENATE(\"Päivä \",Kalenteripäivä-DATE(YEAR(Kalenteripäivä),1,0)))","v":"Päivä 102"},{"$f":"IF(WEEKDAY(Kalenteripäivä)=Viikon_aloitusarvo,CONCATENATE(\"Viikko \",WEEKNUM(Kalenteripäivä),\"/Päivä \",Kalenteripäivä-DATE(YEAR(Kalenteripäivä),1,0)),CONCATENATE(\"Päivä \",Kalenteripäivä-DATE(YEAR(Kalenteripäivä),1,0)))","v":"Päivä 103"},{"$f":"IF(WEEKDAY(Kalenteripäivä)=Viikon_aloitusarvo,CONCATENATE(\"Viikko \",WEEKNUM(Kalenteripäivä),\"/Päivä \",Kalenteripäivä-DATE(YEAR(Kalenteripäivä),1,0)),CONCATENATE(\"Päivä \",Kalenteripäivä-DATE(YEAR(Kalenteripäivä),1,0)))","v":"Päivä 104"}]
[]
[null,null,{"$f":"Päivät_ja_viikot+DATE(Kalenterivuosi,4,1)-WEEKDAY(DATE(Kalenterivuosi,4,1),(Viikon_aloituspäivä=\"MA\")+1)+15","v":"2018-04-15"},"2018-04-16","2018-04-17","2018-04-18","2018-04-19","2018-04-20","2018-04-21"]
[null,null,{"$f":"IF(WEEKDAY(Kalenteripäivä)=Viikon_aloitusarvo,CONCATENATE(\"Viikko \",WEEKNUM(Kalenteripäivä),\"/Päivä \",Kalenteripäivä-DATE(YEAR(Kalenteripäivä),1,0)),CONCATENATE(\"Päivä \",Kalenteripäivä-DATE(YEAR(Kalenteripäivä),1,0)))","v":"Viikko 16/Päivä 105"},{"$f":"IF(WEEKDAY(Kalenteripäivä)=Viikon_aloitusarvo,CONCATENATE(\"Viikko \",WEEKNUM(Kalenteripäivä),\"/Päivä \",Kalenteripäivä-DATE(YEAR(Kalenteripäivä),1,0)),CONCATENATE(\"Päivä \",Kalenteripäivä-DATE(YEAR(Kalenteripäivä),1,0)))","v":"Päivä 106"},{"$f":"IF(WEEKDAY(Kalenteripäivä)=Viikon_aloitusarvo,CONCATENATE(\"Viikko \",WEEKNUM(Kalenteripäivä),\"/Päivä \",Kalenteripäivä-DATE(YEAR(Kalenteripäivä),1,0)),CONCATENATE(\"Päivä \",Kalenteripäivä-DATE(YEAR(Kalenteripäivä),1,0)))","v":"Päivä 107"},{"$f":"IF(WEEKDAY(Kalenteripäivä)=Viikon_aloitusarvo,CONCATENATE(\"Viikko \",WEEKNUM(Kalenteripäivä),\"/Päivä \",Kalenteripäivä-DATE(YEAR(Kalenteripäivä),1,0)),CONCATENATE(\"Päivä \",Kalenteripäivä-DATE(YEAR(Kalenteripäivä),1,0)))","v":"Päivä 108"},{"$f":"IF(WEEKDAY(Kalenteripäivä)=Viikon_aloitusarvo,CONCATENATE(\"Viikko \",WEEKNUM(Kalenteripäivä),\"/Päivä \",Kalenteripäivä-DATE(YEAR(Kalenteripäivä),1,0)),CONCATENATE(\"Päivä \",Kalenteripäivä-DATE(YEAR(Kalenteripäivä),1,0)))","v":"Päivä 109"},{"$f":"IF(WEEKDAY(Kalenteripäivä)=Viikon_aloitusarvo,CONCATENATE(\"Viikko \",WEEKNUM(Kalenteripäivä),\"/Päivä \",Kalenteripäivä-DATE(YEAR(Kalenteripäivä),1,0)),CONCATENATE(\"Päivä \",Kalenteripäivä-DATE(YEAR(Kalenteripäivä),1,0)))","v":"Päivä 110"},{"$f":"IF(WEEKDAY(Kalenteripäivä)=Viikon_aloitusarvo,CONCATENATE(\"Viikko \",WEEKNUM(Kalenteripäivä),\"/Päivä \",Kalenteripäivä-DATE(YEAR(Kalenteripäivä),1,0)),CONCATENATE(\"Päivä \",Kalenteripäivä-DATE(YEAR(Kalenteripäivä),1,0)))","v":"Päivä 111"}]
[]
[null,null,{"$f":"Päivät_ja_viikot+DATE(Kalenterivuosi,4,1)-WEEKDAY(DATE(Kalenterivuosi,4,1),(Viikon_aloituspäivä=\"MA\")+1)+22","v":"2018-04-22"},"2018-04-23","2018-04-24","2018-04-25","2018-04-26","2018-04-27","2018-04-28"]
[null,null,{"$f":"IF(WEEKDAY(Kalenteripäivä)=Viikon_aloitusarvo,CONCATENATE(\"Viikko \",WEEKNUM(Kalenteripäivä),\"/Päivä \",Kalenteripäivä-DATE(YEAR(Kalenteripäivä),1,0)),CONCATENATE(\"Päivä \",Kalenteripäivä-DATE(YEAR(Kalenteripäivä),1,0)))","v":"Viikko 17/Päivä 112"},{"$f":"IF(WEEKDAY(Kalenteripäivä)=Viikon_aloitusarvo,CONCATENATE(\"Viikko \",WEEKNUM(Kalenteripäivä),\"/Päivä \",Kalenteripäivä-DATE(YEAR(Kalenteripäivä),1,0)),CONCATENATE(\"Päivä \",Kalenteripäivä-DATE(YEAR(Kalenteripäivä),1,0)))","v":"Päivä 113"},{"$f":"IF(WEEKDAY(Kalenteripäivä)=Viikon_aloitusarvo,CONCATENATE(\"Viikko \",WEEKNUM(Kalenteripäivä),\"/Päivä \",Kalenteripäivä-DATE(YEAR(Kalenteripäivä),1,0)),CONCATENATE(\"Päivä \",Kalenteripäivä-DATE(YEAR(Kalenteripäivä),1,0)))","v":"Päivä 114"},{"$f":"IF(WEEKDAY(Kalenteripäivä)=Viikon_aloitusarvo,CONCATENATE(\"Viikko \",WEEKNUM(Kalenteripäivä),\"/Päivä \",Kalenteripäivä-DATE(YEAR(Kalenteripäivä),1,0)),CONCATENATE(\"Päivä \",Kalenteripäivä-DATE(YEAR(Kalenteripäivä),1,0)))","v":"Päivä 115"},{"$f":"IF(WEEKDAY(Kalenteripäivä)=Viikon_aloitusarvo,CONCATENATE(\"Viikko \",WEEKNUM(Kalenteripäivä),\"/Päivä \",Kalenteripäivä-DATE(YEAR(Kalenteripäivä),1,0)),CONCATENATE(\"Päivä \",Kalenteripäivä-DATE(YEAR(Kalenteripäivä),1,0)))","v":"Päivä 116"},{"$f":"IF(WEEKDAY(Kalenteripäivä)=Viikon_aloitusarvo,CONCATENATE(\"Viikko \",WEEKNUM(Kalenteripäivä),\"/Päivä \",Kalenteripäivä-DATE(YEAR(Kalenteripäivä),1,0)),CONCATENATE(\"Päivä \",Kalenteripäivä-DATE(YEAR(Kalenteripäivä),1,0)))","v":"Päivä 117"},{"$f":"IF(WEEKDAY(Kalenteripäivä)=Viikon_aloitusarvo,CONCATENATE(\"Viikko \",WEEKNUM(Kalenteripäivä),\"/Päivä \",Kalenteripäivä-DATE(YEAR(Kalenteripäivä),1,0)),CONCATENATE(\"Päivä \",Kalenteripäivä-DATE(YEAR(Kalenteripäivä),1,0)))","v":"Päivä 118"}]
[]
[null,null,{"$f":"Päivät_ja_viikot+DATE(Kalenterivuosi,4,1)-WEEKDAY(DATE(Kalenterivuosi,4,1),(Viikon_aloituspäivä=\"MA\")+1)+29","v":"2018-04-29"},"2018-04-30","2018-05-01","2018-05-02","2018-05-03","2018-05-04","2018-05-05"]
[null,null,{"$f":"IF(WEEKDAY(Kalenteripäivä)=Viikon_aloitusarvo,CONCATENATE(\"Viikko \",WEEKNUM(Kalenteripäivä),\"/Päivä \",Kalenteripäivä-DATE(YEAR(Kalenteripäivä),1,0)),CONCATENATE(\"Päivä \",Kalenteripäivä-DATE(YEAR(Kalenteripäivä),1,0)))","v":"Viikko 18/Päivä 119"},{"$f":"IF(WEEKDAY(Kalenteripäivä)=Viikon_aloitusarvo,CONCATENATE(\"Viikko \",WEEKNUM(Kalenteripäivä),\"/Päivä \",Kalenteripäivä-DATE(YEAR(Kalenteripäivä),1,0)),CONCATENATE(\"Päivä \",Kalenteripäivä-DATE(YEAR(Kalenteripäivä),1,0)))","v":"Päivä 120"},{"$f":"IF(WEEKDAY(Kalenteripäivä)=Viikon_aloitusarvo,CONCATENATE(\"Viikko \",WEEKNUM(Kalenteripäivä),\"/Päivä \",Kalenteripäivä-DATE(YEAR(Kalenteripäivä),1,0)),CONCATENATE(\"Päivä \",Kalenteripäivä-DATE(YEAR(Kalenteripäivä),1,0)))","v":"Päivä 121"},{"$f":"IF(WEEKDAY(Kalenteripäivä)=Viikon_aloitusarvo,CONCATENATE(\"Viikko \",WEEKNUM(Kalenteripäivä),\"/Päivä \",Kalenteripäivä-DATE(YEAR(Kalenteripäivä),1,0)),CONCATENATE(\"Päivä \",Kalenteripäivä-DATE(YEAR(Kalenteripäivä),1,0)))","v":"Päivä 122"},{"$f":"IF(WEEKDAY(Kalenteripäivä)=Viikon_aloitusarvo,CONCATENATE(\"Viikko \",WEEKNUM(Kalenteripäivä),\"/Päivä \",Kalenteripäivä-DATE(YEAR(Kalenteripäivä),1,0)),CONCATENATE(\"Päivä \",Kalenteripäivä-DATE(YEAR(Kalenteripäivä),1,0)))","v":"Päivä 123"},{"$f":"IF(WEEKDAY(Kalenteripäivä)=Viikon_aloitusarvo,CONCATENATE(\"Viikko \",WEEKNUM(Kalenteripäivä),\"/Päivä \",Kalenteripäivä-DATE(YEAR(Kalenteripäivä),1,0)),CONCATENATE(\"Päivä \",Kalenteripäivä-DATE(YEAR(Kalenteripäivä),1,0)))","v":"Päivä 124"},{"$f":"IF(WEEKDAY(Kalenteripäivä)=Viikon_aloitusarvo,CONCATENATE(\"Viikko \",WEEKNUM(Kalenteripäivä),\"/Päivä \",Kalenteripäivä-DATE(YEAR(Kalenteripäivä),1,0)),CONCATENATE(\"Päivä \",Kalenteripäivä-DATE(YEAR(Kalenteripäivä),1,0)))","v":"Päivä 125"}]
[{"$nulls":4},"MUISTIINPANOT"]
[]
[null,null,{"$f":"Päivät_ja_viikot+DATE(Kalenterivuosi,4,1)-WEEKDAY(DATE(Kalenterivuosi,4,1),(Viikon_aloituspäivä=\"MA\")+1)+36","v":"2018-05-06"},"2018-05-07"]
[null,null,{"$f":"IF(WEEKDAY(Kalenteripäivä)=Viikon_aloitusarvo,CONCATENATE(\"Viikko \",WEEKNUM(Kalenteripäivä),\"/Päivä \",Kalenteripäivä-DATE(YEAR(Kalenteripäivä),1,0)),CONCATENATE(\"Päivä \",Kalenteripäivä-DATE(YEAR(Kalenteripäivä),1,0)))","v":"Viikko 19/Päivä 126"},{"$f":"IF(WEEKDAY(Kalenteripäivä)=Viikon_aloitusarvo,CONCATENATE(\"Viikko \",WEEKNUM(Kalenteripäivä),\"/Päivä \",Kalenteripäivä-DATE(YEAR(Kalenteripäivä),1,0)),CONCATENATE(\"Päivä \",Kalenteripäivä-DATE(YEAR(Kalenteripäivä),1,0)))","v":"Päivä 127"}]

{"sheet":"TOUKO","index":4,"n_rows":20,"n_cols":9,"rows_kept":20,"merged":[[16,2,17,2],[17,4,19,8]]}
[null,"TOUKO",{"$f":"UPPER(TEXT(Viikon_aloituspäivä,\"ddd\"))","v":"SU"},{"$f":"UPPER(TEXT(D3,\"aaa\"))","v":"MA"},"TI","KE","TO","PE","LA"]
[null,{"$f":"Kalenterivuosi","v":2018}]
[null,null,{"$f":"Päivät_ja_viikot+DATE(Kalenterivuosi,5,1)-WEEKDAY(DATE(Kalenterivuosi,5,1),(Viikon_aloituspäivä=\"MA\")+1)+1","v":"2018-04-29"},"2018-04-30","2018-05-01","2018-05-02","2018-05-03","2018-05-04","2018-05-05"]
[null,null,{"$f":"IF(DAY(Kalenteripäivä)=1,CONCATENATE(\"Viikko \",WEEKNUM(Kalenteripäivä),\"/Päivä \",Kalenteripäivä-DATE(YEAR(Kalenteripäivä),1,0)),CONCATENATE(\"Päivä \",Kalenteripäivä-DATE(YEAR(Kalenteripäivä),1,0)))","v":"Päivä 119"},{"$f":"IF(DAY(Kalenteripäivä)=1,CONCATENATE(\"Viikko \",WEEKNUM(Kalenteripäivä),\"/Päivä \",Kalenteripäivä-DATE(YEAR(Kalenteripäivä),1,0)),CONCATENATE(\"Päivä \",Kalenteripäivä-DATE(YEAR(Kalenteripäivä),1,0)))","v":"Päivä 120"},{"$f":"IF(DAY(Kalenteripäivä)=1,CONCATENATE(\"Viikko \",WEEKNUM(Kalenteripäivä),\"/Päivä \",Kalenteripäivä-DATE(YEAR(Kalenteripäivä),1,0)),CONCATENATE(\"Päivä \",Kalenteripäivä-DATE(YEAR(Kalenteripäivä),1,0)))","v":"Viikko 18/Päivä 121"},{"$f":"IF(DAY(Kalenteripäivä)=1,CONCATENATE(\"Viikko \",WEEKNUM(Kalenteripäivä),\"/Päivä \",Kalenteripäivä-DATE(YEAR(Kalenteripäivä),1,0)),CONCATENATE(\"Päivä \",Kalenteripäivä-DATE(YEAR(Kalenteripäivä),1,0)))","v":"Päivä 122"},{"$f":"IF(DAY(Kalenteripäivä)=1,CONCATENATE(\"Viikko \",WEEKNUM(Kalenteripäivä),\"/Päivä \",Kalenteripäivä-DATE(YEAR(Kalenteripäivä),1,0)),CONCATENATE(\"Päivä \",Kalenteripäivä-DATE(YEAR(Kalenteripäivä),1,0)))","v":"Päivä 123"},{"$f":"IF(DAY(Kalenteripäivä)=1,CONCATENATE(\"Viikko \",WEEKNUM(Kalenteripäivä),\"/Päivä \",Kalenteripäivä-DATE(YEAR(Kalenteripäivä),1,0)),CONCATENATE(\"Päivä \",Kalenteripäivä-DATE(YEAR(Kalenteripäivä),1,0)))","v":"Päivä 124"},{"$f":"IF(DAY(Kalenteripäivä)=1,CONCATENATE(\"Viikko \",WEEKNUM(Kalenteripäivä),\"/Päivä \",Kalenteripäivä-DATE(YEAR(Kalenteripäivä),1,0)),CONCATENATE(\"Päivä \",Kalenteripäivä-DATE(YEAR(Kalenteripäivä),1,0)))","v":"Päivä 125"}]
[]
[null,null,{"$f":"Päivät_ja_viikot+DATE(Kalenterivuosi,5,1)-WEEKDAY(DATE(Kalenterivuosi,5,1),(Viikon_aloituspäivä=\"MA\")+1)+8","v":"2018-05-06"},"2018-05-07","2018-05-08","2018-05-09","2018-05-10","2018-05-11","2018-05-12"]
[null,null,{"$f":"IF(WEEKDAY(Kalenteripäivä)=Viikon_aloitusarvo,CONCATENATE(\"Viikko \",WEEKNUM(Kalenteripäivä),\"/Päivä \",Kalenteripäivä-DATE(YEAR(Kalenteripäivä),1,0)),CONCATENATE(\"Päivä \",Kalenteripäivä-DATE(YEAR(Kalenteripäivä),1,0)))","v":"Viikko 19/Päivä 126"},{"$f":"IF(WEEKDAY(Kalenteripäivä)=Viikon_aloitusarvo,CONCATENATE(\"Viikko \",WEEKNUM(Kalenteripäivä),\"/Päivä \",Kalenteripäivä-DATE(YEAR(Kalenteripäivä),1,0)),CONCATENATE(\"Päivä \",Kalenteripäivä-DATE(YEAR(Kalenteripäivä),1,0)))","v":"Päivä 127"},{"$f":"IF(WEEKDAY(Kalenteripäivä)=Viikon_aloitusarvo,CONCATENATE(\"Viikko \",WEEKNUM(Kalenteripäivä),\"/Päivä \",Kalenteripäivä-DATE(YEAR(Kalenteripäivä),1,0)),CONCATENATE(\"Päivä \",Kalenteripäivä-DATE(YEAR(Kalenteripäivä),1,0)))","v":"Päivä 128"},{"$f":"IF(WEEKDAY(Kalenteripäivä)=Viikon_aloitusarvo,CONCATENATE(\"Viikko \",WEEKNUM(Kalenteripäivä),\"/Päivä \",Kalenteripäivä-DATE(YEAR(Kalenteripäivä),1,0)),CONCATENATE(\"Päivä \",Kalenteripäivä-DATE(YEAR(Kalenteripäivä),1,0)))","v":"Päivä 129"},{"$f":"IF(WEEKDAY(Kalenteripäivä)=Viikon_aloitusarvo,CONCATENATE(\"Viikko \",WEEKNUM(Kalenteripäivä),\"/Päivä \",Kalenteripäivä-DATE(YEAR(Kalenteripäivä),1,0)),CONCATENATE(\"Päivä \",Kalenteripäivä-DATE(YEAR(Kalenteripäivä),1,0)))","v":"Päivä 130"},{"$f":"IF(WEEKDAY(Kalenteripäivä)=Viikon_aloitusarvo,CONCATENATE(\"Viikko \",WEEKNUM(Kalenteripäivä),\"/Päivä \",Kalenteripäivä-DATE(YEAR(Kalenteripäivä),1,0)),CONCATENATE(\"Päivä \",Kalenteripäivä-DATE(YEAR(Kalenteripäivä),1,0)))","v":"Päivä 131"},{"$f":"IF(WEEKDAY(Kalenteripäivä)=Viikon_aloitusarvo,CONCATENATE(\"Viikko \",WEEKNUM(Kalenteripäivä),\"/Päivä \",Kalenteripäivä-DATE(YEAR(Kalenteripäivä),1,0)),CONCATENATE(\"Päivä \",Kalenteripäivä-DATE(YEAR(Kalenteripäivä),1,0)))","v":"Päivä 132"}]
[]
[null,null,{"$f":"Päivät_ja_viikot+DATE(Kalenterivuosi,5,1)-WEEKDAY(DATE(Kalenterivuosi,5,1),(Viikon_aloituspäivä=\"MA\")+1)+15","v":"2018-05-13"},"2018-05-14","2018-05-15","2018-05-16","2018-05-17","2018-05-18","2018-05-19"]
[null,null,{"$f":"IF(WEEKDAY(Kalenteripäivä)=Viikon_aloitusarvo,CONCATENATE(\"Viikko \",WEEKNUM(Kalenteripäivä),\"/Päivä \",Kalenteripäivä-DATE(YEAR(Kalenteripäivä),1,0)),CONCATENATE(\"Päivä \",Kalenteripäivä-DATE(YEAR(Kalenteripäivä),1,0)))","v":"Viikko 20/Päivä 133"},{"$f":"IF(WEEKDAY(Kalenteripäivä)=Viikon_aloitusarvo,CONCATENATE(\"Viikko \",WEEKNUM(Kalenteripäivä),\"/Päivä \",Kalenteripäivä-DATE(YEAR(Kalenteripäivä),1,0)),CONCATENATE(\"Päivä \",Kalenteripäivä-DATE(YEAR(Kalenteripäivä),1,0)))","v":"Päivä 134"},{"$f":"IF(WEEKDAY(Kalenteripäivä)=Viikon_aloitusarvo,CONCATENATE(\"Viikko \",WEEKNUM(Kalenteripäivä),\"/Päivä \",Kalenteripäivä-DATE(YEAR(Kalenteripäivä),1,0)),CONCATENATE(\"Päivä \",Kalenteripäivä-DATE(YEAR(Kalenteripäivä),1,0)))","v":"Päivä 135"},{"$f":"IF(WEEKDAY(Kalenteripäivä)=Viikon_aloitusarvo,CONCATENATE(\"Viikko \",WEEKNUM(Kalenteripäivä),\"/Päivä \",Kalenteripäivä-DATE(YEAR(Kalenteripäivä),1,0)),CONCATENATE(\"Päivä \",Kalenteripäivä-DATE(YEAR(Kalenteripäivä),1,0)))","v":"Päivä 136"},{"$f":"IF(WEEKDAY(Kalenteripäivä)=Viikon_aloitusarvo,CONCATENATE(\"Viikko \",WEEKNUM(Kalenteripäivä),\"/Päivä \",Kalenteripäivä-DATE(YEAR(Kalenteripäivä),1,0)),CONCATENATE(\"Päivä \",Kalenteripäivä-DATE(YEAR(Kalenteripäivä),1,0)))","v":"Päivä 137"},{"$f":"IF(WEEKDAY(Kalenteripäivä)=Viikon_aloitusarvo,CONCATENATE(\"Viikko \",WEEKNUM(Kalenteripäivä),\"/Päivä \",Kalenteripäivä-DATE(YEAR(Kalenteripäivä),1,0)),CONCATENATE(\"Päivä \",Kalenteripäivä-DATE(YEAR(Kalenteripäivä),1,0)))","v":"Päivä 138"},{"$f":"IF(WEEKDAY(Kalenteripäivä)=Viikon_aloitusarvo,CONCATENATE(\"Viikko \",WEEKNUM(Kalenteripäivä),\"/Päivä \",Kalenteripäivä-DATE(YEAR(Kalenteripäivä),1,0)),CONCATENATE(\"Päivä \",Kalenteripäivä-DATE(YEAR(Kalenteripäivä),1,0)))","v":"Päivä 139"}]
[]
[null,null,{"$f":"Päivät_ja_viikot+DATE(Kalenterivuosi,5,1)-WEEKDAY(DATE(Kalenterivuosi,5,1),(Viikon_aloituspäivä=\"MA\")+1)+22","v":"2018-05-20"},"2018-05-21","2018-05-22","2018-05-23","2018-05-24","2018-05-25","2018-05-26"]
[null,null,{"$f":"IF(WEEKDAY(Kalenteripäivä)=Viikon_aloitusarvo,CONCATENATE(\"Viikko \",WEEKNUM(Kalenteripäivä),\"/Päivä \",Kalenteripäivä-DATE(YEAR(Kalenteripäivä),1,0)),CONCATENATE(\"Päivä \",Kalenteripäivä-DATE(YEAR(Kalenteripäivä),1,0)))","v":"Viikko 21/Päivä 140"},{"$f":"IF(WEEKDAY(Kalenteripäivä)=Viikon_aloitusarvo,CONCATENATE(\"Viikko \",WEEKNUM(Kalenteripäivä),\"/Päivä \",Kalenteripäivä-DATE(YEAR(Kalenteripäivä),1,0)),CONCATENATE(\"Päivä \",Kalenteripäivä-DATE(YEAR(Kalenteripäivä),1,0)))","v":"Päivä 141"},{"$f":"IF(WEEKDAY(Kalenteripäivä)=Viikon_aloitusarvo,CONCATENATE(\"Viikko \",WEEKNUM(Kalenteripäivä),\"/Päivä \",Kalenteripäivä-DATE(YEAR(Kalenteripäivä),1,0)),CONCATENATE(\"Päivä \",Kalenteripäivä-DATE(YEAR(Kalenteripäivä),1,0)))","v":"Päivä 142"},{"$f":"IF(WEEKDAY(Kalenteripäivä)=Viikon_aloitusarvo,CONCATENATE(\"Viikko \",WEEKNUM(Kalenteripäivä),\"/Päivä \",Kalenteripäivä-DATE(YEAR(Kalenteripäivä),1,0)),CONCATENATE(\"Päivä \",Kalenteripäivä-DATE(YEAR(Kalenteripäivä),1,0)))","v":"Päivä 143"},{"$f":"IF(WEEKDAY(Kalenteripäivä)=Viikon_aloitusarvo,CONCATENATE(\"Viikko \",WEEKNUM(Kalenteripäivä),\"/Päivä \",Kalenteripäivä-DATE(YEAR(Kalenteripäivä),1,0)),CONCATENATE(\"Päivä \",Kalenteripäivä-DATE(YEAR(Kalenteripäivä),1,0)))","v":"Päivä 144"},{"$f":"IF(WEEKDAY(Kalenteripäivä)=Viikon_aloitusarvo,CONCATENATE(\"Viikko \",WEEKNUM(Kalenteripäivä),\"/Päivä \",Kalenteripäivä-DATE(YEAR(Kalenteripäivä),1,0)),CONCATENATE(\"Päivä \",Kalenteripäivä-DATE(YEAR(Kalenteripäivä),1,0)))","v":"Päivä 145"},{"$f":"IF(WEEKDAY(Kalenteripäivä)=Viikon_aloitusarvo,CONCATENATE(\"Viikko \",WEEKNUM(Kalenteripäivä),\"/Päivä \",Kalenteripäivä-DATE(YEAR(Kalenteripäivä),1,0)),CONCATENATE(\"Päivä \",Kalenteripäivä-DATE(YEAR(Kalenteripäivä),1,0)))","v":"Päivä 146"}]
[]
[null,null,{"$f":"Päivät_ja_viikot+DATE(Kalenterivuosi,5,1)-WEEKDAY(DATE(Kalenterivuosi,5,1),(Viikon_aloituspäivä=\"MA\")+1)+29","v":"2018-05-27"},"2018-05-28","2018-05-29","2018-05-30","2018-05-31","2018-06-01","2018-06-02"]
[null,null,{"$f":"IF(WEEKDAY(Kalenteripäivä)=Viikon_aloitusarvo,CONCATENATE(\"Viikko \",WEEKNUM(Kalenteripäivä),\"/Päivä \",Kalenteripäivä-DATE(YEAR(Kalenteripäivä),1,0)),CONCATENATE(\"Päivä \",Kalenteripäivä-DATE(YEAR(Kalenteripäivä),1,0)))","v":"Viikko 22/Päivä 147"},{"$f":"IF(WEEKDAY(Kalenteripäivä)=Viikon_aloitusarvo,CONCATENATE(\"Viikko \",WEEKNUM(Kalenteripäivä),\"/Päivä \",Kalenteripäivä-DATE(YEAR(Kalenteripäivä),1,0)),CONCATENATE(\"Päivä \",Kalenteripäivä-DATE(YEAR(Kalenteripäivä),1,0)))","v":"Päivä 148"},{"$f":"IF(WEEKDAY(Kalenteripäivä)=Viikon_aloitusarvo,CONCATENATE(\"Viikko \",WEEKNUM(Kalenteripäivä),\"/Päivä \",Kalenteripäivä-DATE(YEAR(Kalenteripäivä),1,0)),CONCATENATE(\"Päivä \",Kalenteripäivä-DATE(YEAR(Kalenteripäivä),1,0)))","v":"Päivä 149"},{"$f":"IF(WEEKDAY(Kalenteripäivä)=Viikon_aloitusarvo,CONCATENATE(\"Viikko \",WEEKNUM(Kalenteripäivä),\"/Päivä \",Kalenteripäivä-DATE(YEAR(Kalenteripäivä),1,0)),CONCATENATE(\"Päivä \",Kalenteripäivä-DATE(YEAR(Kalenteripäivä),1,0)))","v":"Päivä 150"},{"$f":"IF(WEEKDAY(Kalenteripäivä)=Viikon_aloitusarvo,CONCATENATE(\"Viikko \",WEEKNUM(Kalenteripäivä),\"/Päivä \",Kalenteripäivä-DATE(YEAR(Kalenteripäivä),1,0)),CONCATENATE(\"Päivä \",Kalenteripäivä-DATE(YEAR(Kalenteripäivä),1,0)))","v":"Päivä 151"},{"$f":"IF(WEEKDAY(Kalenteripäivä)=Viikon_aloitusarvo,CONCATENATE(\"Viikko \",WEEKNUM(Kalenteripäivä),\"/Päivä \",Kalenteripäivä-DATE(YEAR(Kalenteripäivä),1,0)),CONCATENATE(\"Päivä \",Kalenteripäivä-DATE(YEAR(Kalenteripäivä),1,0)))","v":"Päivä 152"},{"$f":"IF(WEEKDAY(Kalenteripäivä)=Viikon_aloitusarvo,CONCATENATE(\"Viikko \",WEEKNUM(Kalenteripäivä),\"/Päivä \",Kalenteripäivä-DATE(YEAR(Kalenteripäivä),1,0)),CONCATENATE(\"Päivä \",Kalenteripäivä-DATE(YEAR(Kalenteripäivä),1,0)))","v":"Päivä 153"}]
[{"$nulls":4},"MUISTIINPANOT"]
[]
[null,null,{"$f":"Päivät_ja_viikot+DATE(Kalenterivuosi,5,1)-WEEKDAY(DATE(Kalenterivuosi,5,1),(Viikon_aloituspäivä=\"MA\")+1)+36","v":"2018-06-03"},"2018-06-04"]
[null,null,{"$f":"IF(WEEKDAY(Kalenteripäivä)=Viikon_aloitusarvo,CONCATENATE(\"Viikko \",WEEKNUM(Kalenteripäivä),\"/Päivä \",Kalenteripäivä-DATE(YEAR(Kalenteripäivä),1,0)),CONCATENATE(\"Päivä \",Kalenteripäivä-DATE(YEAR(Kalenteripäivä),1,0)))","v":"Viikko 23/Päivä 154"},{"$f":"IF(WEEKDAY(Kalenteripäivä)=Viikon_aloitusarvo,CONCATENATE(\"Viikko \",WEEKNUM(Kalenteripäivä),\"/Päivä \",Kalenteripäivä-DATE(YEAR(Kalenteripäivä),1,0)),CONCATENATE(\"Päivä \",Kalenteripäivä-DATE(YEAR(Kalenteripäivä),1,0)))","v":"Päivä 155"}]

{"sheet":"KESÄ","index":5,"n_rows":20,"n_cols":9,"rows_kept":20,"merged":[[16,2,17,2],[17,4,19,8]]}
[null,"KESÄ",{"$f":"UPPER(TEXT(Viikon_aloituspäivä,\"ddd\"))","v":"SU"},{"$f":"UPPER(TEXT(D3,\"aaa\"))","v":"MA"},"TI","KE","TO","PE","LA"]
[null,{"$f":"Kalenterivuosi","v":2018}]
[null,null,{"$f":"Päivät_ja_viikot+DATE(Kalenterivuosi,6,1)-WEEKDAY(DATE(Kalenterivuosi,6,1),(Viikon_aloituspäivä=\"MA\")+1)+1","v":"2018-05-27"},"2018-05-28","2018-05-29","2018-05-30","2018-05-31","2018-06-01","2018-06-02"]
[null,null,{"$f":"IF(DAY(Kalenteripäivä)=1,CONCATENATE(\"Viikko \",WEEKNUM(Kalenteripäivä),\"/Päivä \",Kalenteripäivä-DATE(YEAR(Kalenteripäivä),1,0)),CONCATENATE(\"Päivä \",Kalenteripäivä-DATE(YEAR(Kalenteripäivä),1,0)))","v":"Päivä 147"},{"$f":"IF(DAY(Kalenteripäivä)=1,CONCATENATE(\"Viikko \",WEEKNUM(Kalenteripäivä),\"/Päivä \",Kalenteripäivä-DATE(YEAR(Kalenteripäivä),1,0)),CONCATENATE(\"Päivä \",Kalenteripäivä-DATE(YEAR(Kalenteripäivä),1,0)))","v":"Päivä 148"},{"$f":"IF(DAY(Kalenteripäivä)=1,CONCATENATE(\"Viikko \",WEEKNUM(Kalenteripäivä),\"/Päivä \",Kalenteripäivä-DATE(YEAR(Kalenteripäivä),1,0)),CONCATENATE(\"Päivä \",Kalenteripäivä-DATE(YEAR(Kalenteripäivä),1,0)))","v":"Päivä 149"},{"$f":"IF(DAY(Kalenteripäivä)=1,CONCATENATE(\"Viikko \",WEEKNUM(Kalenteripäivä),\"/Päivä \",Kalenteripäivä-DATE(YEAR(Kalenteripäivä),1,0)),CONCATENATE(\"Päivä \",Kalenteripäivä-DATE(YEAR(Kalenteripäivä),1,0)))","v":"Päivä 150"},{"$f":"IF(DAY(Kalenteripäivä)=1,CONCATENATE(\"Viikko \",WEEKNUM(Kalenteripäivä),\"/Päivä \",Kalenteripäivä-DATE(YEAR(Kalenteripäivä),1,0)),CONCATENATE(\"Päivä \",Kalenteripäivä-DATE(YEAR(Kalenteripäivä),1,0)))","v":"Päivä 151"},{"$f":"IF(DAY(Kalenteripäivä)=1,CONCATENATE(\"Viikko \",WEEKNUM(Kalenteripäivä),\"/Päivä \",Kalenteripäivä-DATE(YEAR(Kalenteripäivä),1,0)),CONCATENATE(\"Päivä \",Kalenteripäivä-DATE(YEAR(Kalenteripäivä),1,0)))","v":"Viikko 22/Päivä 152"},{"$f":"IF(DAY(Kalenteripäivä)=1,CONCATENATE(\"Viikko \",WEEKNUM(Kalenteripäivä),\"/Päivä \",Kalenteripäivä-DATE(YEAR(Kalenteripäivä),1,0)),CONCATENATE(\"Päivä \",Kalenteripäivä-DATE(YEAR(Kalenteripäivä),1,0)))","v":"Päivä 153"}]
[]
[null,null,{"$f":"Päivät_ja_viikot+DATE(Kalenterivuosi,6,1)-WEEKDAY(DATE(Kalenterivuosi,6,1),(Viikon_aloituspäivä=\"MA\")+1)+8","v":"2018-06-03"},"2018-06-04","2018-06-05","2018-06-06","2018-06-07","2018-06-08","2018-06-09"]
[null,null,{"$f":"IF(WEEKDAY(Kalenteripäivä)=Viikon_aloitusarvo,CONCATENATE(\"Viikko \",WEEKNUM(Kalenteripäivä),\"/Päivä \",Kalenteripäivä-DATE(YEAR(Kalenteripäivä),1,0)),CONCATENATE(\"Päivä \",Kalenteripäivä-DATE(YEAR(Kalenteripäivä),1,0)))","v":"Viikko 23/Päivä 154"},{"$f":"IF(WEEKDAY(Kalenteripäivä)=Viikon_aloitusarvo,CONCATENATE(\"Viikko \",WEEKNUM(Kalenteripäivä),\"/Päivä \",Kalenteripäivä-DATE(YEAR(Kalenteripäivä),1,0)),CONCATENATE(\"Päivä \",Kalenteripäivä-DATE(YEAR(Kalenteripäivä),1,0)))","v":"Päivä 155"},{"$f":"IF(WEEKDAY(Kalenteripäivä)=Viikon_aloitusarvo,CONCATENATE(\"Viikko \",WEEKNUM(Kalenteripäivä),\"/Päivä \",Kalenteripäivä-DATE(YEAR(Kalenteripäivä),1,0)),CONCATENATE(\"Päivä \",Kalenteripäivä-DATE(YEAR(Kalenteripäivä),1,0)))","v":"Päivä 156"},{"$f":"IF(WEEKDAY(Kalenteripäivä)=Viikon_aloitusarvo,CONCATENATE(\"Viikko \",WEEKNUM(Kalenteripäivä),\"/Päivä \",Kalenteripäivä-DATE(YEAR(Kalenteripäivä),1,0)),CONCATENATE(\"Päivä \",Kalenteripäivä-DATE(YEAR(Kalenteripäivä),1,0)))","v":"Päivä 157"},{"$f":"IF(WEEKDAY(Kalenteripäivä)=Viikon_aloitusarvo,CONCATENATE(\"Viikko \",WEEKNUM(Kalenteripäivä),\"/Päivä \",Kalenteripäivä-DATE(YEAR(Kalenteripäivä),1,0)),CONCATENATE(\"Päivä \",Kalenteripäivä-DATE(YEAR(Kalenteripäivä),1,0)))","v":"Päivä 158"},{"$f":"IF(WEEKDAY(Kalenteripäivä)=Viikon_aloitusarvo,CONCATENATE(\"Viikko \",WEEKNUM(Kalenteripäivä),\"/Päivä \",Kalenteripäivä-DATE(YEAR(Kalenteripäivä),1,0)),CONCATENATE(\"Päivä \",Kalenteripäivä-DATE(YEAR(Kalenteripäivä),1,0)))","v":"Päivä 159"},{"$f":"IF(WEEKDAY(Kalenteripäivä)=Viikon_aloitusarvo,CONCATENATE(\"Viikko \",WEEKNUM(Kalenteripäivä),\"/Päivä \",Kalenteripäivä-DATE(YEAR(Kalenteripäivä),1,0)),CONCATENATE(\"Päivä \",Kalenteripäivä-DATE(YEAR(Kalenteripäivä),1,0)))","v":"Päivä 160"}]
[]
[null,null,{"$f":"Päivät_ja_viikot+DATE(Kalenterivuosi,6,1)-WEEKDAY(DATE(Kalenterivuosi,6,1),(Viikon_aloituspäivä=\"MA\")+1)+15","v":"2018-06-10"},"2018-06-11","2018-06-12","2018-06-13","2018-06-14","2018-06-15","2018-06-16"]
[null,null,{"$f":"IF(WEEKDAY(Kalenteripäivä)=Viikon_aloitusarvo,CONCATENATE(\"Viikko \",WEEKNUM(Kalenteripäivä),\"/Päivä \",Kalenteripäivä-DATE(YEAR(Kalenteripäivä),1,0)),CONCATENATE(\"Päivä \",Kalenteripäivä-DATE(YEAR(Kalenteripäivä),1,0)))","v":"Viikko 24/Päivä 161"},{"$f":"IF(WEEKDAY(Kalenteripäivä)=Viikon_aloitusarvo,CONCATENATE(\"Viikko \",WEEKNUM(Kalenteripäivä),\"/Päivä \",Kalenteripäivä-DATE(YEAR(Kalenteripäivä),1,0)),CONCATENATE(\"Päivä \",Kalenteripäivä-DATE(YEAR(Kalenteripäivä),1,0)))","v":"Päivä 162"},{"$f":"IF(WEEKDAY(Kalenteripäivä)=Viikon_aloitusarvo,CONCATENATE(\"Viikko \",WEEKNUM(Kalenteripäivä),\"/Päivä \",Kalenteripäivä-DATE(YEAR(Kalenteripäivä),1,0)),CONCATENATE(\"Päivä \",Kalenteripäivä-DATE(YEAR(Kalenteripäivä),1,0)))","v":"Päivä 163"},{"$f":"IF(WEEKDAY(Kalenteripäivä)=Viikon_aloitusarvo,CONCATENATE(\"Viikko \",WEEKNUM(Kalenteripäivä),\"/Päivä \",Kalenteripäivä-DATE(YEAR(Kalenteripäivä),1,0)),CONCATENATE(\"Päivä \",Kalenteripäivä-DATE(YEAR(Kalenteripäivä),1,0)))","v":"Päivä 164"},{"$f":"IF(WEEKDAY(Kalenteripäivä)=Viikon_aloitusarvo,CONCATENATE(\"Viikko \",WEEKNUM(Kalenteripäivä),\"/Päivä \",Kalenteripäivä-DATE(YEAR(Kalenteripäivä),1,0)),CONCATENATE(\"Päivä \",Kalenteripäivä-DATE(YEAR(Kalenteripäivä),1,0)))","v":"Päivä 165"},{"$f":"IF(WEEKDAY(Kalenteripäivä)=Viikon_aloitusarvo,CONCATENATE(\"Viikko \",WEEKNUM(Kalenteripäivä),\"/Päivä \",Kalenteripäivä-DATE(YEAR(Kalenteripäivä),1,0)),CONCATENATE(\"Päivä \",Kalenteripäivä-DATE(YEAR(Kalenteripäivä),1,0)))","v":"Päivä 166"},{"$f":"IF(WEEKDAY(Kalenteripäivä)=Viikon_aloitusarvo,CONCATENATE(\"Viikko \",WEEKNUM(Kalenteripäivä),\"/Päivä \",Kalenteripäivä-DATE(YEAR(Kalenteripäivä),1,0)),CONCATENATE(\"Päivä \",Kalenteripäivä-DATE(YEAR(Kalenteripäivä),1,0)))","v":"Päivä 167"}]
[]
[null,null,{"$f":"Päivät_ja_viikot+DATE(Kalenterivuosi,6,1)-WEEKDAY(DATE(Kalenterivuosi,6,1),(Viikon_aloituspäivä=\"MA\")+1)+22","v":"2018-06-17"},"2018-06-18","2018-06-19","2018-06-20","2018-06-21","2018-06-22","2018-06-23"]
[null,null,{"$f":"IF(WEEKDAY(Kalenteripäivä)=Viikon_aloitusarvo,CONCATENATE(\"Viikko \",WEEKNUM(Kalenteripäivä),\"/Päivä \",Kalenteripäivä-DATE(YEAR(Kalenteripäivä),1,0)),CONCATENATE(\"Päivä \",Kalenteripäivä-DATE(YEAR(Kalenteripäivä),1,0)))","v":"Viikko 25/Päivä 168"},{"$f":"IF(WEEKDAY(Kalenteripäivä)=Viikon_aloitusarvo,CONCATENATE(\"Viikko \",WEEKNUM(Kalenteripäivä),\"/Päivä \",Kalenteripäivä-DATE(YEAR(Kalenteripäivä),1,0)),CONCATENATE(\"Päivä \",Kalenteripäivä-DATE(YEAR(Kalenteripäivä),1,0)))","v":"Päivä 169"},{"$f":"IF(WEEKDAY(Kalenteripäivä)=Viikon_aloitusarvo,CONCATENATE(\"Viikko \",WEEKNUM(Kalenteripäivä),\"/Päivä \",Kalenteripäivä-DATE(YEAR(Kalenteripäivä),1,0)),CONCATENATE(\"Päivä \",Kalenteripäivä-DATE(YEAR(Kalenteripäivä),1,0)))","v":"Päivä 170"},{"$f":"IF(WEEKDAY(Kalenteripäivä)=Viikon_aloitusarvo,CONCATENATE(\"Viikko \",WEEKNUM(Kalenteripäivä),\"/Päivä \",Kalenteripäivä-DATE(YEAR(Kalenteripäivä),1,0)),CONCATENATE(\"Päivä \",Kalenteripäivä-DATE(YEAR(Kalenteripäivä),1,0)))","v":"Päivä 171"},{"$f":"IF(WEEKDAY(Kalenteripäivä)=Viikon_aloitusarvo,CONCATENATE(\"Viikko \",WEEKNUM(Kalenteripäivä),\"/Päivä \",Kalenteripäivä-DATE(YEAR(Kalenteripäivä),1,0)),CONCATENATE(\"Päivä \",Kalenteripäivä-DATE(YEAR(Kalenteripäivä),1,0)))","v":"Päivä 172"},{"$f":"IF(WEEKDAY(Kalenteripäivä)=Viikon_aloitusarvo,CONCATENATE(\"Viikko \",WEEKNUM(Kalenteripäivä),\"/Päivä \",Kalenteripäivä-DATE(YEAR(Kalenteripäivä),1,0)),CONCATENATE(\"Päivä \",Kalenteripäivä-DATE(YEAR(Kalenteripäivä),1,0)))","v":"Päivä 173"},{"$f":"IF(WEEKDAY(Kalenteripäivä)=Viikon_aloitusarvo,CONCATENATE(\"Viikko \",WEEKNUM(Kalenteripäivä),\"/Päivä \",Kalenteripäivä-DATE(YEAR(Kalenteripäivä),1,0)),CONCATENATE(\"Päivä \",Kalenteripäivä-DATE(YEAR(Kalenteripäivä),1,0)))","v":"Päivä 174"}]
[]
[null,null,{"$f":"Päivät_ja_viikot+DATE(Kalenterivuosi,6,1)-WEEKDAY(DATE(Kalenterivuosi,6,1),(Viikon_aloituspäivä=\"MA\")+1)+29","v":"2018-06-24"},"2018-06-25","2018-06-26","2018-06-27","2018-06-28","2018-06-29","2018-06-30"]
[null,null,{"$f":"IF(WEEKDAY(Kalenteripäivä)=Viikon_aloitusarvo,CONCATENATE(\"Viikko \",WEEKNUM(Kalenteripäivä),\"/Päivä \",Kalenteripäivä-DATE(YEAR(Kalenteripäivä),1,0)),CONCATENATE(\"Päivä \",Kalenteripäivä-DATE(YEAR(Kalenteripäivä),1,0)))","v":"Viikko 26/Päivä 175"},{"$f":"IF(WEEKDAY(Kalenteripäivä)=Viikon_aloitusarvo,CONCATENATE(\"Viikko \",WEEKNUM(Kalenteripäivä),\"/Päivä \",Kalenteripäivä-DATE(YEAR(Kalenteripäivä),1,0)),CONCATENATE(\"Päivä \",Kalenteripäivä-DATE(YEAR(Kalenteripäivä),1,0)))","v":"Päivä 176"},{"$f":"IF(WEEKDAY(Kalenteripäivä)=Viikon_aloitusarvo,CONCATENATE(\"Viikko \",WEEKNUM(Kalenteripäivä),\"/Päivä \",Kalenteripäivä-DATE(YEAR(Kalenteripäivä),1,0)),CONCATENATE(\"Päivä \",Kalenteripäivä-DATE(YEAR(Kalenteripäivä),1,0)))","v":"Päivä 177"},{"$f":"IF(WEEKDAY(Kalenteripäivä)=Viikon_aloitusarvo,CONCATENATE(\"Viikko \",WEEKNUM(Kalenteripäivä),\"/Päivä \",Kalenteripäivä-DATE(YEAR(Kalenteripäivä),1,0)),CONCATENATE(\"Päivä \",Kalenteripäivä-DATE(YEAR(Kalenteripäivä),1,0)))","v":"Päivä 178"},{"$f":"IF(WEEKDAY(Kalenteripäivä)=Viikon_aloitusarvo,CONCATENATE(\"Viikko \",WEEKNUM(Kalenteripäivä),\"/Päivä \",Kalenteripäivä-DATE(YEAR(Kalenteripäivä),1,0)),CONCATENATE(\"Päivä \",Kalenteripäivä-DATE(YEAR(Kalenteripäivä),1,0)))","v":"Päivä 179"},{"$f":"IF(WEEKDAY(Kalenteripäivä)=Viikon_aloitusarvo,CONCATENATE(\"Viikko \",WEEKNUM(Kalenteripäivä),\"/Päivä \",Kalenteripäivä-DATE(YEAR(Kalenteripäivä),1,0)),CONCATENATE(\"Päivä \",Kalenteripäivä-DATE(YEAR(Kalenteripäivä),1,0)))","v":"Päivä 180"},{"$f":"IF(WEEKDAY(Kalenteripäivä)=Viikon_aloitusarvo,CONCATENATE(\"Viikko \",WEEKNUM(Kalenteripäivä),\"/Päivä \",Kalenteripäivä-DATE(YEAR(Kalenteripäivä),1,0)),CONCATENATE(\"Päivä \",Kalenteripäivä-DATE(YEAR(Kalenteripäivä),1,0)))","v":"Päivä 181"}]
[{"$nulls":4},"MUISTIINPANOT"]
[]
[null,null,{"$f":"Päivät_ja_viikot+DATE(Kalenterivuosi,6,1)-WEEKDAY(DATE(Kalenterivuosi,6,1),(Viikon_aloituspäivä=\"MA\")+1)+36","v":"2018-07-01"},"2018-07-02"]
[null,null,{"$f":"IF(WEEKDAY(Kalenteripäivä)=Viikon_aloitusarvo,CONCATENATE(\"Viikko \",WEEKNUM(Kalenteripäivä),\"/Päivä \",Kalenteripäivä-DATE(YEAR(Kalenteripäivä),1,0)),CONCATENATE(\"Päivä \",Kalenteripäivä-DATE(YEAR(Kalenteripäivä),1,0)))","v":"Viikko 27/Päivä 182"},{"$f":"IF(WEEKDAY(Kalenteripäivä)=Viikon_aloitusarvo,CONCATENATE(\"Viikko \",WEEKNUM(Kalenteripäivä),\"/Päivä \",Kalenteripäivä-DATE(YEAR(Kalenteripäivä),1,0)),CONCATENATE(\"Päivä \",Kalenteripäivä-DATE(YEAR(Kalenteripäivä),1,0)))","v":"Päivä 183"}]

{"sheet":"HEINÄ","index":6,"n_rows":20,"n_cols":9,"rows_kept":20,"merged":[[16,2,17,2],[17,4,19,8]]}
[null,"HEINÄ",{"$f":"UPPER(TEXT(Viikon_aloituspäivä,\"ddd\"))","v":"SU"},{"$f":"UPPER(TEXT(D3,\"aaa\"))","v":"MA"},"TI","KE","TO","PE","LA"]
[null,{"$f":"Kalenterivuosi","v":2018}]
[null,null,{"$f":"Päivät_ja_viikot+DATE(Kalenterivuosi,7,1)-WEEKDAY(DATE(Kalenterivuosi,7,1),(Viikon_aloituspäivä=\"MA\")+1)+1","v":"2018-07-01"},"2018-07-02","2018-07-03","2018-07-04","2018-07-05","2018-07-06","2018-07-07"]
[null,null,{"$f":"IF(DAY(Kalenteripäivä)=1,CONCATENATE(\"Viikko \",WEEKNUM(Kalenteripäivä),\"/Päivä \",Kalenteripäivä-DATE(YEAR(Kalenteripäivä),1,0)),CONCATENATE(\"Päivä \",Kalenteripäivä-DATE(YEAR(Kalenteripäivä),1,0)))","v":"Viikko 27/Päivä 182"},{"$f":"IF(DAY(Kalenteripäivä)=1,CONCATENATE(\"Viikko \",WEEKNUM(Kalenteripäivä),\"/Päivä \",Kalenteripäivä-DATE(YEAR(Kalenteripäivä),1,0)),CONCATENATE(\"Päivä \",Kalenteripäivä-DATE(YEAR(Kalenteripäivä),1,0)))","v":"Päivä 183"},{"$f":"IF(DAY(Kalenteripäivä)=1,CONCATENATE(\"Viikko \",WEEKNUM(Kalenteripäivä),\"/Päivä \",Kalenteripäivä-DATE(YEAR(Kalenteripäivä),1,0)),CONCATENATE(\"Päivä \",Kalenteripäivä-DATE(YEAR(Kalenteripäivä),1,0)))","v":"Päivä 184"},{"$f":"IF(DAY(Kalenteripäivä)=1,CONCATENATE(\"Viikko \",WEEKNUM(Kalenteripäivä),\"/Päivä \",Kalenteripäivä-DATE(YEAR(Kalenteripäivä),1,0)),CONCATENATE(\"Päivä \",Kalenteripäivä-DATE(YEAR(Kalenteripäivä),1,0)))","v":"Päivä 185"},{"$f":"IF(DAY(Kalenteripäivä)=1,CONCATENATE(\"Viikko \",WEEKNUM(Kalenteripäivä),\"/Päivä \",Kalenteripäivä-DATE(YEAR(Kalenteripäivä),1,0)),CONCATENATE(\"Päivä \",Kalenteripäivä-DATE(YEAR(Kalenteripäivä),1,0)))","v":"Päivä 186"},{"$f":"IF(DAY(Kalenteripäivä)=1,CONCATENATE(\"Viikko \",WEEKNUM(Kalenteripäivä),\"/Päivä \",Kalenteripäivä-DATE(YEAR(Kalenteripäivä),1,0)),CONCATENATE(\"Päivä \",Kalenteripäivä-DATE(YEAR(Kalenteripäivä),1,0)))","v":"Päivä 187"},{"$f":"IF(DAY(Kalenteripäivä)=1,CONCATENATE(\"Viikko \",WEEKNUM(Kalenteripäivä),\"/Päivä \",Kalenteripäivä-DATE(YEAR(Kalenteripäivä),1,0)),CONCATENATE(\"Päivä \",Kalenteripäivä-DATE(YEAR(Kalenteripäivä),1,0)))","v":"Päivä 188"}]
[]
[null,null,{"$f":"Päivät_ja_viikot+DATE(Kalenterivuosi,7,1)-WEEKDAY(DATE(Kalenterivuosi,7,1),(Viikon_aloituspäivä=\"MA\")+1)+8","v":"2018-07-08"},"2018-07-09","2018-07-10","2018-07-11","2018-07-12","2018-07-13","2018-07-14"]
[null,null,{"$f":"IF(WEEKDAY(Kalenteripäivä)=Viikon_aloitusarvo,CONCATENATE(\"Viikko \",WEEKNUM(Kalenteripäivä),\"/Päivä \",Kalenteripäivä-DATE(YEAR(Kalenteripäivä),1,0)),CONCATENATE(\"Päivä \",Kalenteripäivä-DATE(YEAR(Kalenteripäivä),1,0)))","v":"Viikko 28/Päivä 189"},{"$f":"IF(WEEKDAY(Kalenteripäivä)=Viikon_aloitusarvo,CONCATENATE(\"Viikko \",WEEKNUM(Kalenteripäivä),\"/Päivä \",Kalenteripäivä-DATE(YEAR(Kalenteripäivä),1,0)),CONCATENATE(\"Päivä \",Kalenteripäivä-DATE(YEAR(Kalenteripäivä),1,0)))","v":"Päivä 190"},{"$f":"IF(WEEKDAY(Kalenteripäivä)=Viikon_aloitusarvo,CONCATENATE(\"Viikko \",WEEKNUM(Kalenteripäivä),\"/Päivä \",Kalenteripäivä-DATE(YEAR(Kalenteripäivä),1,0)),CONCATENATE(\"Päivä \",Kalenteripäivä-DATE(YEAR(Kalenteripäivä),1,0)))","v":"Päivä 191"},{"$f":"IF(WEEKDAY(Kalenteripäivä)=Viikon_aloitusarvo,CONCATENATE(\"Viikko \",WEEKNUM(Kalenteripäivä),\"/Päivä \",Kalenteripäivä-DATE(YEAR(Kalenteripäivä),1,0)),CONCATENATE(\"Päivä \",Kalenteripäivä-DATE(YEAR(Kalenteripäivä),1,0)))","v":"Päivä 192"},{"$f":"IF(WEEKDAY(Kalenteripäivä)=Viikon_aloitusarvo,CONCATENATE(\"Viikko \",WEEKNUM(Kalenteripäivä),\"/Päivä \",Kalenteripäivä-DATE(YEAR(Kalenteripäivä),1,0)),CONCATENATE(\"Päivä \",Kalenteripäivä-DATE(YEAR(Kalenteripäivä),1,0)))","v":"Päivä 193"},{"$f":"IF(WEEKDAY(Kalenteripäivä)=Viikon_aloitusarvo,CONCATENATE(\"Viikko \",WEEKNUM(Kalenteripäivä),\"/Päivä \",Kalenteripäivä-DATE(YEAR(Kalenteripäivä),1,0)),CONCATENATE(\"Päivä \",Kalenteripäivä-DATE(YEAR(Kalenteripäivä),1,0)))","v":"Päivä 194"},{"$f":"IF(WEEKDAY(Kalenteripäivä)=Viikon_aloitusarvo,CONCATENATE(\"Viikko \",WEEKNUM(Kalenteripäivä),\"/Päivä \",Kalenteripäivä-DATE(YEAR(Kalenteripäivä),1,0)),CONCATENATE(\"Päivä \",Kalenteripäivä-DATE(YEAR(Kalenteripäivä),1,0)))","v":"Päivä 195"}]
[]
[null,null,{"$f":"Päivät_ja_viikot+DATE(Kalenterivuosi,7,1)-WEEKDAY(DATE(Kalenterivuosi,7,1),(Viikon_aloituspäivä=\"MA\")+1)+15","v":"2018-07-15"},"2018-07-16","2018-07-17","2018-07-18","2018-07-19","2018-07-20","2018-07-21"]
[null,null,{"$f":"IF(WEEKDAY(Kalenteripäivä)=Viikon_aloitusarvo,CONCATENATE(\"Viikko \",WEEKNUM(Kalenteripäivä),\"/Päivä \",Kalenteripäivä-DATE(YEAR(Kalenteripäivä),1,0)),CONCATENATE(\"Päivä \",Kalenteripäivä-DATE(YEAR(Kalenteripäivä),1,0)))","v":"Viikko 29/Päivä 196"},{"$f":"IF(WEEKDAY(Kalenteripäivä)=Viikon_aloitusarvo,CONCATENATE(\"Viikko \",WEEKNUM(Kalenteripäivä),\"/Päivä \",Kalenteripäivä-DATE(YEAR(Kalenteripäivä),1,0)),CONCATENATE(\"Päivä \",Kalenteripäivä-DATE(YEAR(Kalenteripäivä),1,0)))","v":"Päivä 197"},{"$f":"IF(WEEKDAY(Kalenteripäivä)=Viikon_aloitusarvo,CONCATENATE(\"Viikko \",WEEKNUM(Kalenteripäivä),\"/Päivä \",Kalenteripäivä-DATE(YEAR(Kalenteripäivä),1,0)),CONCATENATE(\"Päivä \",Kalenteripäivä-DATE(YEAR(Kalenteripäivä),1,0)))","v":"Päivä 198"},{"$f":"IF(WEEKDAY(Kalenteripäivä)=Viikon_aloitusarvo,CONCATENATE(\"Viikko \",WEEKNUM(Kalenteripäivä),\"/Päivä \",Kalenteripäivä-DATE(YEAR(Kalenteripäivä),1,0)),CONCATENATE(\"Päivä \",Kalenteripäivä-DATE(YEAR(Kalenteripäivä),1,0)))","v":"Päivä 199"},{"$f":"IF(WEEKDAY(Kalenteripäivä)=Viikon_aloitusarvo,CONCATENATE(\"Viikko \",WEEKNUM(Kalenteripäivä),\"/Päivä \",Kalenteripäivä-DATE(YEAR(Kalenteripäivä),1,0)),CONCATENATE(\"Päivä \",Kalenteripäivä-DATE(YEAR(Kalenteripäivä),1,0)))","v":"Päivä 200"},{"$f":"IF(WEEKDAY(Kalenteripäivä)=Viikon_aloitusarvo,CONCATENATE(\"Viikko \",WEEKNUM(Kalenteripäivä),\"/Päivä \",Kalenteripäivä-DATE(YEAR(Kalenteripäivä),1,0)),CONCATENATE(\"Päivä \",Kalenteripäivä-DATE(YEAR(Kalenteripäivä),1,0)))","v":"Päivä 201"},{"$f":"IF(WEEKDAY(Kalenteripäivä)=Viikon_aloitusarvo,CONCATENATE(\"Viikko \",WEEKNUM(Kalenteripäivä),\"/Päivä \",Kalenteripäivä-DATE(YEAR(Kalenteripäivä),1,0)),CONCATENATE(\"Päivä \",Kalenteripäivä-DATE(YEAR(Kalenteripäivä),1,0)))","v":"Päivä 202"}]
[]
[null,null,{"$f":"Päivät_ja_viikot+DATE(Kalenterivuosi,7,1)-WEEKDAY(DATE(Kalenterivuosi,7,1),(Viikon_aloituspäivä=\"MA\")+1)+22","v":"2018-07-22"},"2018-07-23","2018-07-24","2018-07-25","2018-07-26","2018-07-27","2018-07-28"]
[null,null,{"$f":"IF(WEEKDAY(Kalenteripäivä)=Viikon_aloitusarvo,CONCATENATE(\"Viikko \",WEEKNUM(Kalenteripäivä),\"/Päivä \",Kalenteripäivä-DATE(YEAR(Kalenteripäivä),1,0)),CONCATENATE(\"Päivä \",Kalenteripäivä-DATE(YEAR(Kalenteripäivä),1,0)))","v":"Viikko 30/Päivä 203"},{"$f":"IF(WEEKDAY(Kalenteripäivä)=Viikon_aloitusarvo,CONCATENATE(\"Viikko \",WEEKNUM(Kalenteripäivä),\"/Päivä \",Kalenteripäivä-DATE(YEAR(Kalenteripäivä),1,0)),CONCATENATE(\"Päivä \",Kalenteripäivä-DATE(YEAR(Kalenteripäivä),1,0)))","v":"Päivä 204"},{"$f":"IF(WEEKDAY(Kalenteripäivä)=Viikon_aloitusarvo,CONCATENATE(\"Viikko \",WEEKNUM(Kalenteripäivä),\"/Päivä \",Kalenteripäivä-DATE(YEAR(Kalenteripäivä),1,0)),CONCATENATE(\"Päivä \",Kalenteripäivä-DATE(YEAR(Kalenteripäivä),1,0)))","v":"Päivä 205"},{"$f":"IF(WEEKDAY(Kalenteripäivä)=Viikon_aloitusarvo,CONCATENATE(\"Viikko \",WEEKNUM(Kalenteripäivä),\"/Päivä \",Kalenteripäivä-DATE(YEAR(Kalenteripäivä),1,0)),CONCATENATE(\"Päivä \",Kalenteripäivä-DATE(YEAR(Kalenteripäivä),1,0)))","v":"Päivä 206"},{"$f":"IF(WEEKDAY(Kalenteripäivä)=Viikon_aloitusarvo,CONCATENATE(\"Viikko \",WEEKNUM(Kalenteripäivä),\"/Päivä \",Kalenteripäivä-DATE(YEAR(Kalenteripäivä),1,0)),CONCATENATE(\"Päivä \",Kalenteripäivä-DATE(YEAR(Kalenteripäivä),1,0)))","v":"Päivä 207"},{"$f":"IF(WEEKDAY(Kalenteripäivä)=Viikon_aloitusarvo,CONCATENATE(\"Viikko \",WEEKNUM(Kalenteripäivä),\"/Päivä \",Kalenteripäivä-DATE(YEAR(Kalenteripäivä),1,0)),CONCATENATE(\"Päivä \",Kalenteripäivä-DATE(YEAR(Kalenteripäivä),1,0)))","v":"Päivä 208"},{"$f":"IF(WEEKDAY(Kalenteripäivä)=Viikon_aloitusarvo,CONCATENATE(\"Viikko \",WEEKNUM(Kalenteripäivä),\"/Päivä \",Kalenteripäivä-DATE(YEAR(Kalenteripäivä),1,0)),CONCATENATE(\"Päivä \",Kalenteripäivä-DATE(YEAR(Kalenteripäivä),1,0)))","v":"Päivä 209"}]
[]
[null,null,{"$f":"Päivät_ja_viikot+DATE(Kalenterivuosi,7,1)-WEEKDAY(DATE(Kalenterivuosi,7,1),(Viikon_aloituspäivä=\"MA\")+1)+29","v":"2018-07-29"},"2018-07-30","2018-07-31","2018-08-01","2018-08-02","2018-08-03","2018-08-04"]
[null,null,{"$f":"IF(WEEKDAY(Kalenteripäivä)=Viikon_aloitusarvo,CONCATENATE(\"Viikko \",WEEKNUM(Kalenteripäivä),\"/Päivä \",Kalenteripäivä-DATE(YEAR(Kalenteripäivä),1,0)),CONCATENATE(\"Päivä \",Kalenteripäivä-DATE(YEAR(Kalenteripäivä),1,0)))","v":"Viikko 31/Päivä 210"},{"$f":"IF(WEEKDAY(Kalenteripäivä)=Viikon_aloitusarvo,CONCATENATE(\"Viikko \",WEEKNUM(Kalenteripäivä),\"/Päivä \",Kalenteripäivä-DATE(YEAR(Kalenteripäivä),1,0)),CONCATENATE(\"Päivä \",Kalenteripäivä-DATE(YEAR(Kalenteripäivä),1,0)))","v":"Päivä 211"},{"$f":"IF(WEEKDAY(Kalenteripäivä)=Viikon_aloitusarvo,CONCATENATE(\"Viikko \",WEEKNUM(Kalenteripäivä),\"/Päivä \",Kalenteripäivä-DATE(YEAR(Kalenteripäivä),1,0)),CONCATENATE(\"Päivä \",Kalenteripäivä-DATE(YEAR(Kalenteripäivä),1,0)))","v":"Päivä 212"},{"$f":"IF(WEEKDAY(Kalenteripäivä)=Viikon_aloitusarvo,CONCATENATE(\"Viikko \",WEEKNUM(Kalenteripäivä),\"/Päivä \",Kalenteripäivä-DATE(YEAR(Kalenteripäivä),1,0)),CONCATENATE(\"Päivä \",Kalenteripäivä-DATE(YEAR(Kalenteripäivä),1,0)))","v":"Päivä 213"},{"$f":"IF(WEEKDAY(Kalenteripäivä)=Viikon_aloitusarvo,CONCATENATE(\"Viikko \",WEEKNUM(Kalenteripäivä),\"/Päivä \",Kalenteripäivä-DATE(YEAR(Kalenteripäivä),1,0)),CONCATENATE(\"Päivä \",Kalenteripäivä-DATE(YEAR(Kalenteripäivä),1,0)))","v":"Päivä 214"},{"$f":"IF(WEEKDAY(Kalenteripäivä)=Viikon_aloitusarvo,CONCATENATE(\"Viikko \",WEEKNUM(Kalenteripäivä),\"/Päivä \",Kalenteripäivä-DATE(YEAR(Kalenteripäivä),1,0)),CONCATENATE(\"Päivä \",Kalenteripäivä-DATE(YEAR(Kalenteripäivä),1,0)))","v":"Päivä 215"},{"$f":"IF(WEEKDAY(Kalenteripäivä)=Viikon_aloitusarvo,CONCATENATE(\"Viikko \",WEEKNUM(Kalenteripäivä),\"/Päivä \",Kalenteripäivä-DATE(YEAR(Kalenteripäivä),1,0)),CONCATENATE(\"Päivä \",Kalenteripäivä-DATE(YEAR(Kalenteripäivä),1,0)))","v":"Päivä 216"}]
[{"$nulls":4},"MUISTIINPANOT"]
[]
[null,null,{"$f":"Päivät_ja_viikot+DATE(Kalenterivuosi,7,1)-WEEKDAY(DATE(Kalenterivuosi,7,1),(Viikon_aloituspäivä=\"MA\")+1)+36","v":"2018-08-05"},"2018-08-06"]
[null,null,{"$f":"IF(WEEKDAY(Kalenteripäivä)=Viikon_aloitusarvo,CONCATENATE(\"Viikko \",WEEKNUM(Kalenteripäivä),\"/Päivä \",Kalenteripäivä-DATE(YEAR(Kalenteripäivä),1,0)),CONCATENATE(\"Päivä \",Kalenteripäivä-DATE(YEAR(Kalenteripäivä),1,0)))","v":"Viikko 32/Päivä 217"},{"$f":"IF(WEEKDAY(Kalenteripäivä)=Viikon_aloitusarvo,CONCATENATE(\"Viikko \",WEEKNUM(Kalenteripäivä),\"/Päivä \",Kalenteripäivä-DATE(YEAR(Kalenteripäivä),1,0)),CONCATENATE(\"Päivä \",Kalenteripäivä-DATE(YEAR(Kalenteripäivä),1,0)))","v":"Päivä 218"}]

{"sheet":"ELO","index":7,"n_rows":20,"n_cols":9,"rows_kept":20,"merged":[[16,2,17,2],[17,4,19,8]]}
[null,"ELO",{"$f":"UPPER(TEXT(Viikon_aloituspäivä,\"ddd\"))","v":"SU"},{"$f":"UPPER(TEXT(D3,\"aaa\"))","v":"MA"},"TI","KE","TO","PE","LA"]
[null,{"$f":"Kalenterivuosi","v":2018}]
[null,null,{"$f":"Päivät_ja_viikot+DATE(Kalenterivuosi,8,1)-WEEKDAY(DATE(Kalenterivuosi,8,1),(Viikon_aloituspäivä=\"MA\")+1)+1","v":"2018-07-29"},"2018-07-30","2018-07-31","2018-08-01","2018-08-02","2018-08-03","2018-08-04"]
[null,null,{"$f":"IF(DAY(Kalenteripäivä)=1,CONCATENATE(\"Viikko \",WEEKNUM(Kalenteripäivä),\"/Päivä \",Kalenteripäivä-DATE(YEAR(Kalenteripäivä),1,0)),CONCATENATE(\"Päivä \",Kalenteripäivä-DATE(YEAR(Kalenteripäivä),1,0)))","v":"Päivä 210"},{"$f":"IF(DAY(Kalenteripäivä)=1,CONCATENATE(\"Viikko \",WEEKNUM(Kalenteripäivä),\"/Päivä \",Kalenteripäivä-DATE(YEAR(Kalenteripäivä),1,0)),CONCATENATE(\"Päivä \",Kalenteripäivä-DATE(YEAR(Kalenteripäivä),1,0)))","v":"Päivä 211"},{"$f":"IF(DAY(Kalenteripäivä)=1,CONCATENATE(\"Viikko \",WEEKNUM(Kalenteripäivä),\"/Päivä \",Kalenteripäivä-DATE(YEAR(Kalenteripäivä),1,0)),CONCATENATE(\"Päivä \",Kalenteripäivä-DATE(YEAR(Kalenteripäivä),1,0)))","v":"Päivä 212"},{"$f":"IF(DAY(Kalenteripäivä)=1,CONCATENATE(\"Viikko \",WEEKNUM(Kalenteripäivä),\"/Päivä \",Kalenteripäivä-DATE(YEAR(Kalenteripäivä),1,0)),CONCATENATE(\"Päivä \",Kalenteripäivä-DATE(YEAR(Kalenteripäivä),1,0)))","v":"Viikko 31/Päivä 213"},{"$f":"IF(DAY(Kalenteripäivä)=1,CONCATENATE(\"Viikko \",WEEKNUM(Kalenteripäivä),\"/Päivä \",Kalenteripäivä-DATE(YEAR(Kalenteripäivä),1,0)),CONCATENATE(\"Päivä \",Kalenteripäivä-DATE(YEAR(Kalenteripäivä),1,0)))","v":"Päivä 214"},{"$f":"IF(DAY(Kalenteripäivä)=1,CONCATENATE(\"Viikko \",WEEKNUM(Kalenteripäivä),\"/Päivä \",Kalenteripäivä-DATE(YEAR(Kalenteripäivä),1,0)),CONCATENATE(\"Päivä \",Kalenteripäivä-DATE(YEAR(Kalenteripäivä),1,0)))","v":"Päivä 215"},{"$f":"IF(DAY(Kalenteripäivä)=1,CONCATENATE(\"Viikko \",WEEKNUM(Kalenteripäivä),\"/Päivä \",Kalenteripäivä-DATE(YEAR(Kalenteripäivä),1,0)),CONCATENATE(\"Päivä \",Kalenteripäivä-DATE(YEAR(Kalenteripäivä),1,0)))","v":"Päivä 216"}]
[]
[null,null,{"$f":"Päivät_ja_viikot+DATE(Kalenterivuosi,8,1)-WEEKDAY(DATE(Kalenterivuosi,8,1),(Viikon_aloituspäivä=\"MA\")+1)+8","v":"2018-08-05"},"2018-08-06","2018-08-07","2018-08-08","2018-08-09","2018-08-10","2018-08-11"]
[null,null,{"$f":"IF(WEEKDAY(Kalenteripäivä)=Viikon_aloitusarvo,CONCATENATE(\"Viikko \",WEEKNUM(Kalenteripäivä),\"/Päivä \",Kalenteripäivä-DATE(YEAR(Kalenteripäivä),1,0)),CONCATENATE(\"Päivä \",Kalenteripäivä-DATE(YEAR(Kalenteripäivä),1,0)))","v":"Viikko 32/Päivä 217"},{"$f":"IF(WEEKDAY(Kalenteripäivä)=Viikon_aloitusarvo,CONCATENATE(\"Viikko \",WEEKNUM(Kalenteripäivä),\"/Päivä \",Kalenteripäivä-DATE(YEAR(Kalenteripäivä),1,0)),CONCATENATE(\"Päivä \",Kalenteripäivä-DATE(YEAR(Kalenteripäivä),1,0)))","v":"Päivä 218"},{"$f":"IF(WEEKDAY(Kalenteripäivä)=Viikon_aloitusarvo,CONCATENATE(\"Viikko \",WEEKNUM(Kalenteripäivä),\"/Päivä \",Kalenteripäivä-DATE(YEAR(Kalenteripäivä),1,0)),CONCATENATE(\"Päivä \",Kalenteripäivä-DATE(YEAR(Kalenteripäivä),1,0)))","v":"Päivä 219"},{"$f":"IF(WEEKDAY(Kalenteripäivä)=Viikon_aloitusarvo,CONCATENATE(\"Viikko \",WEEKNUM(Kalenteripäivä),\"/Päivä \",Kalenteripäivä-DATE(YEAR(Kalenteripäivä),1,0)),CONCATENATE(\"Päivä \",Kalenteripäivä-DATE(YEAR(Kalenteripäivä),1,0)))","v":"Päivä 220"},{"$f":"IF(WEEKDAY(Kalenteripäivä)=Viikon_aloitusarvo,CONCATENATE(\"Viikko \",WEEKNUM(Kalenteripäivä),\"/Päivä \",Kalenteripäivä-DATE(YEAR(Kalenteripäivä),1,0)),CONCATENATE(\"Päivä \",Kalenteripäivä-DATE(YEAR(Kalenteripäivä),1,0)))","v":"Päivä 221"},{"$f":"IF(WEEKDAY(Kalenteripäivä)=Viikon_aloitusarvo,CONCATENATE(\"Viikko \",WEEKNUM(Kalenteripäivä),\"/Päivä \",Kalenteripäivä-DATE(YEAR(Kalenteripäivä),1,0)),CONCATENATE(\"Päivä \",Kalenteripäivä-DATE(YEAR(Kalenteripäivä),1,0)))","v":"Päivä 222"},{"$f":"IF(WEEKDAY(Kalenteripäivä)=Viikon_aloitusarvo,CONCATENATE(\"Viikko \",WEEKNUM(Kalenteripäivä),\"/Päivä \",Kalenteripäivä-DATE(YEAR(Kalenteripäivä),1,0)),CONCATENATE(\"Päivä \",Kalenteripäivä-DATE(YEAR(Kalenteripäivä),1,0)))","v":"Päivä 223"}]
[]
[null,null,{"$f":"Päivät_ja_viikot+DATE(Kalenterivuosi,8,1)-WEEKDAY(DATE(Kalenterivuosi,8,1),(Viikon_aloituspäivä=\"MA\")+1)+15","v":"2018-08-12"},"2018-08-13","2018-08-14","2018-08-15","2018-08-16","2018-08-17","2018-08-18"]
[null,null,{"$f":"IF(WEEKDAY(Kalenteripäivä)=Viikon_aloitusarvo,CONCATENATE(\"Viikko \",WEEKNUM(Kalenteripäivä),\"/Päivä \",Kalenteripäivä-DATE(YEAR(Kalenteripäivä),1,0)),CONCATENATE(\"Päivä \",Kalenteripäivä-DATE(YEAR(Kalenteripäivä),1,0)))","v":"Viikko 33/Päivä 224"},{"$f":"IF(WEEKDAY(Kalenteripäivä)=Viikon_aloitusarvo,CONCATENATE(\"Viikko \",WEEKNUM(Kalenteripäivä),\"/Päivä \",Kalenteripäivä-DATE(YEAR(Kalenteripäivä),1,0)),CONCATENATE(\"Päivä \",Kalenteripäivä-DATE(YEAR(Kalenteripäivä),1,0)))","v":"Päivä 225"},{"$f":"IF(WEEKDAY(Kalenteripäivä)=Viikon_aloitusarvo,CONCATENATE(\"Viikko \",WEEKNUM(Kalenteripäivä),\"/Päivä \",Kalenteripäivä-DATE(YEAR(Kalenteripäivä),1,0)),CONCATENATE(\"Päivä \",Kalenteripäivä-DATE(YEAR(Kalenteripäivä),1,0)))","v":"Päivä 226"},{"$f":"IF(WEEKDAY(Kalenteripäivä)=Viikon_aloitusarvo,CONCATENATE(\"Viikko \",WEEKNUM(Kalenteripäivä),\"/Päivä \",Kalenteripäivä-DATE(YEAR(Kalenteripäivä),1,0)),CONCATENATE(\"Päivä \",Kalenteripäivä-DATE(YEAR(Kalenteripäivä),1,0)))","v":"Päivä 227"},{"$f":"IF(WEEKDAY(Kalenteripäivä)=Viikon_aloitusarvo,CONCATENATE(\"Viikko \",WEEKNUM(Kalenteripäivä),\"/Päivä \",Kalenteripäivä-DATE(YEAR(Kalenteripäivä),1,0)),CONCATENATE(\"Päivä \",Kalenteripäivä-DATE(YEAR(Kalenteripäivä),1,0)))","v":"Päivä 228"},{"$f":"IF(WEEKDAY(Kalenteripäivä)=Viikon_aloitusarvo,CONCATENATE(\"Viikko \",WEEKNUM(Kalenteripäivä),\"/Päivä \",Kalenteripäivä-DATE(YEAR(Kalenteripäivä),1,0)),CONCATENATE(\"Päivä \",Kalenteripäivä-DATE(YEAR(Kalenteripäivä),1,0)))","v":"Päivä 229"},{"$f":"IF(WEEKDAY(Kalenteripäivä)=Viikon_aloitusarvo,CONCATENATE(\"Viikko \",WEEKNUM(Kalenteripäivä),\"/Päivä \",Kalenteripäivä-DATE(YEAR(Kalenteripäivä),1,0)),CONCATENATE(\"Päivä \",Kalenteripäivä-DATE(YEAR(Kalenteripäivä),1,0)))","v":"Päivä 230"}]
[]
[null,null,{"$f":"Päivät_ja_viikot+DATE(Kalenterivuosi,8,1)-WEEKDAY(DATE(Kalenterivuosi,8,1),(Viikon_aloituspäivä=\"MA\")+1)+22","v":"2018-08-19"},"2018-08-20","2018-08-21","2018-08-22","2018-08-23","2018-08-24","2018-08-25"]
[null,null,{"$f":"IF(WEEKDAY(Kalenteripäivä)=Viikon_aloitusarvo,CONCATENATE(\"Viikko \",WEEKNUM(Kalenteripäivä),\"/Päivä \",Kalenteripäivä-DATE(YEAR(Kalenteripäivä),1,0)),CONCATENATE(\"Päivä \",Kalenteripäivä-DATE(YEAR(Kalenteripäivä),1,0)))","v":"Viikko 34/Päivä 231"},{"$f":"IF(WEEKDAY(Kalenteripäivä)=Viikon_aloitusarvo,CONCATENATE(\"Viikko \",WEEKNUM(Kalenteripäivä),\"/Päivä \",Kalenteripäivä-DATE(YEAR(Kalenteripäivä),1,0)),CONCATENATE(\"Päivä \",Kalenteripäivä-DATE(YEAR(Kalenteripäivä),1,0)))","v":"Päivä 232"},{"$f":"IF(WEEKDAY(Kalenteripäivä)=Viikon_aloitusarvo,CONCATENATE(\"Viikko \",WEEKNUM(Kalenteripäivä),\"/Päivä \",Kalenteripäivä-DATE(YEAR(Kalenteripäivä),1,0)),CONCATENATE(\"Päivä \",Kalenteripäivä-DATE(YEAR(Kalenteripäivä),1,0)))","v":"Päivä 233"},{"$f":"IF(WEEKDAY(Kalenteripäivä)=Viikon_aloitusarvo,CONCATENATE(\"Viikko \",WEEKNUM(Kalenteripäivä),\"/Päivä \",Kalenteripäivä-DATE(YEAR(Kalenteripäivä),1,0)),CONCATENATE(\"Päivä \",Kalenteripäivä-DATE(YEAR(Kalenteripäivä),1,0)))","v":"Päivä 234"},{"$f":"IF(WEEKDAY(Kalenteripäivä)=Viikon_aloitusarvo,CONCATENATE(\"Viikko \",WEEKNUM(Kalenteripäivä),\"/Päivä \",Kalenteripäivä-DATE(YEAR(Kalenteripäivä),1,0)),CONCATENATE(\"Päivä \",Kalenteripäivä-DATE(YEAR(Kalenteripäivä),1,0)))","v":"Päivä 235"},{"$f":"IF(WEEKDAY(Kalenteripäivä)=Viikon_aloitusarvo,CONCATENATE(\"Viikko \",WEEKNUM(Kalenteripäivä),\"/Päivä \",Kalenteripäivä-DATE(YEAR(Kalenteripäivä),1,0)),CONCATENATE(\"Päivä \",Kalenteripäivä-DATE(YEAR(Kalenteripäivä),1,0)))","v":"Päivä 236"},{"$f":"IF(WEEKDAY(Kalenteripäivä)=Viikon_aloitusarvo,CONCATENATE(\"Viikko \",WEEKNUM(Kalenteripäivä),\"/Päivä \",Kalenteripäivä-DATE(YEAR(Kalenteripäivä),1,0)),CONCATENATE(\"Päivä \",Kalenteripäivä-DATE(YEAR(Kalenteripäivä),1,0)))","v":"Päivä 237"}]
[]
[null,null,{"$f":"Päivät_ja_viikot+DATE(Kalenterivuosi,8,1)-WEEKDAY(DATE(Kalenterivuosi,8,1),(Viikon_aloituspäivä=\"MA\")+1)+29","v":"2018-08-26"},"2018-08-27","2018-08-28","2018-08-29","2018-08-30","2018-08-31","2018-09-01"]
[null,null,{"$f":"IF(WEEKDAY(Kalenteripäivä)=Viikon_aloitusarvo,CONCATENATE(\"Viikko \",WEEKNUM(Kalenteripäivä),\"/Päivä \",Kalenteripäivä-DATE(YEAR(Kalenteripäivä),1,0)),CONCATENATE(\"Päivä \",Kalenteripäivä-DATE(YEAR(Kalenteripäivä),1,0)))","v":"Viikko 35/Päivä 238"},{"$f":"IF(WEEKDAY(Kalenteripäivä)=Viikon_aloitusarvo,CONCATENATE(\"Viikko \",WEEKNUM(Kalenteripäivä),\"/Päivä \",Kalenteripäivä-DATE(YEAR(Kalenteripäivä),1,0)),CONCATENATE(\"Päivä \",Kalenteripäivä-DATE(YEAR(Kalenteripäivä),1,0)))","v":"Päivä 239"},{"$f":"IF(WEEKDAY(Kalenteripäivä)=Viikon_aloitusarvo,CONCATENATE(\"Viikko \",WEEKNUM(Kalenteripäivä),\"/Päivä \",Kalenteripäivä-DATE(YEAR(Kalenteripäivä),1,0)),CONCATENATE(\"Päivä \",Kalenteripäivä-DATE(YEAR(Kalenteripäivä),1,0)))","v":"Päivä 240"},{"$f":"IF(WEEKDAY(Kalenteripäivä)=Viikon_aloitusarvo,CONCATENATE(\"Viikko \",WEEKNUM(Kalenteripäivä),\"/Päivä \",Kalenteripäivä-DATE(YEAR(Kalenteripäivä),1,0)),CONCATENATE(\"Päivä \",Kalenteripäivä-DATE(YEAR(Kalenteripäivä),1,0)))","v":"Päivä 241"},{"$f":"IF(WEEKDAY(Kalenteripäivä)=Viikon_aloitusarvo,CONCATENATE(\"Viikko \",WEEKNUM(Kalenteripäivä),\"/Päivä \",Kalenteripäivä-DATE(YEAR(Kalenteripäivä),1,0)),CONCATENATE(\"Päivä \",Kalenteripäivä-DATE(YEAR(Kalenteripäivä),1,0)))","v":"Päivä 242"},{"$f":"IF(WEEKDAY(Kalenteripäivä)=Viikon_aloitusarvo,CONCATENATE(\"Viikko \",WEEKNUM(Kalenteripäivä),\"/Päivä \",Kalenteripäivä-DATE(YEAR(Kalenteripäivä),1,0)),CONCATENATE(\"Päivä \",Kalenteripäivä-DATE(YEAR(Kalenteripäivä),1,0)))","v":"Päivä 243"},{"$f":"IF(WEEKDAY(Kalenteripäivä)=Viikon_aloitusarvo,CONCATENATE(\"Viikko \",WEEKNUM(Kalenteripäivä),\"/Päivä \",Kalenteripäivä-DATE(YEAR(Kalenteripäivä),1,0)),CONCATENATE(\"Päivä \",Kalenteripäivä-DATE(YEAR(Kalenteripäivä),1,0)))","v":"Päivä 244"}]
[{"$nulls":4},"MUISTIINPANOT"]
[]
[null,null,{"$f":"Päivät_ja_viikot+DATE(Kalenterivuosi,8,1)-WEEKDAY(DATE(Kalenterivuosi,8,1),(Viikon_aloituspäivä=\"MA\")+1)+36","v":"2018-09-02"},"2018-09-03"]
[null,null,{"$f":"IF(WEEKDAY(Kalenteripäivä)=Viikon_aloitusarvo,CONCATENATE(\"Viikko \",WEEKNUM(Kalenteripäivä),\"/Päivä \",Kalenteripäivä-DATE(YEAR(Kalenteripäivä),1,0)),CONCATENATE(\"Päivä \",Kalenteripäivä-DATE(YEAR(Kalenteripäivä),1,0)))","v":"Viikko 36/Päivä 245"},{"$f":"IF(WEEKDAY(Kalenteripäivä)=Viikon_aloitusarvo,CONCATENATE(\"Viikko \",WEEKNUM(Kalenteripäivä),\"/Päivä \",Kalenteripäivä-DATE(YEAR(Kalenteripäivä),1,0)),CONCATENATE(\"Päivä \",Kalenteripäivä-DATE(YEAR(Kalenteripäivä),1,0)))","v":"Päivä 246"}]

{"sheet":"SYYS","index":8,"n_rows":20,"n_cols":9,"rows_kept":20,"merged":[[16,2,17,2],[17,4,19,8]]}
[null,"SYYS",{"$f":"UPPER(TEXT(Viikon_aloituspäivä,\"ddd\"))","v":"SU"},{"$f":"UPPER(TEXT(D3,\"aaa\"))","v":"MA"},"TI","KE","TO","PE","LA"]
[null,{"$f":"Kalenterivuosi","v":2018}]
[null,null,{"$f":"Päivät_ja_viikot+DATE(Kalenterivuosi,9,1)-WEEKDAY(DATE(Kalenterivuosi,9,1),(Viikon_aloituspäivä=\"MA\")+1)+1","v":"2018-08-26"},"2018-08-27","2018-08-28","2018-08-29","2018-08-30","2018-08-31","2018-09-01"]
[null,null,{"$f":"IF(DAY(Kalenteripäivä)=1,CONCATENATE(\"Viikko \",WEEKNUM(Kalenteripäivä),\"/Päivä \",Kalenteripäivä-DATE(YEAR(Kalenteripäivä),1,0)),CONCATENATE(\"Päivä \",Kalenteripäivä-DATE(YEAR(Kalenteripäivä),1,0)))","v":"Päivä 238"},{"$f":"IF(DAY(Kalenteripäivä)=1,CONCATENATE(\"Viikko \",WEEKNUM(Kalenteripäivä),\"/Päivä \",Kalenteripäivä-DATE(YEAR(Kalenteripäivä),1,0)),CONCATENATE(\"Päivä \",Kalenteripäivä-DATE(YEAR(Kalenteripäivä),1,0)))","v":"Päivä 239"},{"$f":"IF(DAY(Kalenteripäivä)=1,CONCATENATE(\"Viikko \",WEEKNUM(Kalenteripäivä),\"/Päivä \",Kalenteripäivä-DATE(YEAR(Kalenteripäivä),1,0)),CONCATENATE(\"Päivä \",Kalenteripäivä-DATE(YEAR(Kalenteripäivä),1,0)))","v":"Päivä 240"},{"$f":"IF(DAY(Kalenteripäivä)=1,CONCATENATE(\"Viikko \",WEEKNUM(Kalenteripäivä),\"/Päivä \",Kalenteripäivä-DATE(YEAR(Kalenteripäivä),1,0)),CONCATENATE(\"Päivä \",Kalenteripäivä-DATE(YEAR(Kalenteripäivä),1,0)))","v":"Päivä 241"},{"$f":"IF(DAY(Kalenteripäivä)=1,CONCATENATE(\"Viikko \",WEEKNUM(Kalenteripäivä),\"/Päivä \",Kalenteripäivä-DATE(YEAR(Kalenteripäivä),1,0)),CONCATENATE(\"Päivä \",Kalenteripäivä-DATE(YEAR(Kalenteripäivä),1,0)))","v":"Päivä 242"},{"$f":"IF(DAY(Kalenteripäivä)=1,CONCATENATE(\"Viikko \",WEEKNUM(Kalenteripäivä),\"/Päivä \",Kalenteripäivä-DATE(YEAR(Kalenteripäivä),1,0)),CONCATENATE(\"Päivä \",Kalenteripäivä-DATE(YEAR(Kalenteripäivä),1,0)))","v":"Päivä 243"},{"$f":"IF(DAY(Kalenteripäivä)=1,CONCATENATE(\"Viikko \",WEEKNUM(Kalenteripäivä),\"/Päivä \",Kalenteripäivä-DATE(YEAR(Kalenteripäivä),1,0)),CONCATENATE(\"Päivä \",Kalenteripäivä-DATE(YEAR(Kalenteripäivä),1,0)))","v":"Viikko 35/Päivä 244"}]
[]
[null,null,{"$f":"Päivät_ja_viikot+DATE(Kalenterivuosi,9,1)-WEEKDAY(DATE(Kalenterivuosi,9,1),(Viikon_aloituspäivä=\"MA\")+1)+8","v":"2018-09-02"},"2018-09-03","2018-09-04","2018-09-05","2018-09-06","2018-09-07","2018-09-08"]
[null,null,{"$f":"IF(WEEKDAY(Kalenteripäivä)=Viikon_aloitusarvo,CONCATENATE(\"Viikko \",WEEKNUM(Kalenteripäivä),\"/Päivä \",Kalenteripäivä-DATE(YEAR(Kalenteripäivä),1,0)),CONCATENATE(\"Päivä \",Kalenteripäivä-DATE(YEAR(Kalenteripäivä),1,0)))","v":"Viikko 36/Päivä 245"},{"$f":"IF(WEEKDAY(Kalenteripäivä)=Viikon_aloitusarvo,CONCATENATE(\"Viikko \",WEEKNUM(Kalenteripäivä),\"/Päivä \",Kalenteripäivä-DATE(YEAR(Kalenteripäivä),1,0)),CONCATENATE(\"Päivä \",Kalenteripäivä-DATE(YEAR(Kalenteripäivä),1,0)))","v":"Päivä 246"},{"$f":"IF(WEEKDAY(Kalenteripäivä)=Viikon_aloitusarvo,CONCATENATE(\"Viikko \",WEEKNUM(Kalenteripäivä),\"/Päivä \",Kalenteripäivä-DATE(YEAR(Kalenteripäivä),1,0)),CONCATENATE(\"Päivä \",Kalenteripäivä-DATE(YEAR(Kalenteripäivä),1,0)))","v":"Päivä 247"},{"$f":"IF(WEEKDAY(Kalenteripäivä)=Viikon_aloitusarvo,CONCATENATE(\"Viikko \",WEEKNUM(Kalenteripäivä),\"/Päivä \",Kalenteripäivä-DATE(YEAR(Kalenteripäivä),1,0)),CONCATENATE(\"Päivä \",Kalenteripäivä-DATE(YEAR(Kalenteripäivä),1,0)))","v":"Päivä 248"},{"$f":"IF(WEEKDAY(Kalenteripäivä)=Viikon_aloitusarvo,CONCATENATE(\"Viikko \",WEEKNUM(Kalenteripäivä),\"/Päivä \",Kalenteripäivä-DATE(YEAR(Kalenteripäivä),1,0)),CONCATENATE(\"Päivä \",Kalenteripäivä-DATE(YEAR(Kalenteripäivä),1,0)))","v":"Päivä 249"},{"$f":"IF(WEEKDAY(Kalenteripäivä)=Viikon_aloitusarvo,CONCATENATE(\"Viikko \",WEEKNUM(Kalenteripäivä),\"/Päivä \",Kalenteripäivä-DATE(YEAR(Kalenteripäivä),1,0)),CONCATENATE(\"Päivä \",Kalenteripäivä-DATE(YEAR(Kalenteripäivä),1,0)))","v":"Päivä 250"},{"$f":"IF(WEEKDAY(Kalenteripäivä)=Viikon_aloitusarvo,CONCATENATE(\"Viikko \",WEEKNUM(Kalenteripäivä),\"/Päivä \",Kalenteripäivä-DATE(YEAR(Kalenteripäivä),1,0)),CONCATENATE(\"Päivä \",Kalenteripäivä-DATE(YEAR(Kalenteripäivä),1,0)))","v":"Päivä 251"}]
[]
[null,null,{"$f":"Päivät_ja_viikot+DATE(Kalenterivuosi,9,1)-WEEKDAY(DATE(Kalenterivuosi,9,1),(Viikon_aloituspäivä=\"MA\")+1)+15","v":"2018-09-09"},"2018-09-10","2018-09-11","2018-09-12","2018-09-13","2018-09-14","2018-09-15"]
[null,null,{"$f":"IF(WEEKDAY(Kalenteripäivä)=Viikon_aloitusarvo,CONCATENATE(\"Viikko \",WEEKNUM(Kalenteripäivä),\"/Päivä \",Kalenteripäivä-DATE(YEAR(Kalenteripäivä),1,0)),CONCATENATE(\"Päivä \",Kalenteripäivä-DATE(YEAR(Kalenteripäivä),1,0)))","v":"Viikko 37/Päivä 252"},{"$f":"IF(WEEKDAY(Kalenteripäivä)=Viikon_aloitusarvo,CONCATENATE(\"Viikko \",WEEKNUM(Kalenteripäivä),\"/Päivä \",Kalenteripäivä-DATE(YEAR(Kalenteripäivä),1,0)),CONCATENATE(\"Päivä \",Kalenteripäivä-DATE(YEAR(Kalenteripäivä),1,0)))","v":"Päivä 253"},{"$f":"IF(WEEKDAY(Kalenteripäivä)=Viikon_aloitusarvo,CONCATENATE(\"Viikko \",WEEKNUM(Kalenteripäivä),\"/Päivä \",Kalenteripäivä-DATE(YEAR(Kalenteripäivä),1,0)),CONCATENATE(\"Päivä \",Kalenteripäivä-DATE(YEAR(Kalenteripäivä),1,0)))","v":"Päivä 254"},{"$f":"IF(WEEKDAY(Kalenteripäivä)=Viikon_aloitusarvo,CONCATENATE(\"Viikko \",WEEKNUM(Kalenteripäivä),\"/Päivä \",Kalenteripäivä-DATE(YEAR(Kalenteripäivä),1,0)),CONCATENATE(\"Päivä \",Kalenteripäivä-DATE(YEAR(Kalenteripäivä),1,0)))","v":"Päivä 255"},{"$f":"IF(WEEKDAY(Kalenteripäivä)=Viikon_aloitusarvo,CONCATENATE(\"Viikko \",WEEKNUM(Kalenteripäivä),\"/Päivä \",Kalenteripäivä-DATE(YEAR(Kalenteripäivä),1,0)),CONCATENATE(\"Päivä \",Kalenteripäivä-DATE(YEAR(Kalenteripäivä),1,0)))","v":"Päivä 256"},{"$f":"IF(WEEKDAY(Kalenteripäivä)=Viikon_aloitusarvo,CONCATENATE(\"Viikko \",WEEKNUM(Kalenteripäivä),\"/Päivä \",Kalenteripäivä-DATE(YEAR(Kalenteripäivä),1,0)),CONCATENATE(\"Päivä \",Kalenteripäivä-DATE(YEAR(Kalenteripäivä),1,0)))","v":"Päivä 257"},{"$f":"IF(WEEKDAY(Kalenteripäivä)=Viikon_aloitusarvo,CONCATENATE(\"Viikko \",WEEKNUM(Kalenteripäivä),\"/Päivä \",Kalenteripäivä-DATE(YEAR(Kalenteripäivä),1,0)),CONCATENATE(\"Päivä \",Kalenteripäivä-DATE(YEAR(Kalenteripäivä),1,0)))","v":"Päivä 258"}]
[]
[null,null,{"$f":"Päivät_ja_viikot+DATE(Kalenterivuosi,9,1)-WEEKDAY(DATE(Kalenterivuosi,9,1),(Viikon_aloituspäivä=\"MA\")+1)+22","v":"2018-09-16"},"2018-09-17","2018-09-18","2018-09-19","2018-09-20","2018-09-21","2018-09-22"]
[null,null,{"$f":"IF(WEEKDAY(Kalenteripäivä)=Viikon_aloitusarvo,CONCATENATE(\"Viikko \",WEEKNUM(Kalenteripäivä),\"/Päivä \",Kalenteripäivä-DATE(YEAR(Kalenteripäivä),1,0)),CONCATENATE(\"Päivä \",Kalenteripäivä-DATE(YEAR(Kalenteripäivä),1,0)))","v":"Viikko 38/Päivä 259"},{"$f":"IF(WEEKDAY(Kalenteripäivä)=Viikon_aloitusarvo,CONCATENATE(\"Viikko \",WEEKNUM(Kalenteripäivä),\"/Päivä \",Kalenteripäivä-DATE(YEAR(Kalenteripäivä),1,0)),CONCATENATE(\"Päivä \",Kalenteripäivä-DATE(YEAR(Kalenteripäivä),1,0)))","v":"Päivä 260"},{"$f":"IF(WEEKDAY(Kalenteripäivä)=Viikon_aloitusarvo,CONCATENATE(\"Viikko \",WEEKNUM(Kalenteripäivä),\"/Päivä \",Kalenteripäivä-DATE(YEAR(Kalenteripäivä),1,0)),CONCATENATE(\"Päivä \",Kalenteripäivä-DATE(YEAR(Kalenteripäivä),1,0)))","v":"Päivä 261"},{"$f":"IF(WEEKDAY(Kalenteripäivä)=Viikon_aloitusarvo,CONCATENATE(\"Viikko \",WEEKNUM(Kalenteripäivä),\"/Päivä \",Kalenteripäivä-DATE(YEAR(Kalenteripäivä),1,0)),CONCATENATE(\"Päivä \",Kalenteripäivä-DATE(YEAR(Kalenteripäivä),1,0)))","v":"Päivä 262"},{"$f":"IF(WEEKDAY(Kalenteripäivä)=Viikon_aloitusarvo,CONCATENATE(\"Viikko \",WEEKNUM(Kalenteripäivä),\"/Päivä \",Kalenteripäivä-DATE(YEAR(Kalenteripäivä),1,0)),CONCATENATE(\"Päivä \",Kalenteripäivä-DATE(YEAR(Kalenteripäivä),1,0)))","v":"Päivä 263"},{"$f":"IF(WEEKDAY(Kalenteripäivä)=Viikon_aloitusarvo,CONCATENATE(\"Viikko \",WEEKNUM(Kalenteripäivä),\"/Päivä \",Kalenteripäivä-DATE(YEAR(Kalenteripäivä),1,0)),CONCATENATE(\"Päivä \",Kalenteripäivä-DATE(YEAR(Kalenteripäivä),1,0)))","v":"Päivä 264"},{"$f":"IF(WEEKDAY(Kalenteripäivä)=Viikon_aloitusarvo,CONCATENATE(\"Viikko \",WEEKNUM(Kalenteripäivä),\"/Päivä \",Kalenteripäivä-DATE(YEAR(Kalenteripäivä),1,0)),CONCATENATE(\"Päivä \",Kalenteripäivä-DATE(YEAR(Kalenteripäivä),1,0)))","v":"Päivä 265"}]
[]
[null,null,{"$f":"Päivät_ja_viikot+DATE(Kalenterivuosi,9,1)-WEEKDAY(DATE(Kalenterivuosi,9,1),(Viikon_aloituspäivä=\"MA\")+1)+29","v":"2018-09-23"},"2018-09-24","2018-09-25","2018-09-26","2018-09-27","2018-09-28","2018-09-29"]
[null,null,{"$f":"IF(WEEKDAY(Kalenteripäivä)=Viikon_aloitusarvo,CONCATENATE(\"Viikko \",WEEKNUM(Kalenteripäivä),\"/Päivä \",Kalenteripäivä-DATE(YEAR(Kalenteripäivä),1,0)),CONCATENATE(\"Päivä \",Kalenteripäivä-DATE(YEAR(Kalenteripäivä),1,0)))","v":"Viikko 39/Päivä 266"},{"$f":"IF(WEEKDAY(Kalenteripäivä)=Viikon_aloitusarvo,CONCATENATE(\"Viikko \",WEEKNUM(Kalenteripäivä),\"/Päivä \",Kalenteripäivä-DATE(YEAR(Kalenteripäivä),1,0)),CONCATENATE(\"Päivä \",Kalenteripäivä-DATE(YEAR(Kalenteripäivä),1,0)))","v":"Päivä 267"},{"$f":"IF(WEEKDAY(Kalenteripäivä)=Viikon_aloitusarvo,CONCATENATE(\"Viikko \",WEEKNUM(Kalenteripäivä),\"/Päivä \",Kalenteripäivä-DATE(YEAR(Kalenteripäivä),1,0)),CONCATENATE(\"Päivä \",Kalenteripäivä-DATE(YEAR(Kalenteripäivä),1,0)))","v":"Päivä 268"},{"$f":"IF(WEEKDAY(Kalenteripäivä)=Viikon_aloitusarvo,CONCATENATE(\"Viikko \",WEEKNUM(Kalenteripäivä),\"/Päivä \",Kalenteripäivä-DATE(YEAR(Kalenteripäivä),1,0)),CONCATENATE(\"Päivä \",Kalenteripäivä-DATE(YEAR(Kalenteripäivä),1,0)))","v":"Päivä 269"},{"$f":"IF(WEEKDAY(Kalenteripäivä)=Viikon_aloitusarvo,CONCATENATE(\"Viikko \",WEEKNUM(Kalenteripäivä),\"/Päivä \",Kalenteripäivä-DATE(YEAR(Kalenteripäivä),1,0)),CONCATENATE(\"Päivä \",Kalenteripäivä-DATE(YEAR(Kalenteripäivä),1,0)))","v":"Päivä 270"},{"$f":"IF(WEEKDAY(Kalenteripäivä)=Viikon_aloitusarvo,CONCATENATE(\"Viikko \",WEEKNUM(Kalenteripäivä),\"/Päivä \",Kalenteripäivä-DATE(YEAR(Kalenteripäivä),1,0)),CONCATENATE(\"Päivä \",Kalenteripäivä-DATE(YEAR(Kalenteripäivä),1,0)))","v":"Päivä 271"},{"$f":"IF(WEEKDAY(Kalenteripäivä)=Viikon_aloitusarvo,CONCATENATE(\"Viikko \",WEEKNUM(Kalenteripäivä),\"/Päivä \",Kalenteripäivä-DATE(YEAR(Kalenteripäivä),1,0)),CONCATENATE(\"Päivä \",Kalenteripäivä-DATE(YEAR(Kalenteripäivä),1,0)))","v":"Päivä 272"}]
[{"$nulls":4},"MUISTIINPANOT"]
[]
[null,null,{"$f":"Päivät_ja_viikot+DATE(Kalenterivuosi,9,1)-WEEKDAY(DATE(Kalenterivuosi,9,1),(Viikon_aloituspäivä=\"MA\")+1)+36","v":"2018-09-30"},"2018-10-01"]
[null,null,{"$f":"IF(WEEKDAY(Kalenteripäivä)=Viikon_aloitusarvo,CONCATENATE(\"Viikko \",WEEKNUM(Kalenteripäivä),\"/Päivä \",Kalenteripäivä-DATE(YEAR(Kalenteripäivä),1,0)),CONCATENATE(\"Päivä \",Kalenteripäivä-DATE(YEAR(Kalenteripäivä),1,0)))","v":"Viikko 40/Päivä 273"},{"$f":"IF(WEEKDAY(Kalenteripäivä)=Viikon_aloitusarvo,CONCATENATE(\"Viikko \",WEEKNUM(Kalenteripäivä),\"/Päivä \",Kalenteripäivä-DATE(YEAR(Kalenteripäivä),1,0)),CONCATENATE(\"Päivä \",Kalenteripäivä-DATE(YEAR(Kalenteripäivä),1,0)))","v":"Päivä 274"}]

{"sheet":"LOKA","index":9,"n_rows":20,"n_cols":9,"rows_kept":20,"merged":[[16,2,17,2],[17,4,19,8]]}
[null,"LOKA",{"$f":"UPPER(TEXT(Viikon_aloituspäivä,\"ddd\"))","v":"SU"},{"$f":"UPPER(TEXT(D3,\"aaa\"))","v":"MA"},"TI","KE","TO","PE","LA"]
[null,{"$f":"Kalenterivuosi","v":2018}]
[null,null,{"$f":"Päivät_ja_viikot+DATE(Kalenterivuosi,10,1)-WEEKDAY(DATE(Kalenterivuosi,10,1),(Viikon_aloituspäivä=\"MA\")+1)+1","v":"2018-09-30"},"2018-10-01","2018-10-02","2018-10-03","2018-10-04","2018-10-05","2018-10-06"]
[null,null,{"$f":"IF(DAY(Kalenteripäivä)=1,CONCATENATE(\"Viikko \",WEEKNUM(Kalenteripäivä),\"/Päivä \",Kalenteripäivä-DATE(YEAR(Kalenteripäivä),1,0)),CONCATENATE(\"Päivä \",Kalenteripäivä-DATE(YEAR(Kalenteripäivä),1,0)))","v":"Päivä 273"},{"$f":"IF(DAY(Kalenteripäivä)=1,CONCATENATE(\"Viikko \",WEEKNUM(Kalenteripäivä),\"/Päivä \",Kalenteripäivä-DATE(YEAR(Kalenteripäivä),1,0)),CONCATENATE(\"Päivä \",Kalenteripäivä-DATE(YEAR(Kalenteripäivä),1,0)))","v":"Viikko 40/Päivä 274"},{"$f":"IF(DAY(Kalenteripäivä)=1,CONCATENATE(\"Viikko \",WEEKNUM(Kalenteripäivä),\"/Päivä \",Kalenteripäivä-DATE(YEAR(Kalenteripäivä),1,0)),CONCATENATE(\"Päivä \",Kalenteripäivä-DATE(YEAR(Kalenteripäivä),1,0)))","v":"Päivä 275"},{"$f":"IF(DAY(Kalenteripäivä)=1,CONCATENATE(\"Viikko \",WEEKNUM(Kalenteripäivä),\"/Päivä \",Kalenteripäivä-DATE(YEAR(Kalenteripäivä),1,0)),CONCATENATE(\"Päivä \",Kalenteripäivä-DATE(YEAR(Kalenteripäivä),1,0)))","v":"Päivä 276"},{"$f":"IF(DAY(Kalenteripäivä)=1,CONCATENATE(\"Viikko \",WEEKNUM(Kalenteripäivä),\"/Päivä \",Kalenteripäivä-DATE(YEAR(Kalenteripäivä),1,0)),CONCATENATE(\"Päivä \",Kalenteripäivä-DATE(YEAR(Kalenteripäivä),1,0)))","v":"Päivä 277"},{"$f":"IF(DAY(Kalenteripäivä)=1,CONCATENATE(\"Viikko \",WEEKNUM(Kalenteripäivä),\"/Päivä \",Kalenteripäivä-DATE(YEAR(Kalenteripäivä),1,0)),CONCATENATE(\"Päivä \",Kalenteripäivä-DATE(YEAR(Kalenteripäivä),1,0)))","v":"Päivä 278"},{"$f":"IF(DAY(Kalenteripäivä)=1,CONCATENATE(\"Viikko \",WEEKNUM(Kalenteripäivä),\"/Päivä \",Kalenteripäivä-DATE(YEAR(Kalenteripäivä),1,0)),CONCATENATE(\"Päivä \",Kalenteripäivä-DATE(YEAR(Kalenteripäivä),1,0)))","v":"Päivä 279"}]
[]
[null,null,{"$f":"Päivät_ja_viikot+DATE(Kalenterivuosi,10,1)-WEEKDAY(DATE(Kalenterivuosi,10,1),(Viikon_aloituspäivä=\"MA\")+1)+8","v":"2018-10-07"},"2018-10-08","2018-10-09","2018-10-10","2018-10-11","2018-10-12","2018-10-13"]
[null,null,{"$f":"IF(WEEKDAY(Kalenteripäivä)=Viikon_aloitusarvo,CONCATENATE(\"Viikko \",WEEKNUM(Kalenteripäivä),\"/Päivä \",Kalenteripäivä-DATE(YEAR(Kalenteripäivä),1,0)),CONCATENATE(\"Päivä \",Kalenteripäivä-DATE(YEAR(Kalenteripäivä),1,0)))","v":"Viikko 41/Päivä 280"},{"$f":"IF(WEEKDAY(Kalenteripäivä)=Viikon_aloitusarvo,CONCATENATE(\"Viikko \",WEEKNUM(Kalenteripäivä),\"/Päivä \",Kalenteripäivä-DATE(YEAR(Kalenteripäivä),1,0)),CONCATENATE(\"Päivä \",Kalenteripäivä-DATE(YEAR(Kalenteripäivä),1,0)))","v":"Päivä 281"},{"$f":"IF(WEEKDAY(Kalenteripäivä)=Viikon_aloitusarvo,CONCATENATE(\"Viikko \",WEEKNUM(Kalenteripäivä),\"/Päivä \",Kalenteripäivä-DATE(YEAR(Kalenteripäivä),1,0)),CONCATENATE(\"Päivä \",Kalenteripäivä-DATE(YEAR(Kalenteripäivä),1,0)))","v":"Päivä 282"},{"$f":"IF(WEEKDAY(Kalenteripäivä)=Viikon_aloitusarvo,CONCATENATE(\"Viikko \",WEEKNUM(Kalenteripäivä),\"/Päivä \",Kalenteripäivä-DATE(YEAR(Kalenteripäivä),1,0)),CONCATENATE(\"Päivä \",Kalenteripäivä-DATE(YEAR(Kalenteripäivä),1,0)))","v":"Päivä 283"},{"$f":"IF(WEEKDAY(Kalenteripäivä)=Viikon_aloitusarvo,CONCATENATE(\"Viikko \",WEEKNUM(Kalenteripäivä),\"/Päivä \",Kalenteripäivä-DATE(YEAR(Kalenteripäivä),1,0)),CONCATENATE(\"Päivä \",Kalenteripäivä-DATE(YEAR(Kalenteripäivä),1,0)))","v":"Päivä 284"},{"$f":"IF(WEEKDAY(Kalenteripäivä)=Viikon_aloitusarvo,CONCATENATE(\"Viikko \",WEEKNUM(Kalenteripäivä),\"/Päivä \",Kalenteripäivä-DATE(YEAR(Kalenteripäivä),1,0)),CONCATENATE(\"Päivä \",Kalenteripäivä-DATE(YEAR(Kalenteripäivä),1,0)))","v":"Päivä 285"},{"$f":"IF(WEEKDAY(Kalenteripäivä)=Viikon_aloitusarvo,CONCATENATE(\"Viikko \",WEEKNUM(Kalenteripäivä),\"/Päivä \",Kalenteripäivä-DATE(YEAR(Kalenteripäivä),1,0)),CONCATENATE(\"Päivä \",Kalenteripäivä-DATE(YEAR(Kalenteripäivä),1,0)))","v":"Päivä 286"}]
[]
[null,null,{"$f":"Päivät_ja_viikot+DATE(Kalenterivuosi,10,1)-WEEKDAY(DATE(Kalenterivuosi,10,1),(Viikon_aloituspäivä=\"MA\")+1)+15","v":"2018-10-14"},"2018-10-15","2018-10-16","2018-10-17","2018-10-18","2018-10-19","2018-10-20"]
[null,null,{"$f":"IF(WEEKDAY(Kalenteripäivä)=Viikon_aloitusarvo,CONCATENATE(\"Viikko \",WEEKNUM(Kalenteripäivä),\"/Päivä \",Kalenteripäivä-DATE(YEAR(Kalenteripäivä),1,0)),CONCATENATE(\"Päivä \",Kalenteripäivä-DATE(YEAR(Kalenteripäivä),1,0)))","v":"Viikko 42/Päivä 287"},{"$f":"IF(WEEKDAY(Kalenteripäivä)=Viikon_aloitusarvo,CONCATENATE(\"Viikko \",WEEKNUM(Kalenteripäivä),\"/Päivä \",Kalenteripäivä-DATE(YEAR(Kalenteripäivä),1,0)),CONCATENATE(\"Päivä \",Kalenteripäivä-DATE(YEAR(Kalenteripäivä),1,0)))","v":"Päivä 288"},{"$f":"IF(WEEKDAY(Kalenteripäivä)=Viikon_aloitusarvo,CONCATENATE(\"Viikko \",WEEKNUM(Kalenteripäivä),\"/Päivä \",Kalenteripäivä-DATE(YEAR(Kalenteripäivä),1,0)),CONCATENATE(\"Päivä \",Kalenteripäivä-DATE(YEAR(Kalenteripäivä),1,0)))","v":"Päivä 289"},{"$f":"IF(WEEKDAY(Kalenteripäivä)=Viikon_aloitusarvo,CONCATENATE(\"Viikko \",WEEKNUM(Kalenteripäivä),\"/Päivä \",Kalenteripäivä-DATE(YEAR(Kalenteripäivä),1,0)),CONCATENATE(\"Päivä \",Kalenteripäivä-DATE(YEAR(Kalenteripäivä),1,0)))","v":"Päivä 290"},{"$f":"IF(WEEKDAY(Kalenteripäivä)=Viikon_aloitusarvo,CONCATENATE(\"Viikko \",WEEKNUM(Kalenteripäivä),\"/Päivä \",Kalenteripäivä-DATE(YEAR(Kalenteripäivä),1,0)),CONCATENATE(\"Päivä \",Kalenteripäivä-DATE(YEAR(Kalenteripäivä),1,0)))","v":"Päivä 291"},{"$f":"IF(WEEKDAY(Kalenteripäivä)=Viikon_aloitusarvo,CONCATENATE(\"Viikko \",WEEKNUM(Kalenteripäivä),\"/Päivä \",Kalenteripäivä-DATE(YEAR(Kalenteripäivä),1,0)),CONCATENATE(\"Päivä \",Kalenteripäivä-DATE(YEAR(Kalenteripäivä),1,0)))","v":"Päivä 292"},{"$f":"IF(WEEKDAY(Kalenteripäivä)=Viikon_aloitusarvo,CONCATENATE(\"Viikko \",WEEKNUM(Kalenteripäivä),\"/Päivä \",Kalenteripäivä-DATE(YEAR(Kalenteripäivä),1,0)),CONCATENATE(\"Päivä \",Kalenteripäivä-DATE(YEAR(Kalenteripäivä),1,0)))","v":"Päivä 293"}]
[]
[null,null,{"$f":"Päivät_ja_viikot+DATE(Kalenterivuosi,10,1)-WEEKDAY(DATE(Kalenterivuosi,10,1),(Viikon_aloituspäivä=\"MA\")+1)+22","v":"2018-10-21"},"2018-10-22","2018-10-23","2018-10-24","2018-10-25","2018-10-26","2018-10-27"]
[null,null,{"$f":"IF(WEEKDAY(Kalenteripäivä)=Viikon_aloitusarvo,CONCATENATE(\"Viikko \",WEEKNUM(Kalenteripäivä),\"/Päivä \",Kalenteripäivä-DATE(YEAR(Kalenteripäivä),1,0)),CONCATENATE(\"Päivä \",Kalenteripäivä-DATE(YEAR(Kalenteripäivä),1,0)))","v":"Viikko 43/Päivä 294"},{"$f":"IF(WEEKDAY(Kalenteripäivä)=Viikon_aloitusarvo,CONCATENATE(\"Viikko \",WEEKNUM(Kalenteripäivä),\"/Päivä \",Kalenteripäivä-DATE(YEAR(Kalenteripäivä),1,0)),CONCATENATE(\"Päivä \",Kalenteripäivä-DATE(YEAR(Kalenteripäivä),1,0)))","v":"Päivä 295"},{"$f":"IF(WEEKDAY(Kalenteripäivä)=Viikon_aloitusarvo,CONCATENATE(\"Viikko \",WEEKNUM(Kalenteripäivä),\"/Päivä \",Kalenteripäivä-DATE(YEAR(Kalenteripäivä),1,0)),CONCATENATE(\"Päivä \",Kalenteripäivä-DATE(YEAR(Kalenteripäivä),1,0)))","v":"Päivä 296"},{"$f":"IF(WEEKDAY(Kalenteripäivä)=Viikon_aloitusarvo,CONCATENATE(\"Viikko \",WEEKNUM(Kalenteripäivä),\"/Päivä \",Kalenteripäivä-DATE(YEAR(Kalenteripäivä),1,0)),CONCATENATE(\"Päivä \",Kalenteripäivä-DATE(YEAR(Kalenteripäivä),1,0)))","v":"Päivä 297"},{"$f":"IF(WEEKDAY(Kalenteripäivä)=Viikon_aloitusarvo,CONCATENATE(\"Viikko \",WEEKNUM(Kalenteripäivä),\"/Päivä \",Kalenteripäivä-DATE(YEAR(Kalenteripäivä),1,0)),CONCATENATE(\"Päivä \",Kalenteripäivä-DATE(YEAR(Kalenteripäivä),1,0)))","v":"Päivä 298"},{"$f":"IF(WEEKDAY(Kalenteripäivä)=Viikon_aloitusarvo,CONCATENATE(\"Viikko \",WEEKNUM(Kalenteripäivä),\"/Päivä \",Kalenteripäivä-DATE(YEAR(Kalenteripäivä),1,0)),CONCATENATE(\"Päivä \",Kalenteripäivä-DATE(YEAR(Kalenteripäivä),1,0)))","v":"Päivä 299"},{"$f":"IF(WEEKDAY(Kalenteripäivä)=Viikon_aloitusarvo,CONCATENATE(\"Viikko \",WEEKNUM(Kalenteripäivä),\"/Päivä \",Kalenteripäivä-DATE(YEAR(Kalenteripäivä),1,0)),CONCATENATE(\"Päivä \",Kalenteripäivä-DATE(YEAR(Kalenteripäivä),1,0)))","v":"Päivä 300"}]
[]
[null,null,{"$f":"Päivät_ja_viikot+DATE(Kalenterivuosi,10,1)-WEEKDAY(DATE(Kalenterivuosi,10,1),(Viikon_aloituspäivä=\"MA\")+1)+29","v":"2018-10-28"},"2018-10-29","2018-10-30","2018-10-31","2018-11-01","2018-11-02","2018-11-03"]
[null,null,{"$f":"IF(WEEKDAY(Kalenteripäivä)=Viikon_aloitusarvo,CONCATENATE(\"Viikko \",WEEKNUM(Kalenteripäivä),\"/Päivä \",Kalenteripäivä-DATE(YEAR(Kalenteripäivä),1,0)),CONCATENATE(\"Päivä \",Kalenteripäivä-DATE(YEAR(Kalenteripäivä),1,0)))","v":"Viikko 44/Päivä 301"},{"$f":"IF(WEEKDAY(Kalenteripäivä)=Viikon_aloitusarvo,CONCATENATE(\"Viikko \",WEEKNUM(Kalenteripäivä),\"/Päivä \",Kalenteripäivä-DATE(YEAR(Kalenteripäivä),1,0)),CONCATENATE(\"Päivä \",Kalenteripäivä-DATE(YEAR(Kalenteripäivä),1,0)))","v":"Päivä 302"},{"$f":"IF(WEEKDAY(Kalenteripäivä)=Viikon_aloitusarvo,CONCATENATE(\"Viikko \",WEEKNUM(Kalenteripäivä),\"/Päivä \",Kalenteripäivä-DATE(YEAR(Kalenteripäivä),1,0)),CONCATENATE(\"Päivä \",Kalenteripäivä-DATE(YEAR(Kalenteripäivä),1,0)))","v":"Päivä 303"},{"$f":"IF(WEEKDAY(Kalenteripäivä)=Viikon_aloitusarvo,CONCATENATE(\"Viikko \",WEEKNUM(Kalenteripäivä),\"/Päivä \",Kalenteripäivä-DATE(YEAR(Kalenteripäivä),1,0)),CONCATENATE(\"Päivä \",Kalenteripäivä-DATE(YEAR(Kalenteripäivä),1,0)))","v":"Päivä 304"},{"$f":"IF(WEEKDAY(Kalenteripäivä)=Viikon_aloitusarvo,CONCATENATE(\"Viikko \",WEEKNUM(Kalenteripäivä),\"/Päivä \",Kalenteripäivä-DATE(YEAR(Kalenteripäivä),1,0)),CONCATENATE(\"Päivä \",Kalenteripäivä-DATE(YEAR(Kalenteripäivä),1,0)))","v":"Päivä 305"},{"$f":"IF(WEEKDAY(Kalenteripäivä)=Viikon_aloitusarvo,CONCATENATE(\"Viikko \",WEEKNUM(Kalenteripäivä),\"/Päivä \",Kalenteripäivä-DATE(YEAR(Kalenteripäivä),1,0)),CONCATENATE(\"Päivä \",Kalenteripäivä-DATE(YEAR(Kalenteripäivä),1,0)))","v":"Päivä 306"},{"$f":"IF(WEEKDAY(Kalenteripäivä)=Viikon_aloitusarvo,CONCATENATE(\"Viikko \",WEEKNUM(Kalenteripäivä),\"/Päivä \",Kalenteripäivä-DATE(YEAR(Kalenteripäivä),1,0)),CONCATENATE(\"Päivä \",Kalenteripäivä-DATE(YEAR(Kalenteripäivä),1,0)))","v":"Päivä 307"}]
[{"$nulls":4},"MUISTIINPANOT"]
[]
[null,null,{"$f":"Päivät_ja_viikot+DATE(Kalenterivuosi,10,1)-WEEKDAY(DATE(Kalenterivuosi,10,1),(Viikon_aloituspäivä=\"MA\")+1)+36","v":"2018-11-04"},"2018-11-05"]
[null,null,{"$f":"IF(WEEKDAY(Kalenteripäivä)=Viikon_aloitusarvo,CONCATENATE(\"Viikko \",WEEKNUM(Kalenteripäivä),\"/Päivä \",Kalenteripäivä-DATE(YEAR(Kalenteripäivä),1,0)),CONCATENATE(\"Päivä \",Kalenteripäivä-DATE(YEAR(Kalenteripäivä),1,0)))","v":"Viikko 45/Päivä 308"},{"$f":"IF(WEEKDAY(Kalenteripäivä)=Viikon_aloitusarvo,CONCATENATE(\"Viikko \",WEEKNUM(Kalenteripäivä),\"/Päivä \",Kalenteripäivä-DATE(YEAR(Kalenteripäivä),1,0)),CONCATENATE(\"Päivä \",Kalenteripäivä-DATE(YEAR(Kalenteripäivä),1,0)))","v":"Päivä 309"}]

{"sheet":"MARRAS","index":10,"n_rows":20,"n_cols":9,"rows_kept":20,"merged":[[16,2,17,2],[17,4,19,8]]}
[null,"MARRAS",{"$f":"UPPER(TEXT(Viikon_aloituspäivä,\"ddd\"))","v":"SU"},{"$f":"UPPER(TEXT(D3,\"aaa\"))","v":"MA"},"TI","KE","TO","PE","LA"]
[null,{"$f":"Kalenterivuosi","v":2018}]
[null,null,{"$f":"Päivät_ja_viikot+DATE(Kalenterivuosi,11,1)-WEEKDAY(DATE(Kalenterivuosi,11,1),(Viikon_aloituspäivä=\"MA\")+1)+1","v":"2018-10-28"},"2018-10-29","2018-10-30","2018-10-31","2018-11-01","2018-11-02","2018-11-03"]
[null,null,{"$f":"IF(DAY(Kalenteripäivä)=1,CONCATENATE(\"Viikko \",WEEKNUM(Kalenteripäivä),\"/Päivä \",Kalenteripäivä-DATE(YEAR(Kalenteripäivä),1,0)),CONCATENATE(\"Päivä \",Kalenteripäivä-DATE(YEAR(Kalenteripäivä),1,0)))","v":"Päivä 301"},{"$f":"IF(DAY(Kalenteripäivä)=1,CONCATENATE(\"Viikko \",WEEKNUM(Kalenteripäivä),\"/Päivä \",Kalenteripäivä-DATE(YEAR(Kalenteripäivä),1,0)),CONCATENATE(\"Päivä \",Kalenteripäivä-DATE(YEAR(Kalenteripäivä),1,0)))","v":"Päivä 302"},{"$f":"IF(DAY(Kalenteripäivä)=1,CONCATENATE(\"Viikko \",WEEKNUM(Kalenteripäivä),\"/Päivä \",Kalenteripäivä-DATE(YEAR(Kalenteripäivä),1,0)),CONCATENATE(\"Päivä \",Kalenteripäivä-DATE(YEAR(Kalenteripäivä),1,0)))","v":"Päivä 303"},{"$f":"IF(DAY(Kalenteripäivä)=1,CONCATENATE(\"Viikko \",WEEKNUM(Kalenteripäivä),\"/Päivä \",Kalenteripäivä-DATE(YEAR(Kalenteripäivä),1,0)),CONCATENATE(\"Päivä \",Kalenteripäivä-DATE(YEAR(Kalenteripäivä),1,0)))","v":"Päivä 304"},{"$f":"IF(DAY(Kalenteripäivä)=1,CONCATENATE(\"Viikko \",WEEKNUM(Kalenteripäivä),\"/Päivä \",Kalenteripäivä-DATE(YEAR(Kalenteripäivä),1,0)),CONCATENATE(\"Päivä \",Kalenteripäivä-DATE(YEAR(Kalenteripäivä),1,0)))","v":"Viikko 44/Päivä 305"},{"$f":"IF(DAY(Kalenteripäivä)=1,CONCATENATE(\"Viikko \",WEEKNUM(Kalenteripäivä),\"/Päivä \",Kalenteripäivä-DATE(YEAR(Kalenteripäivä),1,0)),CONCATENATE(\"Päivä \",Kalenteripäivä-DATE(YEAR(Kalenteripäivä),1,0)))","v":"Päivä 306"},{"$f":"IF(DAY(Kalenteripäivä)=1,CONCATENATE(\"Viikko \",WEEKNUM(Kalenteripäivä),\"/Päivä \",Kalenteripäivä-DATE(YEAR(Kalenteripäivä),1,0)),CONCATENATE(\"Päivä \",Kalenteripäivä-DATE(YEAR(Kalenteripäivä),1,0)))","v":"Päivä 307"}]
[]
[null,null,{"$f":"Päivät_ja_viikot+DATE(Kalenterivuosi,11,1)-WEEKDAY(DATE(Kalenterivuosi,11,1),(Viikon_aloituspäivä=\"MA\")+1)+8","v":"2018-11-04"},"2018-11-05","2018-11-06","2018-11-07","2018-11-08","2018-11-09","2018-11-10"]
[null,null,{"$f":"IF(WEEKDAY(Kalenteripäivä)=Viikon_aloitusarvo,CONCATENATE(\"Viikko \",WEEKNUM(Kalenteripäivä),\"/Päivä \",Kalenteripäivä-DATE(YEAR(Kalenteripäivä),1,0)),CONCATENATE(\"Päivä \",Kalenteripäivä-DATE(YEAR(Kalenteripäivä),1,0)))","v":"Viikko 45/Päivä 308"},{"$f":"IF(WEEKDAY(Kalenteripäivä)=Viikon_aloitusarvo,CONCATENATE(\"Viikko \",WEEKNUM(Kalenteripäivä),\"/Päivä \",Kalenteripäivä-DATE(YEAR(Kalenteripäivä),1,0)),CONCATENATE(\"Päivä \",Kalenteripäivä-DATE(YEAR(Kalenteripäivä),1,0)))","v":"Päivä 309"},{"$f":"IF(WEEKDAY(Kalenteripäivä)=Viikon_aloitusarvo,CONCATENATE(\"Viikko \",WEEKNUM(Kalenteripäivä),\"/Päivä \",Kalenteripäivä-DATE(YEAR(Kalenteripäivä),1,0)),CONCATENATE(\"Päivä \",Kalenteripäivä-DATE(YEAR(Kalenteripäivä),1,0)))","v":"Päivä 310"},{"$f":"IF(WEEKDAY(Kalenteripäivä)=Viikon_aloitusarvo,CONCATENATE(\"Viikko \",WEEKNUM(Kalenteripäivä),\"/Päivä \",Kalenteripäivä-DATE(YEAR(Kalenteripäivä),1,0)),CONCATENATE(\"Päivä \",Kalenteripäivä-DATE(YEAR(Kalenteripäivä),1,0)))","v":"Päivä 311"},{"$f":"IF(WEEKDAY(Kalenteripäivä)=Viikon_aloitusarvo,CONCATENATE(\"Viikko \",WEEKNUM(Kalenteripäivä),\"/Päivä \",Kalenteripäivä-DATE(YEAR(Kalenteripäivä),1,0)),CONCATENATE(\"Päivä \",Kalenteripäivä-DATE(YEAR(Kalenteripäivä),1,0)))","v":"Päivä 312"},{"$f":"IF(WEEKDAY(Kalenteripäivä)=Viikon_aloitusarvo,CONCATENATE(\"Viikko \",WEEKNUM(Kalenteripäivä),\"/Päivä \",Kalenteripäivä-DATE(YEAR(Kalenteripäivä),1,0)),CONCATENATE(\"Päivä \",Kalenteripäivä-DATE(YEAR(Kalenteripäivä),1,0)))","v":"Päivä 313"},{"$f":"IF(WEEKDAY(Kalenteripäivä)=Viikon_aloitusarvo,CONCATENATE(\"Viikko \",WEEKNUM(Kalenteripäivä),\"/Päivä \",Kalenteripäivä-DATE(YEAR(Kalenteripäivä),1,0)),CONCATENATE(\"Päivä \",Kalenteripäivä-DATE(YEAR(Kalenteripäivä),1,0)))","v":"Päivä 314"}]
[]
[null,null,{"$f":"Päivät_ja_viikot+DATE(Kalenterivuosi,11,1)-WEEKDAY(DATE(Kalenterivuosi,11,1),(Viikon_aloituspäivä=\"MA\")+1)+15","v":"2018-11-11"},"2018-11-12","2018-11-13","2018-11-14","2018-11-15","2018-11-16","2018-11-17"]
[null,null,{"$f":"IF(WEEKDAY(Kalenteripäivä)=Viikon_aloitusarvo,CONCATENATE(\"Viikko \",WEEKNUM(Kalenteripäivä),\"/Päivä \",Kalenteripäivä-DATE(YEAR(Kalenteripäivä),1,0)),CONCATENATE(\"Päivä \",Kalenteripäivä-DATE(YEAR(Kalenteripäivä),1,0)))","v":"Viikko 46/Päivä 315"},{"$f":"IF(WEEKDAY(Kalenteripäivä)=Viikon_aloitusarvo,CONCATENATE(\"Viikko \",WEEKNUM(Kalenteripäivä),\"/Päivä \",Kalenteripäivä-DATE(YEAR(Kalenteripäivä),1,0)),CONCATENATE(\"Päivä \",Kalenteripäivä-DATE(YEAR(Kalenteripäivä),1,0)))","v":"Päivä 316"},{"$f":"IF(WEEKDAY(Kalenteripäivä)=Viikon_aloitusarvo,CONCATENATE(\"Viikko \",WEEKNUM(Kalenteripäivä),\"/Päivä \",Kalenteripäivä-DATE(YEAR(Kalenteripäivä),1,0)),CONCATENATE(\"Päivä \",Kalenteripäivä-DATE(YEAR(Kalenteripäivä),1,0)))","v":"Päivä 317"},{"$f":"IF(WEEKDAY(Kalenteripäivä)=Viikon_aloitusarvo,CONCATENATE(\"Viikko \",WEEKNUM(Kalenteripäivä),\"/Päivä \",Kalenteripäivä-DATE(YEAR(Kalenteripäivä),1,0)),CONCATENATE(\"Päivä \",Kalenteripäivä-DATE(YEAR(Kalenteripäivä),1,0)))","v":"Päivä 318"},{"$f":"IF(WEEKDAY(Kalenteripäivä)=Viikon_aloitusarvo,CONCATENATE(\"Viikko \",WEEKNUM(Kalenteripäivä),\"/Päivä \",Kalenteripäivä-DATE(YEAR(Kalenteripäivä),1,0)),CONCATENATE(\"Päivä \",Kalenteripäivä-DATE(YEAR(Kalenteripäivä),1,0)))","v":"Päivä 319"},{"$f":"IF(WEEKDAY(Kalenteripäivä)=Viikon_aloitusarvo,CONCATENATE(\"Viikko \",WEEKNUM(Kalenteripäivä),\"/Päivä \",Kalenteripäivä-DATE(YEAR(Kalenteripäivä),1,0)),CONCATENATE(\"Päivä \",Kalenteripäivä-DATE(YEAR(Kalenteripäivä),1,0)))","v":"Päivä 320"},{"$f":"IF(WEEKDAY(Kalenteripäivä)=Viikon_aloitusarvo,CONCATENATE(\"Viikko \",WEEKNUM(Kalenteripäivä),\"/Päivä \",Kalenteripäivä-DATE(YEAR(Kalenteripäivä),1,0)),CONCATENATE(\"Päivä \",Kalenteripäivä-DATE(YEAR(Kalenteripäivä),1,0)))","v":"Päivä 321"}]
[]
[null,null,{"$f":"Päivät_ja_viikot+DATE(Kalenterivuosi,11,1)-WEEKDAY(DATE(Kalenterivuosi,11,1),(Viikon_aloituspäivä=\"MA\")+1)+22","v":"2018-11-18"},"2018-11-19","2018-11-20","2018-11-21","2018-11-22","2018-11-23","2018-11-24"]
[null,null,{"$f":"IF(WEEKDAY(Kalenteripäivä)=Viikon_aloitusarvo,CONCATENATE(\"Viikko \",WEEKNUM(Kalenteripäivä),\"/Päivä \",Kalenteripäivä-DATE(YEAR(Kalenteripäivä),1,0)),CONCATENATE(\"Päivä \",Kalenteripäivä-DATE(YEAR(Kalenteripäivä),1,0)))","v":"Viikko 47/Päivä 322"},{"$f":"IF(WEEKDAY(Kalenteripäivä)=Viikon_aloitusarvo,CONCATENATE(\"Viikko \",WEEKNUM(Kalenteripäivä),\"/Päivä \",Kalenteripäivä-DATE(YEAR(Kalenteripäivä),1,0)),CONCATENATE(\"Päivä \",Kalenteripäivä-DATE(YEAR(Kalenteripäivä),1,0)))","v":"Päivä 323"},{"$f":"IF(WEEKDAY(Kalenteripäivä)=Viikon_aloitusarvo,CONCATENATE(\"Viikko \",WEEKNUM(Kalenteripäivä),\"/Päivä \",Kalenteripäivä-DATE(YEAR(Kalenteripäivä),1,0)),CONCATENATE(\"Päivä \",Kalenteripäivä-DATE(YEAR(Kalenteripäivä),1,0)))","v":"Päivä 324"},{"$f":"IF(WEEKDAY(Kalenteripäivä)=Viikon_aloitusarvo,CONCATENATE(\"Viikko \",WEEKNUM(Kalenteripäivä),\"/Päivä \",Kalenteripäivä-DATE(YEAR(Kalenteripäivä),1,0)),CONCATENATE(\"Päivä \",Kalenteripäivä-DATE(YEAR(Kalenteripäivä),1,0)))","v":"Päivä 325"},{"$f":"IF(WEEKDAY(Kalenteripäivä)=Viikon_aloitusarvo,CONCATENATE(\"Viikko \",WEEKNUM(Kalenteripäivä),\"/Päivä \",Kalenteripäivä-DATE(YEAR(Kalenteripäivä),1,0)),CONCATENATE(\"Päivä \",Kalenteripäivä-DATE(YEAR(Kalenteripäivä),1,0)))","v":"Päivä 326"},{"$f":"IF(WEEKDAY(Kalenteripäivä)=Viikon_aloitusarvo,CONCATENATE(\"Viikko \",WEEKNUM(Kalenteripäivä),\"/Päivä \",Kalenteripäivä-DATE(YEAR(Kalenteripäivä),1,0)),CONCATENATE(\"Päivä \",Kalenteripäivä-DATE(YEAR(Kalenteripäivä),1,0)))","v":"Päivä 327"},{"$f":"IF(WEEKDAY(Kalenteripäivä)=Viikon_aloitusarvo,CONCATENATE(\"Viikko \",WEEKNUM(Kalenteripäivä),\"/Päivä \",Kalenteripäivä-DATE(YEAR(Kalenteripäivä),1,0)),CONCATENATE(\"Päivä \",Kalenteripäivä-DATE(YEAR(Kalenteripäivä),1,0)))","v":"Päivä 328"}]
[]
[null,null,{"$f":"Päivät_ja_viikot+DATE(Kalenterivuosi,11,1)-WEEKDAY(DATE(Kalenterivuosi,11,1),(Viikon_aloituspäivä=\"MA\")+1)+29","v":"2018-11-25"},"2018-11-26","2018-11-27","2018-11-28","2018-11-29","2018-11-30","2018-12-01"]
[null,null,{"$f":"IF(WEEKDAY(Kalenteripäivä)=Viikon_aloitusarvo,CONCATENATE(\"Viikko \",WEEKNUM(Kalenteripäivä),\"/Päivä \",Kalenteripäivä-DATE(YEAR(Kalenteripäivä),1,0)),CONCATENATE(\"Päivä \",Kalenteripäivä-DATE(YEAR(Kalenteripäivä),1,0)))","v":"Viikko 48/Päivä 329"},{"$f":"IF(WEEKDAY(Kalenteripäivä)=Viikon_aloitusarvo,CONCATENATE(\"Viikko \",WEEKNUM(Kalenteripäivä),\"/Päivä \",Kalenteripäivä-DATE(YEAR(Kalenteripäivä),1,0)),CONCATENATE(\"Päivä \",Kalenteripäivä-DATE(YEAR(Kalenteripäivä),1,0)))","v":"Päivä 330"},{"$f":"IF(WEEKDAY(Kalenteripäivä)=Viikon_aloitusarvo,CONCATENATE(\"Viikko \",WEEKNUM(Kalenteripäivä),\"/Päivä \",Kalenteripäivä-DATE(YEAR(Kalenteripäivä),1,0)),CONCATENATE(\"Päivä \",Kalenteripäivä-DATE(YEAR(Kalenteripäivä),1,0)))","v":"Päivä 331"},{"$f":"IF(WEEKDAY(Kalenteripäivä)=Viikon_aloitusarvo,CONCATENATE(\"Viikko \",WEEKNUM(Kalenteripäivä),\"/Päivä \",Kalenteripäivä-DATE(YEAR(Kalenteripäivä),1,0)),CONCATENATE(\"Päivä \",Kalenteripäivä-DATE(YEAR(Kalenteripäivä),1,0)))","v":"Päivä 332"},{"$f":"IF(WEEKDAY(Kalenteripäivä)=Viikon_aloitusarvo,CONCATENATE(\"Viikko \",WEEKNUM(Kalenteripäivä),\"/Päivä \",Kalenteripäivä-DATE(YEAR(Kalenteripäivä),1,0)),CONCATENATE(\"Päivä \",Kalenteripäivä-DATE(YEAR(Kalenteripäivä),1,0)))","v":"Päivä 333"},{"$f":"IF(WEEKDAY(Kalenteripäivä)=Viikon_aloitusarvo,CONCATENATE(\"Viikko \",WEEKNUM(Kalenteripäivä),\"/Päivä \",Kalenteripäivä-DATE(YEAR(Kalenteripäivä),1,0)),CONCATENATE(\"Päivä \",Kalenteripäivä-DATE(YEAR(Kalenteripäivä),1,0)))","v":"Päivä 334"},{"$f":"IF(WEEKDAY(Kalenteripäivä)=Viikon_aloitusarvo,CONCATENATE(\"Viikko \",WEEKNUM(Kalenteripäivä),\"/Päivä \",Kalenteripäivä-DATE(YEAR(Kalenteripäivä),1,0)),CONCATENATE(\"Päivä \",Kalenteripäivä-DATE(YEAR(Kalenteripäivä),1,0)))","v":"Päivä 335"}]
[{"$nulls":4},"MUISTIINPANOT"]
[]
[null,null,{"$f":"Päivät_ja_viikot+DATE(Kalenterivuosi,11,1)-WEEKDAY(DATE(Kalenterivuosi,11,1),(Viikon_aloituspäivä=\"MA\")+1)+36","v":"2018-12-02"},"2018-12-03"]
[null,null,{"$f":"IF(WEEKDAY(Kalenteripäivä)=Viikon_aloitusarvo,CONCATENATE(\"Viikko \",WEEKNUM(Kalenteripäivä),\"/Päivä \",Kalenteripäivä-DATE(YEAR(Kalenteripäivä),1,0)),CONCATENATE(\"Päivä \",Kalenteripäivä-DATE(YEAR(Kalenteripäivä),1,0)))","v":"Viikko 49/Päivä 336"},{"$f":"IF(WEEKDAY(Kalenteripäivä)=Viikon_aloitusarvo,CONCATENATE(\"Viikko \",WEEKNUM(Kalenteripäivä),\"/Päivä \",Kalenteripäivä-DATE(YEAR(Kalenteripäivä),1,0)),CONCATENATE(\"Päivä \",Kalenteripäivä-DATE(YEAR(Kalenteripäivä),1,0)))","v":"Päivä 337"}]

{"sheet":"JOULU","index":11,"n_rows":20,"n_cols":9,"rows_kept":20,"merged":[[16,2,17,2],[17,4,19,8]]}
[null,"JOULU",{"$f":"UPPER(TEXT(Viikon_aloituspäivä,\"ddd\"))","v":"SU"},{"$f":"UPPER(TEXT(D3,\"aaa\"))","v":"MA"},"TI","KE","TO","PE","LA"]
[null,{"$f":"Kalenterivuosi","v":2018}]
[null,null,{"$f":"Päivät_ja_viikot+DATE(Kalenterivuosi,12,1)-WEEKDAY(DATE(Kalenterivuosi,12,1),(Viikon_aloituspäivä=\"MA\")+1)+1","v":"2018-11-25"},"2018-11-26","2018-11-27","2018-11-28","2018-11-29","2018-11-30","2018-12-01"]
[null,null,{"$f":"IF(DAY(Kalenteripäivä)=1,CONCATENATE(\"Viikko \",WEEKNUM(Kalenteripäivä),\"/Päivä \",Kalenteripäivä-DATE(YEAR(Kalenteripäivä),1,0)),CONCATENATE(\"Päivä \",Kalenteripäivä-DATE(YEAR(Kalenteripäivä),1,0)))","v":"Päivä 329"},{"$f":"IF(DAY(Kalenteripäivä)=1,CONCATENATE(\"Viikko \",WEEKNUM(Kalenteripäivä),\"/Päivä \",Kalenteripäivä-DATE(YEAR(Kalenteripäivä),1,0)),CONCATENATE(\"Päivä \",Kalenteripäivä-DATE(YEAR(Kalenteripäivä),1,0)))","v":"Päivä 330"},{"$f":"IF(DAY(Kalenteripäivä)=1,CONCATENATE(\"Viikko \",WEEKNUM(Kalenteripäivä),\"/Päivä \",Kalenteripäivä-DATE(YEAR(Kalenteripäivä),1,0)),CONCATENATE(\"Päivä \",Kalenteripäivä-DATE(YEAR(Kalenteripäivä),1,0)))","v":"Päivä 331"},{"$f":"IF(DAY(Kalenteripäivä)=1,CONCATENATE(\"Viikko \",WEEKNUM(Kalenteripäivä),\"/Päivä \",Kalenteripäivä-DATE(YEAR(Kalenteripäivä),1,0)),CONCATENATE(\"Päivä \",Kalenteripäivä-DATE(YEAR(Kalenteripäivä),1,0)))","v":"Päivä 332"},{"$f":"IF(DAY(Kalenteripäivä)=1,CONCATENATE(\"Viikko \",WEEKNUM(Kalenteripäivä),\"/Päivä \",Kalenteripäivä-DATE(YEAR(Kalenteripäivä),1,0)),CONCATENATE(\"Päivä \",Kalenteripäivä-DATE(YEAR(Kalenteripäivä),1,0)))","v":"Päivä 333"},{"$f":"IF(DAY(Kalenteripäivä)=1,CONCATENATE(\"Viikko \",WEEKNUM(Kalenteripäivä),\"/Päivä \",Kalenteripäivä-DATE(YEAR(Kalenteripäivä),1,0)),CONCATENATE(\"Päivä \",Kalenteripäivä-DATE(YEAR(Kalenteripäivä),1,0)))","v":"Päivä 334"},{"$f":"IF(DAY(Kalenteripäivä)=1,CONCATENATE(\"Viikko \",WEEKNUM(Kalenteripäivä),\"/Päivä \",Kalenteripäivä-DATE(YEAR(Kalenteripäivä),1,0)),CONCATENATE(\"Päivä \",Kalenteripäivä-DATE(YEAR(Kalenteripäivä),1,0)))","v":"Viikko 48/Päivä 335"}]
[]
[null,null,{"$f":"Päivät_ja_viikot+DATE(Kalenterivuosi,12,1)-WEEKDAY(DATE(Kalenterivuosi,12,1),(Viikon_aloituspäivä=\"MA\")+1)+8","v":"2018-12-02"},"2018-12-03","2018-12-04","2018-12-05","2018-12-06","2018-12-07","2018-12-08"]
[null,null,{"$f":"IF(WEEKDAY(Kalenteripäivä)=Viikon_aloitusarvo,CONCATENATE(\"Viikko \",WEEKNUM(Kalenteripäivä),\"/Päivä \",Kalenteripäivä-DATE(YEAR(Kalenteripäivä),1,0)),CONCATENATE(\"Päivä \",Kalenteripäivä-DATE(YEAR(Kalenteripäivä),1,0)))","v":"Viikko 49/Päivä 336"},{"$f":"IF(WEEKDAY(Kalenteripäivä)=Viikon_aloitusarvo,CONCATENATE(\"Viikko \",WEEKNUM(Kalenteripäivä),\"/Päivä \",Kalenteripäivä-DATE(YEAR(Kalenteripäivä),1,0)),CONCATENATE(\"Päivä \",Kalenteripäivä-DATE(YEAR(Kalenteripäivä),1,0)))","v":"Päivä 337"},{"$f":"IF(WEEKDAY(Kalenteripäivä)=Viikon_aloitusarvo,CONCATENATE(\"Viikko \",WEEKNUM(Kalenteripäivä),\"/Päivä \",Kalenteripäivä-DATE(YEAR(Kalenteripäivä),1,0)),CONCATENATE(\"Päivä \",Kalenteripäivä-DATE(YEAR(Kalenteripäivä),1,0)))","v":"Päivä 338"},{"$f":"IF(WEEKDAY(Kalenteripäivä)=Viikon_aloitusarvo,CONCATENATE(\"Viikko \",WEEKNUM(Kalenteripäivä),\"/Päivä \",Kalenteripäivä-DATE(YEAR(Kalenteripäivä),1,0)),CONCATENATE(\"Päivä \",Kalenteripäivä-DATE(YEAR(Kalenteripäivä),1,0)))","v":"Päivä 339"},{"$f":"IF(WEEKDAY(Kalenteripäivä)=Viikon_aloitusarvo,CONCATENATE(\"Viikko \",WEEKNUM(Kalenteripäivä),\"/Päivä \",Kalenteripäivä-DATE(YEAR(Kalenteripäivä),1,0)),CONCATENATE(\"Päivä \",Kalenteripäivä-DATE(YEAR(Kalenteripäivä),1,0)))","v":"Päivä 340"},{"$f":"IF(WEEKDAY(Kalenteripäivä)=Viikon_aloitusarvo,CONCATENATE(\"Viikko \",WEEKNUM(Kalenteripäivä),\"/Päivä \",Kalenteripäivä-DATE(YEAR(Kalenteripäivä),1,0)),CONCATENATE(\"Päivä \",Kalenteripäivä-DATE(YEAR(Kalenteripäivä),1,0)))","v":"Päivä 341"},{"$f":"IF(WEEKDAY(Kalenteripäivä)=Viikon_aloitusarvo,CONCATENATE(\"Viikko \",WEEKNUM(Kalenteripäivä),\"/Päivä \",Kalenteripäivä-DATE(YEAR(Kalenteripäivä),1,0)),CONCATENATE(\"Päivä \",Kalenteripäivä-DATE(YEAR(Kalenteripäivä),1,0)))","v":"Päivä 342"}]
[]
[null,null,{"$f":"Päivät_ja_viikot+DATE(Kalenterivuosi,12,1)-WEEKDAY(DATE(Kalenterivuosi,12,1),(Viikon_aloituspäivä=\"MA\")+1)+15","v":"2018-12-09"},"2018-12-10","2018-12-11","2018-12-12","2018-12-13","2018-12-14","2018-12-15"]
[null,null,{"$f":"IF(WEEKDAY(Kalenteripäivä)=Viikon_aloitusarvo,CONCATENATE(\"Viikko \",WEEKNUM(Kalenteripäivä),\"/Päivä \",Kalenteripäivä-DATE(YEAR(Kalenteripäivä),1,0)),CONCATENATE(\"Päivä \",Kalenteripäivä-DATE(YEAR(Kalenteripäivä),1,0)))","v":"Viikko 50/Päivä 343"},{"$f":"IF(WEEKDAY(Kalenteripäivä)=Viikon_aloitusarvo,CONCATENATE(\"Viikko \",WEEKNUM(Kalenteripäivä),\"/Päivä \",Kalenteripäivä-DATE(YEAR(Kalenteripäivä),1,0)),CONCATENATE(\"Päivä \",Kalenteripäivä-DATE(YEAR(Kalenteripäivä),1,0)))","v":"Päivä 344"},{"$f":"IF(WEEKDAY(Kalenteripäivä)=Viikon_aloitusarvo,CONCATENATE(\"Viikko \",WEEKNUM(Kalenteripäivä),\"/Päivä \",Kalenteripäivä-DATE(YEAR(Kalenteripäivä),1,0)),CONCATENATE(\"Päivä \",Kalenteripäivä-DATE(YEAR(Kalenteripäivä),1,0)))","v":"Päivä 345"},{"$f":"IF(WEEKDAY(Kalenteripäivä)=Viikon_aloitusarvo,CONCATENATE(\"Viikko \",WEEKNUM(Kalenteripäivä),\"/Päivä \",Kalenteripäivä-DATE(YEAR(Kalenteripäivä),1,0)),CONCATENATE(\"Päivä \",Kalenteripäivä-DATE(YEAR(Kalenteripäivä),1,0)))","v":"Päivä 346"},{"$f":"IF(WEEKDAY(Kalenteripäivä)=Viikon_aloitusarvo,CONCATENATE(\"Viikko \",WEEKNUM(Kalenteripäivä),\"/Päivä \",Kalenteripäivä-DATE(YEAR(Kalenteripäivä),1,0)),CONCATENATE(\"Päivä \",Kalenteripäivä-DATE(YEAR(Kalenteripäivä),1,0)))","v":"Päivä 347"},{"$f":"IF(WEEKDAY(Kalenteripäivä)=Viikon_aloitusarvo,CONCATENATE(\"Viikko \",WEEKNUM(Kalenteripäivä),\"/Päivä \",Kalenteripäivä-DATE(YEAR(Kalenteripäivä),1,0)),CONCATENATE(\"Päivä \",Kalenteripäivä-DATE(YEAR(Kalenteripäivä),1,0)))","v":"Päivä 348"},{"$f":"IF(WEEKDAY(Kalenteripäivä)=Viikon_aloitusarvo,CONCATENATE(\"Viikko \",WEEKNUM(Kalenteripäivä),\"/Päivä \",Kalenteripäivä-DATE(YEAR(Kalenteripäivä),1,0)),CONCATENATE(\"Päivä \",Kalenteripäivä-DATE(YEAR(Kalenteripäivä),1,0)))","v":"Päivä 349"}]
[]
[null,null,{"$f":"Päivät_ja_viikot+DATE(Kalenterivuosi,12,1)-WEEKDAY(DATE(Kalenterivuosi,12,1),(Viikon_aloituspäivä=\"MA\")+1)+22","v":"2018-12-16"},"2018-12-17","2018-12-18","2018-12-19","2018-12-20","2018-12-21","2018-12-22"]
[null,null,{"$f":"IF(WEEKDAY(Kalenteripäivä)=Viikon_aloitusarvo,CONCATENATE(\"Viikko \",WEEKNUM(Kalenteripäivä),\"/Päivä \",Kalenteripäivä-DATE(YEAR(Kalenteripäivä),1,0)),CONCATENATE(\"Päivä \",Kalenteripäivä-DATE(YEAR(Kalenteripäivä),1,0)))","v":"Viikko 51/Päivä 350"},{"$f":"IF(WEEKDAY(Kalenteripäivä)=Viikon_aloitusarvo,CONCATENATE(\"Viikko \",WEEKNUM(Kalenteripäivä),\"/Päivä \",Kalenteripäivä-DATE(YEAR(Kalenteripäivä),1,0)),CONCATENATE(\"Päivä \",Kalenteripäivä-DATE(YEAR(Kalenteripäivä),1,0)))","v":"Päivä 351"},{"$f":"IF(WEEKDAY(Kalenteripäivä)=Viikon_aloitusarvo,CONCATENATE(\"Viikko \",WEEKNUM(Kalenteripäivä),\"/Päivä \",Kalenteripäivä-DATE(YEAR(Kalenteripäivä),1,0)),CONCATENATE(\"Päivä \",Kalenteripäivä-DATE(YEAR(Kalenteripäivä),1,0)))","v":"Päivä 352"},{"$f":"IF(WEEKDAY(Kalenteripäivä)=Viikon_aloitusarvo,CONCATENATE(\"Viikko \",WEEKNUM(Kalenteripäivä),\"/Päivä \",Kalenteripäivä-DATE(YEAR(Kalenteripäivä),1,0)),CONCATENATE(\"Päivä \",Kalenteripäivä-DATE(YEAR(Kalenteripäivä),1,0)))","v":"Päivä 353"},{"$f":"IF(WEEKDAY(Kalenteripäivä)=Viikon_aloitusarvo,CONCATENATE(\"Viikko \",WEEKNUM(Kalenteripäivä),\"/Päivä \",Kalenteripäivä-DATE(YEAR(Kalenteripäivä),1,0)),CONCATENATE(\"Päivä \",Kalenteripäivä-DATE(YEAR(Kalenteripäivä),1,0)))","v":"Päivä 354"},{"$f":"IF(WEEKDAY(Kalenteripäivä)=Viikon_aloitusarvo,CONCATENATE(\"Viikko \",WEEKNUM(Kalenteripäivä),\"/Päivä \",Kalenteripäivä-DATE(YEAR(Kalenteripäivä),1,0)),CONCATENATE(\"Päivä \",Kalenteripäivä-DATE(YEAR(Kalenteripäivä),1,0)))","v":"Päivä 355"},{"$f":"IF(WEEKDAY(Kalenteripäivä)=Viikon_aloitusarvo,CONCATENATE(\"Viikko \",WEEKNUM(Kalenteripäivä),\"/Päivä \",Kalenteripäivä-DATE(YEAR(Kalenteripäivä),1,0)),CONCATENATE(\"Päivä \",Kalenteripäivä-DATE(YEAR(Kalenteripäivä),1,0)))","v":"Päivä 356"}]
[]
[null,null,{"$f":"Päivät_ja_viikot+DATE(Kalenterivuosi,12,1)-WEEKDAY(DATE(Kalenterivuosi,12,1),(Viikon_aloituspäivä=\"MA\")+1)+29","v":"2018-12-23"},"2018-12-24","2018-12-25","2018-12-26","2018-12-27","2018-12-28","2018-12-29"]
[null,null,{"$f":"IF(WEEKDAY(Kalenteripäivä)=Viikon_aloitusarvo,CONCATENATE(\"Viikko \",WEEKNUM(Kalenteripäivä),\"/Päivä \",Kalenteripäivä-DATE(YEAR(Kalenteripäivä),1,0)),CONCATENATE(\"Päivä \",Kalenteripäivä-DATE(YEAR(Kalenteripäivä),1,0)))","v":"Viikko 52/Päivä 357"},{"$f":"IF(WEEKDAY(Kalenteripäivä)=Viikon_aloitusarvo,CONCATENATE(\"Viikko \",WEEKNUM(Kalenteripäivä),\"/Päivä \",Kalenteripäivä-DATE(YEAR(Kalenteripäivä),1,0)),CONCATENATE(\"Päivä \",Kalenteripäivä-DATE(YEAR(Kalenteripäivä),1,0)))","v":"Päivä 358"},{"$f":"IF(WEEKDAY(Kalenteripäivä)=Viikon_aloitusarvo,CONCATENATE(\"Viikko \",WEEKNUM(Kalenteripäivä),\"/Päivä \",Kalenteripäivä-DATE(YEAR(Kalenteripäivä),1,0)),CONCATENATE(\"Päivä \",Kalenteripäivä-DATE(YEAR(Kalenteripäivä),1,0)))","v":"Päivä 359"},{"$f":"IF(WEEKDAY(Kalenteripäivä)=Viikon_aloitusarvo,CONCATENATE(\"Viikko \",WEEKNUM(Kalenteripäivä),\"/Päivä \",Kalenteripäivä-DATE(YEAR(Kalenteripäivä),1,0)),CONCATENATE(\"Päivä \",Kalenteripäivä-DATE(YEAR(Kalenteripäivä),1,0)))","v":"Päivä 360"},{"$f":"IF(WEEKDAY(Kalenteripäivä)=Viikon_aloitusarvo,CONCATENATE(\"Viikko \",WEEKNUM(Kalenteripäivä),\"/Päivä \",Kalenteripäivä-DATE(YEAR(Kalenteripäivä),1,0)),CONCATENATE(\"Päivä \",Kalenteripäivä-DATE(YEAR(Kalenteripäivä),1,0)))","v":"Päivä 361"},{"$f":"IF(WEEKDAY(Kalenteripäivä)=Viikon_aloitusarvo,CONCATENATE(\"Viikko \",WEEKNUM(Kalenteripäivä),\"/Päivä \",Kalenteripäivä-DATE(YEAR(Kalenteripäivä),1,0)),CONCATENATE(\"Päivä \",Kalenteripäivä-DATE(YEAR(Kalenteripäivä),1,0)))","v":"Päivä 362"},{"$f":"IF(WEEKDAY(Kalenteripäivä)=Viikon_aloitusarvo,CONCATENATE(\"Viikko \",WEEKNUM(Kalenteripäivä),\"/Päivä \",Kalenteripäivä-DATE(YEAR(Kalenteripäivä),1,0)),CONCATENATE(\"Päivä \",Kalenteripäivä-DATE(YEAR(Kalenteripäivä),1,0)))","v":"Päivä 363"}]
[{"$nulls":4},"MUISTIINPANOT"]
[]
[null,null,{"$f":"Päivät_ja_viikot+DATE(Kalenterivuosi,12,1)-WEEKDAY(DATE(Kalenterivuosi,12,1),(Viikon_aloituspäivä=\"MA\")+1)+36","v":"2018-12-30"},"2018-12-31"]
[null,null,{"$f":"IF(WEEKDAY(Kalenteripäivä)=Viikon_aloitusarvo,CONCATENATE(\"Viikko \",WEEKNUM(Kalenteripäivä),\"/Päivä \",Kalenteripäivä-DATE(YEAR(Kalenteripäivä),1,0)),CONCATENATE(\"Päivä \",Kalenteripäivä-DATE(YEAR(Kalenteripäivä),1,0)))","v":"Viikko 53/Päivä 364"},{"$f":"IF(WEEKDAY(Kalenteripäivä)=Viikon_aloitusarvo,CONCATENATE(\"Viikko \",WEEKNUM(Kalenteripäivä),\"/Päivä \",Kalenteripäivä-DATE(YEAR(Kalenteripäivä),1,0)),CONCATENATE(\"Päivä \",Kalenteripäivä-DATE(YEAR(Kalenteripäivä),1,0)))","v":"Päivä 365"}]